{"text_format":"1","workbook":"xlsx","n_sheets":11,"sheets":["Accueil - Forêt publique","Accueil - Forêt privée","Calcul - PEEOL - BGAD ","Calcul - PEEOL - Usine ","Calcul - PEEOL - FPrivée","Carte admi. - PEEOL - FPublique","Cartes admis. - PEEOL - FPrivée","Versions du fichier - FPublique","Versions du fichier - FPrivée","Menus","Log"],"not_rendered":{"charts":0,"images":11,"macros":1,"external_links":0,"defined_names":39,"comments":3,"pivot_tables":0},"unopened":[],"bounds":{"document_bytes":16777216,"sheet_cells":100000,"rows_first":2000,"rows_last":500,"rows_between":2000,"halvings":0,"cell_chars":16384,"cell_head_chars":4096},"cells_cut":0,"cells_raw":0,"read":"whole","date_system":"1900"}

{"sheet":"Accueil - Forêt publique","index":0,"n_rows":20,"n_cols":4,"rows_kept":20,"cut":false,"hidden":false,"merged":[[14,3,14,13],[19,3,19,13],[16,3,17,13]]}
[]
[]
[]
[]
[]
[]
[]
[]
[]
[]
[]
[]
[]
[]
[null,null,null,"Programme exceptionnel d’écoulement des bois feuillus de faible qualité des régions de l’Outaouais et des Laurentides\nForêt publique\nAnnexe au rapport et au calcul de l'aide au transport des bois\n2024-2025                     \n\n"]
[]
[null,null,null,"L'activation du contenu de ce fichier est requise afin d'assurer l'exécution des macro-commandes qui sont nécessaires\nà son bon fonctionnement."]
[]
[]
[null,null,null,"https://support.office.com/fr-fr/article/activer-ou-d%C3%A9sactiver-les-macros-dans-les-fichiers-office-12b036fd-d140-4e74-b45e-16fed1a7e5c6"]

{"sheet":"Accueil - Forêt privée","index":1,"n_rows":20,"n_cols":4,"rows_kept":20,"cut":false,"hidden":true,"merged":[[14,3,14,13],[16,3,17,13],[19,3,19,13]]}
[]
[]
[]
[]
[]
[]
[]
[]
[]
[]
[]
[]
[]
[]
[null,null,null,"Programme exceptionnel d’écoulement des bois feuillus de faible qualité des régions de l’Outaouais et des Laurentides\nForêt privée\nAnnexe au rapport et au calcul de l'aide au transport des bois\n2024-2025                     \n\n"]
[]
[null,null,null,"L'activation du contenu de ce fichier est requise afin d'assurer l'exécution des macro-commandes qui sont nécessaires\nà son bon fonctionnement."]
[]
[]
[null,null,null,"https://support.office.com/fr-fr/article/activer-ou-d%C3%A9sactiver-les-macros-dans-les-fichiers-office-12b036fd-d140-4e74-b45e-16fed1a7e5c6"]

{"sheet":"Calcul - PEEOL - BGAD ","index":2,"n_rows":208,"n_cols":102,"rows_kept":208,"cut":false,"hidden":true,"merged":[[56,0,56,5],[57,0,57,5],[58,0,58,5],[59,0,59,5],[60,0,60,5],[44,0,44,5],[45,0,45,5],[46,0,46,5],[47,0,47,5],[55,0,55,8],[48,0,48,8],[49,0,49,5],[51,0,51,5],[50,0,50,5],[54,0,54,5],[53,0,53,5],[52,0,52,5],[39,0,39,8],[40,0,40,5],[41,0,41,5],[42,0,42,8],[43,0,43,5],[72,0,72,5],[73,0,73,5],[32,0,32,5],[34,0,34,5],[35,0,35,5],[36,0,36,5],[38,0,38,5],[33,0,33,5],[37,0,37,5],[69,0,69,5],[67,0,67,5],[62,0,62,8],[63,0,63,5],[64,0,64,5],[65,0,65,5],[68,0,68,5],[66,0,66,5],[70,0,70,8],[61,0,61,5],[31,0,31,5],[30,0,30,5],[26,0,26,5],[27,0,27,5],[9,0,9,4],[21,0,21,5],[22,0,22,5],[19,0,19,5],[29,0,29,8],[24,0,24,2],[20,0,20,8],[10,0,10,5],[11,0,11,8],[16,0,16,5],[12,0,12,5],[13,0,13,5],[14,0,14,5],[15,0,15,5],[18,0,18,5],[23,0,23,5],[28,0,28,5],[17,0,17,5],[25,0,25,5],[0,0,0,8],[5,0,5,5],[6,0,6,5],[3,0,3,5],[5,6,5,8],[6,6,6,8],[1,0,1,8],[2,0,2,6],[2,7,2,8],[7,6,7,8],[3,6,3,8],[4,0,4,8],[7,0,7,5],[8,6,8,8],[8,0,8,5],[96,0,96,5],[96,6,96,8],[107,0,107,5],[107,6,107,8],[97,0,97,8],[98,0,98,8],[99,0,99,8],[100,0,100,8],[101,0,103,5],[101,6,103,8],[104,0,104,5],[104,6,104,8],[105,0,106,5],[105,6,106,8],[94,0,95,5],[94,6,95,8],[71,0,71,5],[90,6,92,8],[93,0,93,5],[93,6,93,8],[82,6,82,8],[74,0,74,8],[76,0,76,8],[77,0,77,8],[78,0,78,8],[89,0,89,8],[85,0,85,5],[85,6,85,8],[75,0,75,8],[83,0,84,5],[83,6,84,8],[86,0,86,8],[87,0,87,8],[88,0,88,8],[90,0,92,5],[79,0,81,5],[79,6,81,8],[82,0,82,5]]}
[]
["Programme exceptionnel d’écoulement  des bois feuillus de faible qualité des régions de l’Outaouais et des Laurentides (PEEOL)\net\nProgramme d'investissement pour l'aménagement des forêts - Aide au transport et à l'optimisation pour les bois feuillus admissibles au PEEOL\n\nForêt publique\nAnnexe au rapport et au calcul de l'aide au transport des bois\n2024-2025\n"]
[" *** Veuillez saisir les informations dans les cellules blanches (Planification et BGAD) et jaunes (Ministère) ***",null,null,null,null,null,null,"Version 2 : 2024-12-10"]
["Contexte d'utilisation",null,null,null,null,null,"Planification"]
["Identification"]
["Unité d'aménagement (UA)"]
["Secteur d'intervention"]
["Unité de compilation"]
["Numéro de la prescription"]
["Zone de tarification\nValeur requise pour établir le montant de l'aide en fonction de l'usine réceptrice des bois",null,null,null,null,{"$f":"IF(ISNA(VLOOKUP($I$10,Zone_de_tarification_Admissibilite,1,FALSE)),\"Non_admissible\",\"Question\")","v":"Non_admissible"}]
["Inscrire les renseignements dans la colonne associée au contexte d'utilisation",null,null,null,null,null,"Planification","BGAD","Ministère"]
["1)  Admissibilité et calcul de l'aide au transport — À partir de la forêt vers une usine de sciage ou cour de triage\n     →  Aide au transport des bois issus de coupes partielles (PIAF)\n       Inscrire une valeur à I10"]
["Secteur d'intervention dont la composition est feuillue ou mixte à dominance feuillue"]
["Admissible à l'aide financière pour les coupes partielles"]
["Est-ce que les bois de trituration ont été récoltés et transportés ?"]
["Pourcentage de récupération des bois de trituration"]
["Superficie admissible"]
["Destination des bois de trituration transportés"]
["Taux pour la mesure d'accès au marché ($/ha) - taux à inscrire à l'état d'avancement et au RATF\nL'aide globale $/ha est limitée à un plafond variable en fonction de la zone de tarification et de l'usine réceptrice.\nCette valeur tient compte du pourcentage de récupération.",null,null,null,null,null,{"$f":"IFERROR(IF($G$16>1,0,IF(AND(EXACT(UPPER($G$13),UPPER(Menus!$A$2)),EXACT(UPPER($G$14),UPPER(Menus!$A$2)),EXACT(UPPER($G$15),UPPER(Menus!$A$2))),ROUND(VLOOKUP(CONCATENATE($I$10,\" - \",$G$18),Tableau_Zone_de_tarification_BGAD_A,5,FALSE)*$G$16,2),0)),0)","v":0},{"$f":"IFERROR(IF($H$16>1,0,IF(OR(EXACT(UPPER($G$4),UPPER(Menus!$A$41)),EXACT(UPPER($G$4),UPPER(Menus!$A$42))),IF(AND(EXACT(UPPER($H$13),UPPER(Menus!$A$2)),EXACT(UPPER($H$14),UPPER(Menus!$A$2)),EXACT(UPPER($H$15),UPPER(Menus!$A$2))),ROUND(VLOOKUP(CONCATENATE($I$10,\" - \",$H$18),Tableau_Zone_de_tarification_BGAD_A,5,FALSE)*$H$16,2),0),0)),0)","v":0},{"$f":"IFERROR(IF($I$16>1,0,IF(EXACT(UPPER($G$4),UPPER(Menus!$A$42)),IF(AND(EXACT(UPPER($I$13),UPPER(Menus!$A$2)),EXACT(UPPER($I$14),UPPER(Menus!$A$2)),EXACT(UPPER($I$15),UPPER(Menus!$A$2))),ROUND(VLOOKUP(CONCATENATE($I$10,\" - \",$I$18),Tableau_Zone_de_tarification_BGAD_A,5,FALSE)*$I$16,2),0),0)),0)","v":0}]
["Total admissible ($)",null,null,null,null,null,{"$f":"IFERROR(ROUND($G$19*$G$17,2),0)","v":0},{"$f":"IFERROR(ROUND($H$19*$H$17,2),0)","v":0},{"$f":"IFERROR(ROUND($I$19*$I$17,2),0)","v":0}]
["2) Transport et mesurage optimisés des bois feuillus en longueur — À partir de la forêt vers une usine de sciage ou cour de triage\n     →  Aide au transport en longueur et l'optimisation du mesurage des bois issus de coupes partielles (PIAF)\n       Inscrire une valeur à I10"]
["Transport des bois feuillus en longueur"]
["Proportion des bois feuillus transportés en longueur (%)"]
["Sous-total pour l'aide au transport en longueur ($/ha) - taux à inscrire à l'état d'avancement et au RATF",null,null,null,null,null,{"$f":"IFERROR(IF(AND(EXACT(UPPER($G$13),UPPER(Menus!$A$2)),EXACT(UPPER($G$14),UPPER(Menus!$A$2)),EXACT(UPPER($G$15),UPPER(Menus!$A$2)),EXACT(UPPER($G$22),UPPER(Menus!$A$2)),$G$23>0,$G$23<=1),ROUND(Menus!$B$849*$G$23,2),0),0)","v":0},{"$f":"IFERROR(IF(OR(EXACT(UPPER($G$4),UPPER(Menus!$A$41)),EXACT(UPPER($G$4),UPPER(Menus!$A$42))),IF(AND(EXACT(UPPER($H$13),UPPER(Menus!$A$2)),EXACT(UPPER($H$14),UPPER(Menus!$A$2)),EXACT(UPPER($H$15),UPPER(Menus!$A$2)),EXACT(UPPER($H$22),UPPER(Menus!$A$2)),$H$23>0,$H$23<=1),ROUND(Menus!$B$849*$H$23,2),0),0),0)","v":0},{"$f":"IFERROR(IF(EXACT(UPPER($G$4),UPPER(Menus!$A$42)),IF(AND(EXACT(UPPER($I$13),UPPER(Menus!$A$2)),EXACT(UPPER($I$14),UPPER(Menus!$A$2)),EXACT(UPPER($I$15),UPPER(Menus!$A$2)),EXACT(UPPER($I$22),UPPER(Menus!$A$2)),$I$23>0,$I$23<=1),ROUND(Menus!$B$849*$I$23,2),0),0),0)","v":0}]
["Mesurage optimisé des bois feuillus",null,null,{"$f":"IF(EXACT(UPPER($G$22),UPPER(Menus!$A$2)),\"Question\",\"Sans_objet\")","v":"Sans_objet"},{"$f":"IF(EXACT(UPPER($H$22),UPPER(Menus!$A$2)),\"Question\",\"Sans_objet\")","v":"Sans_objet"},{"$f":"IF(EXACT(UPPER($I$22),UPPER(Menus!$A$2)),\"Question\",\"Sans_objet\")","v":"Sans_objet"}]
["Proportion des bois feuillus mesurés (%)"]
["Sous-total pour l'aide au transport en longueur et au mesurage optimisé ($/ha) - taux à inscrire à l'état d'avancement et au RATF",null,null,null,null,null,{"$f":"IFERROR(IF($G$26<=$G$23,IF(AND(EXACT(UPPER($G$13),UPPER(Menus!$A$2)),EXACT(UPPER($G$14),UPPER(Menus!$A$2)),EXACT(UPPER($G$15),UPPER(Menus!$A$2)),EXACT(UPPER($G$22),UPPER(Menus!$A$2)),EXACT(UPPER($G$25),UPPER(Menus!$A$2)),$G$26>0,$G$26<=1),ROUND(Menus!$B$850*$G$26,2),0),0),0)","v":0},{"$f":"IFERROR(IF(OR(EXACT(UPPER($G$4),UPPER(Menus!$A$41)),EXACT(UPPER($G$4),UPPER(Menus!$A$42))),IF($H$26<=$H$23,IF(AND(EXACT(UPPER($H$13),UPPER(Menus!$A$2)),EXACT(UPPER($H$14),UPPER(Menus!$A$2)),EXACT(UPPER($H$15),UPPER(Menus!$A$2)),EXACT(UPPER($H$22),UPPER(Menus!$A$2)),EXACT(UPPER($H$25),UPPER(Menus!$A$2)),$H$26>0,$H$26<=1),ROUND(Menus!$B$850*$H$26,2),0),0),0),0)","v":0},{"$f":"IFERROR(IF(EXACT(UPPER($G$4),UPPER(Menus!$A$42)),IF($I$26<=$I$23,IF(AND(EXACT(UPPER($I$13),UPPER(Menus!$A$2)),EXACT(UPPER($I$14),UPPER(Menus!$A$2)),EXACT(UPPER($I$15),UPPER(Menus!$A$2)),EXACT(UPPER($I$22),UPPER(Menus!$A$2)),EXACT(UPPER($I$25),UPPER(Menus!$A$2)),$I$26>0,$I$26<=1),ROUND(Menus!$B$850*$I$26,2),0),0),0),0)","v":0}]
["Taux global pour le transport et le mesurage optimisé ($/ha)",null,null,null,null,null,{"$f":"IFERROR(ROUND(SUM($G$24,$G$27),2),0)","v":0},{"$f":"IFERROR(ROUND(SUM($H$24,$H$27),2),0)","v":0},{"$f":"IFERROR(ROUND(SUM($I$24,$I$27),2),0)","v":0}]
["Total admissible ($)",null,null,null,null,null,{"$f":"IFERROR(ROUND($G$28*$G$17,2),0)","v":0},{"$f":"IFERROR(ROUND($H$28*$H$17,2),0)","v":0},{"$f":"IFERROR(ROUND($I$28*$I$17,2),0)","v":0}]
["3) Admissibilité et calcul de l'aide au transport — À partir de la forêt vers une usine de sciage ou cour de triage\n    →  Aide au transport des bois issus de coupes de régénération (PIAF)\n       Inscrire une valeur à I10"]
["Est-ce que les strates récoltées sont feuillues ou mixtes à dominance feuillue ?"]
["Est-ce que les bois de trituration ont été récoltés et transportés ?"]
["Pourcentage de récupération des bois de trituration"]
["Superficie admissible"]
["Volume net récolté par hectare pour tous les feuillus durs de trituration (m³/ha)\nLe minimum admissible est de 30 m³/ha"]
["Destination des bois de trituration transportés"]
["Taux d'aide brut au transport ($/m3)",null,null,null,null,null,{"$f":"IFERROR(IF(OR($G$33>1,$G$35<Transport_Minimum_FD_trituration),0,IF(AND(EXACT(UPPER($G$31),UPPER(Menus!$A$2)),EXACT(UPPER($G$32),UPPER(Menus!$A$2))),ROUND(VLOOKUP(CONCATENATE($I$10,\" - \",$G$36),Tableau_Zone_de_tarification_BGAD_B,6,FALSE),2),0)),0)","v":0},{"$f":"IFERROR(IF(OR($H$33>1,$H$35<Transport_Minimum_FD_trituration),0,IF(OR(EXACT(UPPER($G$4),UPPER(Menus!$A$41)),EXACT(UPPER($G$4),UPPER(Menus!$A$42))),IF(AND(EXACT(UPPER($H$31),UPPER(Menus!$A$2)),EXACT(UPPER($H$32),UPPER(Menus!$A$2))),ROUND(VLOOKUP(CONCATENATE($I$10,\" - \",$H$36),Tableau_Zone_de_tarification_BGAD_B,6,FALSE),2),0),0)),0)","v":0},{"$f":"IFERROR(IF(OR($I$33>1,$I$35<Transport_Minimum_FD_trituration),0,IF(EXACT(UPPER($G$4),UPPER(Menus!$A$42)),IF(AND(EXACT(UPPER($I$31),UPPER(Menus!$A$2)),EXACT(UPPER($I$32),UPPER(Menus!$A$2))),ROUND(VLOOKUP(CONCATENATE($I$10,\" - \",$I$36),Tableau_Zone_de_tarification_BGAD_B,6,FALSE),2),0),0)),0)","v":0}]
["Taux pour la mesure d'accès au marché ($/ha) - taux à inscrire à l'état d'avancement et au RATF\nLe taux d'aide net au transport ($/ha) est limité à un plafond variable en fonction de la zone de tarification et du BGAD. Cette valeur tient compte du pourcentage de récupération et du volume net récolté.",null,null,null,null,null,{"$f":"IFERROR(IF(ROUND($G$33*$G$35*$G$37,2)>ROUND(VLOOKUP(CONCATENATE($I$10,\" - \",$G$36),Tableau_Zone_de_tarification_BGAD_B,5,FALSE)*$G$33,2),ROUND(VLOOKUP(CONCATENATE($I$10,\" - \",$G$36),Tableau_Zone_de_tarification_BGAD_B,5,FALSE)*$G$33,2),ROUND($G$33*$G$35*$G$37,2)),0)","v":0},{"$f":"IFERROR(IF(ROUND($H$33*$H$35*$H$37,2)>ROUND(VLOOKUP(CONCATENATE($I$10,\" - \",$H$36),Tableau_Zone_de_tarification_BGAD_B,5,FALSE)*$H$33,2),ROUND(VLOOKUP(CONCATENATE($I$10,\" - \",$H$36),Tableau_Zone_de_tarification_BGAD_B,5,FALSE)*$H$33,2),ROUND($H$33*$H$35*$H$37,2)),0)","v":0},{"$f":"IFERROR(IF(ROUND($I$33*$I$35*$I$37,2)>ROUND(VLOOKUP(CONCATENATE($I$10,\" - \",$I$36),Tableau_Zone_de_tarification_BGAD_B,5,FALSE)*$I$33,2),ROUND(VLOOKUP(CONCATENATE($I$10,\" - \",$I$36),Tableau_Zone_de_tarification_BGAD_B,5,FALSE)*$I$33,2),ROUND($I$33*$I$35*$I$37,2)),0)","v":0}]
["Total admissible ($)",null,null,null,null,null,{"$f":"IFERROR(ROUND($G$34*$G$38,2),0)","v":0},{"$f":"IFERROR(ROUND($H$34*$H$38,2),0)","v":0},{"$f":"IFERROR(ROUND($I$34*$I$38,2),0)","v":0}]
["4) Admissibilité et calcul de l'aide au transport — À partir de l'usine de sciage ou de la cour de triage et vers une usine de transformation\n    des bois de trituration (PEEOL)\n    Calcul établi indépendamment de la valeur à I10\n"]
["Volume provenant de la région de l'Outaouais ou des Laurentides ?"]
["Détenteur d'une entente gré à gré pour transporter ces bois ?"]
["Combinaison A"]
["Ville de provenance des bois de trituration"]
["Usine de destination des bois de trituration"]
["Volume transporté à l'usine de destination et associé à ce calcul (m3)"]
["Taux d'aide au transport ($/m3)",null,null,null,null,null,{"$f":"IFERROR(IF(AND(EXACT(UPPER($G$41),UPPER(Menus!$A$2)),EXACT(UPPER($G$42),UPPER(Menus!$A$2))),VLOOKUP(CONCATENATE($G$44,\" - \",$G$45),Tableau_Provenance_Destination_BGAD_Usine_A,4,FALSE),0),0)","v":0},{"$f":"IFERROR(IF(OR(EXACT(UPPER($G$4),UPPER(Menus!$A$41)),EXACT(UPPER($G$4),UPPER(Menus!$A$42))),IF(AND(EXACT(UPPER($H$41),UPPER(Menus!$A$2)),EXACT(UPPER($H$42),UPPER(Menus!$A$2))),VLOOKUP(CONCATENATE($H$44,\" - \",$H$45),Tableau_Provenance_Destination_BGAD_Usine_A,4,FALSE),0),0),0)","v":0},{"$f":"IFERROR(IF(EXACT(UPPER($G$4),UPPER(Menus!$A$42)),IF(AND(EXACT(UPPER($I$41),UPPER(Menus!$A$2)),EXACT(UPPER($I$42),UPPER(Menus!$A$2))),VLOOKUP(CONCATENATE($I$44,\" - \",$I$45),Tableau_Provenance_Destination_BGAD_Usine_A,4,FALSE),0),0),0)","v":0}]
["Sous-total - Combinaison A ($)",null,null,null,null,null,{"$f":"IFERROR(ROUND($G$46*$G$47,2),0)","v":0},{"$f":"IFERROR(ROUND($H$46*$H$47,2),0)","v":0},{"$f":"IFERROR(ROUND($I$46*$I$47,2),0)","v":0}]
["Retour en charge"]
["Est-ce qu'il y a un retour en charge ?"]
["Usine d'origine des bois utilisées pour le retour en charge"]
["Ville de destination des bois utilisées pour le retour en charge"]
["Volume de bois transporté en lien avec le retour en charge"]
["Taux d'aide au retour en charge ($/m3)",null,null,null,null,null,{"$f":"IFERROR(IF(EXACT(UPPER($G$50),UPPER(Menus!$A$2)),VLOOKUP(CONCATENATE($G$52,\" - \",$G$51),Tableau_retour,4,FALSE),0),0)","v":0},{"$f":"IFERROR(IF(EXACT(UPPER($H$50),UPPER(Menus!$A$2)),VLOOKUP(CONCATENATE($H$52,\" - \",$H$51),Tableau_retour,4,FALSE),0),0)","v":0},{"$f":"IFERROR(IF(EXACT(UPPER($I$50),UPPER(Menus!$A$2)),VLOOKUP(CONCATENATE($I$52,\" - \",$I$51),Tableau_retour,4,FALSE),0),0)","v":0}]
["Sous-total - Retour en charge",null,null,null,null,null,{"$f":"IFERROR(ROUND($G$53*$G$54,2),0)","v":0},{"$f":"IFERROR(ROUND($H$53*$H$54,2),0)","v":0},{"$f":"IFERROR(ROUND($I$53*$I$54,2),0)","v":0}]
["Combinaison B"]
["Ville de provenance des bois de trituration"]
["Usine de destination des bois de trituration"]
["Volume transporté à l'usine de destination (m3)"]
["Taux d'aide au transport ($/m3)",null,null,null,null,null,{"$f":"IFERROR(IF(AND(EXACT(UPPER($G$41),UPPER(Menus!$A$2)),EXACT(UPPER($G$42),UPPER(Menus!$A$2))),VLOOKUP(CONCATENATE($G$57,\" - \",$G$58),Tableau_Provenance_Destination_BGAD_Usine_A,4,FALSE),0),0)","v":0},{"$f":"IFERROR(IF(OR(EXACT(UPPER($G$4),UPPER(Menus!$A$41)),EXACT(UPPER($G$4),UPPER(Menus!$A$42))),IF(AND(EXACT(UPPER($H$41),UPPER(Menus!$A$2)),EXACT(UPPER($H$42),UPPER(Menus!$A$2))),VLOOKUP(CONCATENATE($H$57,\" - \",$H$58),Tableau_Provenance_Destination_BGAD_Usine_A,4,FALSE),0),0),0)","v":0},{"$f":"IFERROR(IF(EXACT(UPPER($G$4),UPPER(Menus!$A$42)),IF(AND(EXACT(UPPER($I$41),UPPER(Menus!$A$2)),EXACT(UPPER($I$42),UPPER(Menus!$A$2))),VLOOKUP(CONCATENATE($I$57,\" - \",$I$58),Tableau_Provenance_Destination_BGAD_Usine_A,4,FALSE),0),0),0)","v":0}]
["Sous-total - Combinaison B ($)",null,null,null,null,null,{"$f":"IFERROR(ROUND($G$59*$G$60,2),0)","v":0},{"$f":"IFERROR(ROUND($H$59*$H$60,2),0)","v":0},{"$f":"IFERROR(ROUND($I$59*$I$60,2),0)","v":0}]
["Total admissible ($)",null,null,null,null,null,{"$f":"IFERROR(ROUND(SUM($G$48,$G$61,$G$55),2),0)","v":0},{"$f":"IFERROR(ROUND(SUM($H$48,$H$61,$H$55),2),0)","v":0},{"$f":"IFERROR(ROUND(SUM($I$48,$I$61,$I$55),2),0)","v":0}]
["5) Admissibilité et calcul de l'aide au transport — À partir de la forêt et directement vers une usine de transformation des bois de trituration\n    →  Aide au transport des bois issus de coupes partielles ou de coupes de régénération (PEEOL)\n       Inscrire une valeur à I10"]
["Détenteur d'une entente gré à gré pour transporter ces bois ?"]
["Usine de destination des bois de trituration"]
["Volume transporté à l'usine de destination et associé à ce calcul (m3)"]
["Bénéficiaire de garantie d'approvisionnement désigné (BGAD)"]
["Pourcentage de récupération des bois de trituration\nCette valeur est présentée à titre indicatif et n'est pas utilisée dans le calcul du taux.\nCette valeur prend compte le pourcentage de récupération des bois de trituration des sections 1 et 3, le cas échéant.",null,null,null,null,null,{"$f":"IFERROR(IF(EXACT(UPPER($G$64),UPPER(Menus!$A$2)),IF(1-SUM($G$16,$G$33)<0,0,1-SUM($G$16,$G$33)),\"\"),\"\")","v":""},{"$f":"IFERROR(IF(OR(EXACT(UPPER($G$4),UPPER(Menus!$A$41)),EXACT(UPPER($G$4),UPPER(Menus!$A$42))),IF(EXACT(UPPER($H$64),UPPER(Menus!$A$2)),IF(1-SUM($H$16,$H$33)<0,0,1-SUM($H$16,$H$33)),\"\"),\"\"),\"\")","v":""},{"$f":"IFERROR(IF(EXACT(UPPER($G$4),UPPER(Menus!$A$42)),IF(EXACT(UPPER($I$64),UPPER(Menus!$A$2)),IF(1-SUM($I$16,$I$33)<0,0,1-SUM($I$16,$I$33)),\"\"),\"\"),\"\")","v":""}]
["Taux pour la mesure d'accès au marché ($/m3)",null,null,null,null,null,{"$f":"IFERROR(IF(AND(EXACT(UPPER($G$64),UPPER(Menus!$A$2)),$G$68>0),ROUND(VLOOKUP(CONCATENATE($I$10,\" - \",$G$65),Tableau_Provenance_Destination_BGAD_Usine_B,5,FALSE),2),0),0)","v":0},{"$f":"IFERROR(IF(OR(EXACT(UPPER($G$4),UPPER(Menus!$A$41)),EXACT(UPPER($G$4),UPPER(Menus!$A$42))),IF(AND(EXACT(UPPER($H$64),UPPER(Menus!$A$2)),$H$68>0),ROUND(VLOOKUP(CONCATENATE($I$10,\" - \",$H$65),Tableau_Provenance_Destination_BGAD_Usine_B,5,FALSE),2),0),0),0)","v":0},{"$f":"IFERROR(IF(EXACT(UPPER($G$4),UPPER(Menus!$A$42)),IF(AND(EXACT(UPPER($I$64),UPPER(Menus!$A$2)),$I$68>0),ROUND(VLOOKUP(CONCATENATE($I$10,\" - \",$I$65),Tableau_Provenance_Destination_BGAD_Usine_B,5,FALSE),2),0),0),0)","v":0}]
["Total admissible ($)",null,null,null,null,null,{"$f":"IFERROR(ROUND($G$66*$G$69,2),0)","v":0},{"$f":"IFERROR(ROUND($H$66*$H$69,2),0)","v":0},{"$f":"IFERROR(ROUND($I$66*$I$69,2),0)","v":0}]
["Totaux"]
["Grand total admissible PIAF ($)\nAides pour le Programme d’investissement en aménagement forestier pour le requérant admissible au Programme exceptionnel d’écoulement des bois feuillus de faible qualité des régions de l’Outaouais et des Laurentides (sections 1­2­3)",null,null,null,null,null,{"$f":"IFERROR(ROUND(SUM($G$20,$G$29,$G$39),2),0)","v":0},{"$f":"IFERROR(ROUND(SUM($H$20,$H$29,$H$39),2),0)","v":0},{"$f":"IFERROR(ROUND(SUM($I$20,$I$29,$I$39),2),0)","v":0}]
["Grand total admissible PEEOL ($)\nAides pour le Programme exceptionnel d’écoulement des bois feuillus de faible qualité des régions de l’Outaouais et des Laurentides (sections 4-5)",null,null,null,null,null,{"$f":"IFERROR(ROUND(SUM($G$62,$G$70),2),0)","v":0},{"$f":"IFERROR(ROUND(SUM($H$62,$H$70),2),0)","v":0},{"$f":"IFERROR(ROUND(SUM($I$62,$I$70),2),0)","v":0}]
["Montant total à payer ($)",null,null,null,null,null,{"$f":"IFERROR(ROUND(SUM($G$20,$G$29,$G$39,$G$62,$G$70),2),0)","v":0},{"$f":"IFERROR(ROUND(SUM($H$20,$H$29,$H$39,$H$62,$H$70),2),0)","v":0},{"$f":"IFERROR(ROUND(SUM($I$20,$I$29,$I$39,$I$62,$I$70),2),0)","v":0}]
[]
["Section réservée à l'usage de la Planification"]
["Remarques"]
[]
["J'atteste que les renseignements fournis dans ce document afin de calculer l'aide supplémentaire sont complets et conformes à la vérité, au meilleur de mes connaissances."]
[]
[]
[]
["Nom et prénom de l'ingénieur forestier",null,null,null,null,null,"No de permis"]
[null,null,null,null,null,null,{"$f":"TODAY()","v":"2024-12-10"}]
[]
["Signature de l'ingénieur forestier",null,null,null,null,null,"Date (AAAA-MM-JJ)"]
["Section réservée à l'usage du BGAD"]
["Remarques"]
[]
["J'atteste que les renseignements fournis dans ce document afin de calculer l'aide supplémentaire sont complets et conformes à la vérité, au meilleur de mes connaissances."]
[]
[]
[]
["Nom et prénom de l'ingénieur forestier",null,null,null,null,null,"No de permis"]
[null,null,null,null,null,null,{"$f":"TODAY()","v":"2024-12-10"}]
[]
["Signature de l'ingénieur forestier",null,null,null,null,null,"Date (AAAA-MM-JJ)"]
["Section réservée à l'usage du Ministère"]
["Remarques"]
[]
["J'atteste que les renseignements fournis dans ce document afin de calculer l'aide supplémentaire sont complets et conformes à la vérité, au meilleur de mes connaissances."]
[]
[]
[]
["Nom et prénom de l'ingénieur forestier",null,null,null,null,null,"No de permis"]
[null,null,null,null,null,null,{"$f":"TODAY()","v":"2024-12-10"}]
[]
["Signature de l'ingénieur forestier",null,null,null,null,null,"Date (AAAA-MM-JJ)"]
[null,null,null,null,null,null,null,null,null,null,null,null,null,null,null,null,null,null,null,null,null,null,null,null,null,null,null,null,null,null,null,null,null,null,null,null,null,null,null,null,null,null,null,null,null,null,null,null,null,null,null,null,null,null,null,null,null,null,null,null,null,null,null,null,null,null,null,null,null,null,null,null,null,null,null,null,null,null,null,null,null,null,null,null,null,null,null,null,null,null,null,null,null,null,null,null,null,null,null,null,455,0]
[null,null,null,null,null,null,null,null,null,null,null,null,null,null,null,null,null,null,null,null,null,null,null,null,null,null,null,null,null,null,null,null,null,null,null,null,null,null,null,null,null,null,null,null,null,null,null,null,null,null,null,null,null,null,null,null,null,null,null,null,null,null,null,null,null,null,null,null,null,null,null,null,null,null,null,null,null,null,null,null,null,null,null,null,null,null,null,null,null,null,null,null,null,null,null,null,null,null,null,null,456,0]
[null,null,null,null,null,null,null,null,null,null,null,null,null,null,null,null,null,null,null,null,null,null,null,null,null,null,null,null,null,null,null,null,null,null,null,null,null,null,null,null,null,null,null,null,null,null,null,null,null,null,null,null,null,null,null,null,null,null,null,null,null,null,null,null,null,null,null,null,null,null,null,null,null,null,null,null,null,null,null,null,null,null,null,null,null,null,null,null,null,null,null,null,null,null,null,null,null,null,null,null,457,0]
[null,null,null,null,null,null,null,null,null,null,null,null,null,null,null,null,null,null,null,null,null,null,null,null,null,null,null,null,null,null,null,null,null,null,null,null,null,null,null,null,null,null,null,null,null,null,null,null,null,null,null,null,null,null,null,null,null,null,null,null,null,null,null,null,null,null,null,null,null,null,null,null,null,null,null,null,null,null,null,null,null,null,null,null,null,null,null,null,null,null,null,null,null,null,null,null,null,null,null,null,458,60]
[null,null,null,null,null,null,null,null,null,null,null,null,null,null,null,null,null,null,null,null,null,null,null,null,null,null,null,null,null,null,null,null,null,null,null,null,null,null,null,null,null,null,null,null,null,null,null,null,null,null,null,null,null,null,null,null,null,null,null,null,null,null,null,null,null,null,null,null,null,null,null,null,null,null,null,null,null,null,null,null,null,null,null,null,null,null,null,null,null,null,null,null,null,null,null,null,null,null,null,null,459,60]
[null,null,null,null,null,null,null,null,null,null,null,null,null,null,null,null,null,null,null,null,null,null,null,null,null,null,null,null,null,null,null,null,null,null,null,null,null,null,null,null,null,null,null,null,null,null,null,null,null,null,null,null,null,null,null,null,null,null,null,null,null,null,null,null,null,null,null,null,null,null,null,null,null,null,null,null,null,null,null,null,null,null,null,null,null,null,null,null,null,null,null,null,null,null,null,null,null,null,null,null,460,200]
[null,null,null,null,null,null,null,null,null,null,null,null,null,null,null,null,null,null,null,null,null,null,null,null,null,null,null,null,null,null,null,null,null,null,null,null,null,null,null,null,null,null,null,null,null,null,null,null,null,null,null,null,null,null,null,null,null,null,null,null,null,null,null,null,null,null,null,null,null,null,null,null,null,null,null,null,null,null,null,null,null,null,null,null,null,null,null,null,null,null,null,null,null,null,null,null,null,null,null,null,461,240]
[null,null,null,null,null,null,null,null,null,null,null,null,null,null,null,null,null,null,null,null,null,null,null,null,null,null,null,null,null,null,null,null,null,null,null,null,null,null,null,null,null,null,null,null,null,null,null,null,null,null,null,null,null,null,null,null,null,null,null,null,null,null,null,null,null,null,null,null,null,null,null,null,null,null,null,null,null,null,null,null,null,null,null,null,null,null,null,null,null,null,null,null,null,null,null,null,null,null,null,null,551,0]
[null,null,null,null,null,null,null,null,null,null,null,null,null,null,null,null,null,null,null,null,null,null,null,null,null,null,null,null,null,null,null,null,null,null,null,null,null,null,null,null,null,null,null,null,null,null,null,null,null,null,null,null,null,null,null,null,null,null,null,null,null,null,null,null,null,null,null,null,null,null,null,null,null,null,null,null,null,null,null,null,null,null,null,null,null,null,null,null,null,null,null,null,null,null,null,null,null,null,null,null,650,0]
[null,null,null,null,null,null,null,null,null,null,null,null,null,null,null,null,null,null,null,null,null,null,null,null,null,null,null,null,null,null,null,null,null,null,null,null,null,null,null,null,null,null,null,null,null,null,null,null,null,null,null,null,null,null,null,null,null,null,null,null,null,null,null,null,null,null,null,null,null,null,null,null,null,null,null,null,null,null,null,null,null,null,null,null,null,null,null,null,null,null,null,null,null,null,null,null,null,null,null,null,651,40]
[null,null,null,null,null,null,null,null,null,null,null,null,null,null,null,null,null,null,null,null,null,null,null,null,null,null,null,null,null,null,null,null,null,null,null,null,null,null,null,null,null,null,null,null,null,null,null,null,null,null,null,null,null,null,null,null,null,null,null,null,null,null,null,null,null,null,null,null,null,null,null,null,null,null,null,null,null,null,null,null,null,null,null,null,null,null,null,null,null,null,null,null,null,null,null,null,null,null,null,null,652,200]
[null,null,null,null,null,null,null,null,null,null,null,null,null,null,null,null,null,null,null,null,null,null,null,null,null,null,null,null,null,null,null,null,null,null,null,null,null,null,null,null,null,null,null,null,null,null,null,null,null,null,null,null,null,null,null,null,null,null,null,null,null,null,null,null,null,null,null,null,null,null,null,null,null,null,null,null,null,null,null,null,null,null,null,null,null,null,null,null,null,null,null,null,null,null,null,null,null,null,null,null,653,140]
[null,null,null,null,null,null,null,null,null,null,null,null,null,null,null,null,null,null,null,null,null,null,null,null,null,null,null,null,null,null,null,null,null,null,null,null,null,null,null,null,null,null,null,null,null,null,null,null,null,null,null,null,null,null,null,null,null,null,null,null,null,null,null,null,null,null,null,null,null,null,null,null,null,null,null,null,null,null,null,null,null,null,null,null,null,null,null,null,null,null,null,null,null,null,null,null,null,null,null,null,654,200]
[null,null,null,null,null,null,null,null,null,null,null,null,null,null,null,null,null,null,null,null,null,null,null,null,null,null,null,null,null,null,null,null,null,null,null,null,null,null,null,null,null,null,null,null,null,null,null,null,null,null,null,null,null,null,null,null,null,null,null,null,null,null,null,null,null,null,null,null,null,null,null,null,null,null,null,null,null,null,null,null,null,null,null,null,null,null,null,null,null,null,null,null,null,null,null,null,null,null,null,null,655,40]
[null,null,null,null,null,null,null,null,null,null,null,null,null,null,null,null,null,null,null,null,null,null,null,null,null,null,null,null,null,null,null,null,null,null,null,null,null,null,null,null,null,null,null,null,null,null,null,null,null,null,null,null,null,null,null,null,null,null,null,null,null,null,null,null,null,null,null,null,null,null,null,null,null,null,null,null,null,null,null,null,null,null,null,null,null,null,null,null,null,null,null,null,null,null,null,null,null,null,null,null,656,140]
[null,null,null,null,null,null,null,null,null,null,null,null,null,null,null,null,null,null,null,null,null,null,null,null,null,null,null,null,null,null,null,null,null,null,null,null,null,null,null,null,null,null,null,null,null,null,null,null,null,null,null,null,null,null,null,null,null,null,null,null,null,null,null,null,null,null,null,null,null,null,null,null,null,null,null,null,null,null,null,null,null,null,null,null,null,null,null,null,null,null,null,null,null,null,null,null,null,null,null,null,657,140]
[null,null,null,null,null,null,null,null,null,null,null,null,null,null,null,null,null,null,null,null,null,null,null,null,null,null,null,null,null,null,null,null,null,null,null,null,null,null,null,null,null,null,null,null,null,null,null,null,null,null,null,null,null,null,null,null,null,null,null,null,null,null,null,null,null,null,null,null,null,null,null,null,null,null,null,null,null,null,null,null,null,null,null,null,null,null,null,null,null,null,null,null,null,null,null,null,null,null,null,null,658,220]
[null,null,null,null,null,null,null,null,null,null,null,null,null,null,null,null,null,null,null,null,null,null,null,null,null,null,null,null,null,null,null,null,null,null,null,null,null,null,null,null,null,null,null,null,null,null,null,null,null,null,null,null,null,null,null,null,null,null,null,null,null,null,null,null,null,null,null,null,null,null,null,null,null,null,null,null,null,null,null,null,null,null,null,null,null,null,null,null,null,null,null,null,null,null,null,null,null,null,null,null,659,280]
[null,null,null,null,null,null,null,null,null,null,null,null,null,null,null,null,null,null,null,null,null,null,null,null,null,null,null,null,null,null,null,null,null,null,null,null,null,null,null,null,null,null,null,null,null,null,null,null,null,null,null,null,null,null,null,null,null,null,null,null,null,null,null,null,null,null,null,null,null,null,null,null,null,null,null,null,null,null,null,null,null,null,null,null,null,null,null,null,null,null,null,null,null,null,null,null,null,null,null,null,660,160]
[null,null,null,null,null,null,null,null,null,null,null,null,null,null,null,null,null,null,null,null,null,null,null,null,null,null,null,null,null,null,null,null,null,null,null,null,null,null,null,null,null,null,null,null,null,null,null,null,null,null,null,null,null,null,null,null,null,null,null,null,null,null,null,null,null,null,null,null,null,null,null,null,null,null,null,null,null,null,null,null,null,null,null,null,null,null,null,null,null,null,null,null,null,null,null,null,null,null,null,null,661,40]
[null,null,null,null,null,null,null,null,null,null,null,null,null,null,null,null,null,null,null,null,null,null,null,null,null,null,null,null,null,null,null,null,null,null,null,null,null,null,null,null,null,null,null,null,null,null,null,null,null,null,null,null,null,null,null,null,null,null,null,null,null,null,null,null,null,null,null,null,null,null,null,null,null,null,null,null,null,null,null,null,null,null,null,null,null,null,null,null,null,null,null,null,null,null,null,null,null,null,null,null,662,0]
[null,null,null,null,null,null,null,null,null,null,null,null,null,null,null,null,null,null,null,null,null,null,null,null,null,null,null,null,null,null,null,null,null,null,null,null,null,null,null,null,null,null,null,null,null,null,null,null,null,null,null,null,null,null,null,null,null,null,null,null,null,null,null,null,null,null,null,null,null,null,null,null,null,null,null,null,null,null,null,null,null,null,null,null,null,null,null,null,null,null,null,null,null,null,null,null,null,null,null,null,750,0]
[null,null,null,null,null,null,null,null,null,null,null,null,null,null,null,null,null,null,null,null,null,null,null,null,null,null,null,null,null,null,null,null,null,null,null,null,null,null,null,null,null,null,null,null,null,null,null,null,null,null,null,null,null,null,null,null,null,null,null,null,null,null,null,null,null,null,null,null,null,null,null,null,null,null,null,null,null,null,null,null,null,null,null,null,null,null,null,null,null,null,null,null,null,null,null,null,null,null,null,null,751,40]
[null,null,null,null,null,null,null,null,null,null,null,null,null,null,null,null,null,null,null,null,null,null,null,null,null,null,null,null,null,null,null,null,null,null,null,null,null,null,null,null,null,null,null,null,null,null,null,null,null,null,null,null,null,null,null,null,null,null,null,null,null,null,null,null,null,null,null,null,null,null,null,null,null,null,null,null,null,null,null,null,null,null,null,null,null,null,null,null,null,null,null,null,null,null,null,null,null,null,null,null,752,220]
[null,null,null,null,null,null,null,null,null,null,null,null,null,null,null,null,null,null,null,null,null,null,null,null,null,null,null,null,null,null,null,null,null,null,null,null,null,null,null,null,null,null,null,null,null,null,null,null,null,null,null,null,null,null,null,null,null,null,null,null,null,null,null,null,null,null,null,null,null,null,null,null,null,null,null,null,null,null,null,null,null,null,null,null,null,null,null,null,null,null,null,null,null,null,null,null,null,null,null,null,753,280]
[null,null,null,null,null,null,null,null,null,null,null,null,null,null,null,null,null,null,null,null,null,null,null,null,null,null,null,null,null,null,null,null,null,null,null,null,null,null,null,null,null,null,null,null,null,null,null,null,null,null,null,null,null,null,null,null,null,null,null,null,null,null,null,null,null,null,null,null,null,null,null,null,null,null,null,null,null,null,null,null,null,null,null,null,null,null,null,null,null,null,null,null,null,null,null,null,null,null,null,null,754,80]
[null,null,null,null,null,null,null,null,null,null,null,null,null,null,null,null,null,null,null,null,null,null,null,null,null,null,null,null,null,null,null,null,null,null,null,null,null,null,null,null,null,null,null,null,null,null,null,null,null,null,null,null,null,null,null,null,null,null,null,null,null,null,null,null,null,null,null,null,null,null,null,null,null,null,null,null,null,null,null,null,null,null,null,null,null,null,null,null,null,null,null,null,null,null,null,null,null,null,null,null,755,60]
[null,null,null,null,null,null,null,null,null,null,null,null,null,null,null,null,null,null,null,null,null,null,null,null,null,null,null,null,null,null,null,null,null,null,null,null,null,null,null,null,null,null,null,null,null,null,null,null,null,null,null,null,null,null,null,null,null,null,null,null,null,null,null,null,null,null,null,null,null,null,null,null,null,null,null,null,null,null,null,null,null,null,null,null,null,null,null,null,null,null,null,null,null,null,null,null,null,null,null,null,756,260]
[null,null,null,null,null,null,null,null,null,null,null,null,null,null,null,null,null,null,null,null,null,null,null,null,null,null,null,null,null,null,null,null,null,null,null,null,null,null,null,null,null,null,null,null,null,null,null,null,null,null,null,null,null,null,null,null,null,null,null,null,null,null,null,null,null,null,null,null,null,null,null,null,null,null,null,null,null,null,null,null,null,null,null,null,null,null,null,null,null,null,null,null,null,null,null,null,null,null,null,null,757,260]
[null,null,null,null,null,null,null,null,null,null,null,null,null,null,null,null,null,null,null,null,null,null,null,null,null,null,null,null,null,null,null,null,null,null,null,null,null,null,null,null,null,null,null,null,null,null,null,null,null,null,null,null,null,null,null,null,null,null,null,null,null,null,null,null,null,null,null,null,null,null,null,null,null,null,null,null,null,null,null,null,null,null,null,null,null,null,null,null,null,null,null,null,null,null,null,null,null,null,null,null,758,280]
[null,null,null,null,null,null,null,null,null,null,null,null,null,null,null,null,null,null,null,null,null,null,null,null,null,null,null,null,null,null,null,null,null,null,null,null,null,null,null,null,null,null,null,null,null,null,null,null,null,null,null,null,null,null,null,null,null,null,null,null,null,null,null,null,null,null,null,null,null,null,null,null,null,null,null,null,null,null,null,null,null,null,null,null,null,null,null,null,null,null,null,null,null,null,null,null,null,null,null,null,850,0]
[null,null,null,null,null,null,null,null,null,null,null,null,null,null,null,null,null,null,null,null,null,null,null,null,null,null,null,null,null,null,null,null,null,null,null,null,null,null,null,null,null,null,null,null,null,null,null,null,null,null,null,null,null,null,null,null,null,null,null,null,null,null,null,null,null,null,null,null,null,null,null,null,null,null,null,null,null,null,null,null,null,null,null,null,null,null,null,null,null,null,null,null,null,null,null,null,null,null,null,null,851,0]
[null,null,null,null,null,null,null,null,null,null,null,null,null,null,null,null,null,null,null,null,null,null,null,null,null,null,null,null,null,null,null,null,null,null,null,null,null,null,null,null,null,null,null,null,null,null,null,null,null,null,null,null,null,null,null,null,null,null,null,null,null,null,null,null,null,null,null,null,null,null,null,null,null,null,null,null,null,null,null,null,null,null,null,null,null,null,null,null,null,null,null,null,null,null,null,null,null,null,null,null,852,0]
[null,null,null,null,null,null,null,null,null,null,null,null,null,null,null,null,null,null,null,null,null,null,null,null,null,null,null,null,null,null,null,null,null,null,null,null,null,null,null,null,null,null,null,null,null,null,null,null,null,null,null,null,null,null,null,null,null,null,null,null,null,null,null,null,null,null,null,null,null,null,null,null,null,null,null,null,null,null,null,null,null,null,null,null,null,null,null,null,null,null,null,null,null,null,null,null,null,null,null,null,853,0]
[null,null,null,null,null,null,null,null,null,null,null,null,null,null,null,null,null,null,null,null,null,null,null,null,null,null,null,null,null,null,null,null,null,null,null,null,null,null,null,null,null,null,null,null,null,null,null,null,null,null,null,null,null,null,null,null,null,null,null,null,null,null,null,null,null,null,null,null,null,null,null,null,null,null,null,null,null,null,null,null,null,null,null,null,null,null,null,null,null,null,null,null,null,null,null,null,null,null,null,null,854,0]
[null,null,null,null,null,null,null,null,null,null,null,null,null,null,null,null,null,null,null,null,null,null,null,null,null,null,null,null,null,null,null,null,null,null,null,null,null,null,null,null,null,null,null,null,null,null,null,null,null,null,null,null,null,null,null,null,null,null,null,null,null,null,null,null,null,null,null,null,null,null,null,null,null,null,null,null,null,null,null,null,null,null,null,null,null,null,null,null,null,null,null,null,null,null,null,null,null,null,null,null,855,0]
[null,null,null,null,null,null,null,null,null,null,null,null,null,null,null,null,null,null,null,null,null,null,null,null,null,null,null,null,null,null,null,null,null,null,null,null,null,null,null,null,null,null,null,null,null,null,null,null,null,null,null,null,null,null,null,null,null,null,null,null,null,null,null,null,null,null,null,null,null,null,null,null,null,null,null,null,null,null,null,null,null,null,null,null,null,null,null,null,null,null,null,null,null,null,null,null,null,null,null,null,856,60]
[null,null,null,null,null,null,null,null,null,null,null,null,null,null,null,null,null,null,null,null,null,null,null,null,null,null,null,null,null,null,null,null,null,null,null,null,null,null,null,null,null,null,null,null,null,null,null,null,null,null,null,null,null,null,null,null,null,null,null,null,null,null,null,null,null,null,null,null,null,null,null,null,null,null,null,null,null,null,null,null,null,null,null,null,null,null,null,null,null,null,null,null,null,null,null,null,null,null,null,null,857,80]
[null,null,null,null,null,null,null,null,null,null,null,null,null,null,null,null,null,null,null,null,null,null,null,null,null,null,null,null,null,null,null,null,null,null,null,null,null,null,null,null,null,null,null,null,null,null,null,null,null,null,null,null,null,null,null,null,null,null,null,null,null,null,null,null,null,null,null,null,null,null,null,null,null,null,null,null,null,null,null,null,null,null,null,null,null,null,null,null,null,null,null,null,null,null,null,null,null,null,null,null,858,100]
[null,null,null,null,null,null,null,null,null,null,null,null,null,null,null,null,null,null,null,null,null,null,null,null,null,null,null,null,null,null,null,null,null,null,null,null,null,null,null,null,null,null,null,null,null,null,null,null,null,null,null,null,null,null,null,null,null,null,null,null,null,null,null,null,null,null,null,null,null,null,null,null,null,null,null,null,null,null,null,null,null,null,null,null,null,null,null,null,null,null,null,null,null,null,null,null,null,null,null,null,859,180]
[null,null,null,null,null,null,null,null,null,null,null,null,null,null,null,null,null,null,null,null,null,null,null,null,null,null,null,null,null,null,null,null,null,null,null,null,null,null,null,null,null,null,null,null,null,null,null,null,null,null,null,null,null,null,null,null,null,null,null,null,null,null,null,null,null,null,null,null,null,null,null,null,null,null,null,null,null,null,null,null,null,null,null,null,null,null,null,null,null,null,null,null,null,null,null,null,null,null,null,null,860,260]
[null,null,null,null,null,null,null,null,null,null,null,null,null,null,null,null,null,null,null,null,null,null,null,null,null,null,null,null,null,null,null,null,null,null,null,null,null,null,null,null,null,null,null,null,null,null,null,null,null,null,null,null,null,null,null,null,null,null,null,null,null,null,null,null,null,null,null,null,null,null,null,null,null,null,null,null,null,null,null,null,null,null,null,null,null,null,null,null,null,null,null,null,null,null,null,null,null,null,null,null,861,240]
[null,null,null,null,null,null,null,null,null,null,null,null,null,null,null,null,null,null,null,null,null,null,null,null,null,null,null,null,null,null,null,null,null,null,null,null,null,null,null,null,null,null,null,null,null,null,null,null,null,null,null,null,null,null,null,null,null,null,null,null,null,null,null,null,null,null,null,null,null,null,null,null,null,null,null,null,null,null,null,null,null,null,null,null,null,null,null,null,null,null,null,null,null,null,null,null,null,null,null,null,862,280]
[null,null,null,null,null,null,null,null,null,null,null,null,null,null,null,null,null,null,null,null,null,null,null,null,null,null,null,null,null,null,null,null,null,null,null,null,null,null,null,null,null,null,null,null,null,null,null,null,null,null,null,null,null,null,null,null,null,null,null,null,null,null,null,null,null,null,null,null,null,null,null,null,null,null,null,null,null,null,null,null,null,null,null,null,null,null,null,null,null,null,null,null,null,null,null,null,null,null,null,null,863,280]
[null,null,null,null,null,null,null,null,null,null,null,null,null,null,null,null,null,null,null,null,null,null,null,null,null,null,null,null,null,null,null,null,null,null,null,null,null,null,null,null,null,null,null,null,null,null,null,null,null,null,null,null,null,null,null,null,null,null,null,null,null,null,null,null,null,null,null,null,null,null,null,null,null,null,null,null,null,null,null,null,null,null,null,null,null,null,null,null,null,null,null,null,null,null,null,null,null,null,null,null,864,280]
[null,null,null,null,null,null,null,null,null,null,null,null,null,null,null,null,null,null,null,null,null,null,null,null,null,null,null,null,null,null,null,null,null,null,null,null,null,null,null,null,null,null,null,null,null,null,null,null,null,null,null,null,null,null,null,null,null,null,null,null,null,null,null,null,null,null,null,null,null,null,null,null,null,null,null,null,null,null,null,null,null,null,null,null,null,null,null,null,null,null,null,null,null,null,null,null,null,null,null,null,865,280]
[null,null,null,null,null,null,null,null,null,null,null,null,null,null,null,null,null,null,null,null,null,null,null,null,null,null,null,null,null,null,null,null,null,null,null,null,null,null,null,null,null,null,null,null,null,null,null,null,null,null,null,null,null,null,null,null,null,null,null,null,null,null,null,null,null,null,null,null,null,null,null,null,null,null,null,null,null,null,null,null,null,null,null,null,null,null,null,null,null,null,null,null,null,null,null,null,null,null,null,null,866,280]
[null,null,null,null,null,null,null,null,null,null,null,null,null,null,null,null,null,null,null,null,null,null,null,null,null,null,null,null,null,null,null,null,null,null,null,null,null,null,null,null,null,null,null,null,null,null,null,null,null,null,null,null,null,null,null,null,null,null,null,null,null,null,null,null,null,null,null,null,null,null,null,null,null,null,null,null,null,null,null,null,null,null,null,null,null,null,null,null,null,null,null,null,null,null,null,null,null,null,null,null,867,280]
[null,null,null,null,null,null,null,null,null,null,null,null,null,null,null,null,null,null,null,null,null,null,null,null,null,null,null,null,null,null,null,null,null,null,null,null,null,null,null,null,null,null,null,null,null,null,null,null,null,null,null,null,null,null,null,null,null,null,null,null,null,null,null,null,null,null,null,null,null,null,null,null,null,null,null,null,null,null,null,null,null,null,null,null,null,null,null,null,null,null,null,null,null,null,null,null,null,null,null,null,868,280]
[null,null,null,null,null,null,null,null,null,null,null,null,null,null,null,null,null,null,null,null,null,null,null,null,null,null,null,null,null,null,null,null,null,null,null,null,null,null,null,null,null,null,null,null,null,null,null,null,null,null,null,null,null,null,null,null,null,null,null,null,null,null,null,null,null,null,null,null,null,null,null,null,null,null,null,null,null,null,null,null,null,null,null,null,null,null,null,null,null,null,null,null,null,null,null,null,null,null,null,null,869,280]
[null,null,null,null,null,null,null,null,null,null,null,null,null,null,null,null,null,null,null,null,null,null,null,null,null,null,null,null,null,null,null,null,null,null,null,null,null,null,null,null,null,null,null,null,null,null,null,null,null,null,null,null,null,null,null,null,null,null,null,null,null,null,null,null,null,null,null,null,null,null,null,null,null,null,null,null,null,null,null,null,null,null,null,null,null,null,null,null,null,null,null,null,null,null,null,null,null,null,null,null,870,280]
[null,null,null,null,null,null,null,null,null,null,null,null,null,null,null,null,null,null,null,null,null,null,null,null,null,null,null,null,null,null,null,null,null,null,null,null,null,null,null,null,null,null,null,null,null,null,null,null,null,null,null,null,null,null,null,null,null,null,null,null,null,null,null,null,null,null,null,null,null,null,null,null,null,null,null,null,null,null,null,null,null,null,null,null,null,null,null,null,null,null,null,null,null,null,null,null,null,null,null,null,871,280]
[null,null,null,null,null,null,null,null,null,null,null,null,null,null,null,null,null,null,null,null,null,null,null,null,null,null,null,null,null,null,null,null,null,null,null,null,null,null,null,null,null,null,null,null,null,null,null,null,null,null,null,null,null,null,null,null,null,null,null,null,null,null,null,null,null,null,null,null,null,null,null,null,null,null,null,null,null,null,null,null,null,null,null,null,null,null,null,null,null,null,null,null,null,null,null,null,null,null,null,null,872,280]
[null,null,null,null,null,null,null,null,null,null,null,null,null,null,null,null,null,null,null,null,null,null,null,null,null,null,null,null,null,null,null,null,null,null,null,null,null,null,null,null,null,null,null,null,null,null,null,null,null,null,null,null,null,null,null,null,null,null,null,null,null,null,null,null,null,null,null,null,null,null,null,null,null,null,null,null,null,null,null,null,null,null,null,null,null,null,null,null,null,null,null,null,null,null,null,null,null,null,null,null,873,280]
[null,null,null,null,null,null,null,null,null,null,null,null,null,null,null,null,null,null,null,null,null,null,null,null,null,null,null,null,null,null,null,null,null,null,null,null,null,null,null,null,null,null,null,null,null,null,null,null,null,null,null,null,null,null,null,null,null,null,null,null,null,null,null,null,null,null,null,null,null,null,null,null,null,null,null,null,null,null,null,null,null,null,null,null,null,null,null,null,null,null,null,null,null,null,null,null,null,null,null,null,874,280]
[null,null,null,null,null,null,null,null,null,null,null,null,null,null,null,null,null,null,null,null,null,null,null,null,null,null,null,null,null,null,null,null,null,null,null,null,null,null,null,null,null,null,null,null,null,null,null,null,null,null,null,null,null,null,null,null,null,null,null,null,null,null,null,null,null,null,null,null,null,null,null,null,null,null,null,null,null,null,null,null,null,null,null,null,null,null,null,null,null,null,null,null,null,null,null,null,null,null,null,null,875,280]
[null,null,null,null,null,null,null,null,null,null,null,null,null,null,null,null,null,null,null,null,null,null,null,null,null,null,null,null,null,null,null,null,null,null,null,null,null,null,null,null,null,null,null,null,null,null,null,null,null,null,null,null,null,null,null,null,null,null,null,null,null,null,null,null,null,null,null,null,null,null,null,null,null,null,null,null,null,null,null,null,null,null,null,null,null,null,null,null,null,null,null,null,null,null,null,null,null,null,null,null,876,280]
[null,null,null,null,null,null,null,null,null,null,null,null,null,null,null,null,null,null,null,null,null,null,null,null,null,null,null,null,null,null,null,null,null,null,null,null,null,null,null,null,null,null,null,null,null,null,null,null,null,null,null,null,null,null,null,null,null,null,null,null,null,null,null,null,null,null,null,null,null,null,null,null,null,null,null,null,null,null,null,null,null,null,null,null,null,null,null,null,null,null,null,null,null,null,null,null,null,null,null,null,877,280]
[null,null,null,null,null,null,null,null,null,null,null,null,null,null,null,null,null,null,null,null,null,null,null,null,null,null,null,null,null,null,null,null,null,null,null,null,null,null,null,null,null,null,null,null,null,null,null,null,null,null,null,null,null,null,null,null,null,null,null,null,null,null,null,null,null,null,null,null,null,null,null,null,null,null,null,null,null,null,null,null,null,null,null,null,null,null,null,null,null,null,null,null,null,null,null,null,null,null,null,null,878,280]
[null,null,null,null,null,null,null,null,null,null,null,null,null,null,null,null,null,null,null,null,null,null,null,null,null,null,null,null,null,null,null,null,null,null,null,null,null,null,null,null,null,null,null,null,null,null,null,null,null,null,null,null,null,null,null,null,null,null,null,null,null,null,null,null,null,null,null,null,null,null,null,null,null,null,null,null,null,null,null,null,null,null,null,null,null,null,null,null,null,null,null,null,null,null,null,null,null,null,null,null,879,280]
[null,null,null,null,null,null,null,null,null,null,null,null,null,null,null,null,null,null,null,null,null,null,null,null,null,null,null,null,null,null,null,null,null,null,null,null,null,null,null,null,null,null,null,null,null,null,null,null,null,null,null,null,null,null,null,null,null,null,null,null,null,null,null,null,null,null,null,null,null,null,null,null,null,null,null,null,null,null,null,null,null,null,null,null,null,null,null,null,null,null,null,null,null,null,null,null,null,null,null,null,880,280]
[null,null,null,null,null,null,null,null,null,null,null,null,null,null,null,null,null,null,null,null,null,null,null,null,null,null,null,null,null,null,null,null,null,null,null,null,null,null,null,null,null,null,null,null,null,null,null,null,null,null,null,null,null,null,null,null,null,null,null,null,null,null,null,null,null,null,null,null,null,null,null,null,null,null,null,null,null,null,null,null,null,null,null,null,null,null,null,null,null,null,null,null,null,null,null,null,null,null,null,null,881,280]
[null,null,null,null,null,null,null,null,null,null,null,null,null,null,null,null,null,null,null,null,null,null,null,null,null,null,null,null,null,null,null,null,null,null,null,null,null,null,null,null,null,null,null,null,null,null,null,null,null,null,null,null,null,null,null,null,null,null,null,null,null,null,null,null,null,null,null,null,null,null,null,null,null,null,null,null,null,null,null,null,null,null,null,null,null,null,null,null,null,null,null,null,null,null,null,null,null,null,null,null,882,280]
[null,null,null,null,null,null,null,null,null,null,null,null,null,null,null,null,null,null,null,null,null,null,null,null,null,null,null,null,null,null,null,null,null,null,null,null,null,null,null,null,null,null,null,null,null,null,null,null,null,null,null,null,null,null,null,null,null,null,null,null,null,null,null,null,null,null,null,null,null,null,null,null,null,null,null,null,null,null,null,null,null,null,null,null,null,null,null,null,null,null,null,null,null,null,null,null,null,null,null,null,883,280]
[null,null,null,null,null,null,null,null,null,null,null,null,null,null,null,null,null,null,null,null,null,null,null,null,null,null,null,null,null,null,null,null,null,null,null,null,null,null,null,null,null,null,null,null,null,null,null,null,null,null,null,null,null,null,null,null,null,null,null,null,null,null,null,null,null,null,null,null,null,null,null,null,null,null,null,null,null,null,null,null,null,null,null,null,null,null,null,null,null,null,null,null,null,null,null,null,null,null,null,null,884,280]
[null,null,null,null,null,null,null,null,null,null,null,null,null,null,null,null,null,null,null,null,null,null,null,null,null,null,null,null,null,null,null,null,null,null,null,null,null,null,null,null,null,null,null,null,null,null,null,null,null,null,null,null,null,null,null,null,null,null,null,null,null,null,null,null,null,null,null,null,null,null,null,null,null,null,null,null,null,null,null,null,null,null,null,null,null,null,null,null,null,null,null,null,null,null,null,null,null,null,null,null,885,280]
[null,null,null,null,null,null,null,null,null,null,null,null,null,null,null,null,null,null,null,null,null,null,null,null,null,null,null,null,null,null,null,null,null,null,null,null,null,null,null,null,null,null,null,null,null,null,null,null,null,null,null,null,null,null,null,null,null,null,null,null,null,null,null,null,null,null,null,null,null,null,null,null,null,null,null,null,null,null,null,null,null,null,null,null,null,null,null,null,null,null,null,null,null,null,null,null,null,null,null,null,886,280]
[null,null,null,null,null,null,null,null,null,null,null,null,null,null,null,null,null,null,null,null,null,null,null,null,null,null,null,null,null,null,null,null,null,null,null,null,null,null,null,null,null,null,null,null,null,null,null,null,null,null,null,null,null,null,null,null,null,null,null,null,null,null,null,null,null,null,null,null,null,null,null,null,null,null,null,null,null,null,null,null,null,null,null,null,null,null,null,null,null,null,null,null,null,null,null,null,null,null,null,null,887,280]
[null,null,null,null,null,null,null,null,null,null,null,null,null,null,null,null,null,null,null,null,null,null,null,null,null,null,null,null,null,null,null,null,null,null,null,null,null,null,null,null,null,null,null,null,null,null,null,null,null,null,null,null,null,null,null,null,null,null,null,null,null,null,null,null,null,null,null,null,null,null,null,null,null,null,null,null,null,null,null,null,null,null,null,null,null,null,null,null,null,null,null,null,null,null,null,null,null,null,null,null,888,280]
[null,null,null,null,null,null,null,null,null,null,null,null,null,null,null,null,null,null,null,null,null,null,null,null,null,null,null,null,null,null,null,null,null,null,null,null,null,null,null,null,null,null,null,null,null,null,null,null,null,null,null,null,null,null,null,null,null,null,null,null,null,null,null,null,null,null,null,null,null,null,null,null,null,null,null,null,null,null,null,null,null,null,null,null,null,null,null,null,null,null,null,null,null,null,null,null,null,null,null,null,889,240]
[null,null,null,null,null,null,null,null,null,null,null,null,null,null,null,null,null,null,null,null,null,null,null,null,null,null,null,null,null,null,null,null,null,null,null,null,null,null,null,null,null,null,null,null,null,null,null,null,null,null,null,null,null,null,null,null,null,null,null,null,null,null,null,null,null,null,null,null,null,null,null,null,null,null,null,null,null,null,null,null,null,null,null,null,null,null,null,null,null,null,null,null,null,null,null,null,null,null,null,null,890,280]
[null,null,null,null,null,null,null,null,null,null,null,null,null,null,null,null,null,null,null,null,null,null,null,null,null,null,null,null,null,null,null,null,null,null,null,null,null,null,null,null,null,null,null,null,null,null,null,null,null,null,null,null,null,null,null,null,null,null,null,null,null,null,null,null,null,null,null,null,null,null,null,null,null,null,null,null,null,null,null,null,null,null,null,null,null,null,null,null,null,null,null,null,null,null,null,null,null,null,null,null,891,280]
[null,null,null,null,null,null,null,null,null,null,null,null,null,null,null,null,null,null,null,null,null,null,null,null,null,null,null,null,null,null,null,null,null,null,null,null,null,null,null,null,null,null,null,null,null,null,null,null,null,null,null,null,null,null,null,null,null,null,null,null,null,null,null,null,null,null,null,null,null,null,null,null,null,null,null,null,null,null,null,null,null,null,null,null,null,null,null,null,null,null,null,null,null,null,null,null,null,null,null,null,892,280]
[null,null,null,null,null,null,null,null,null,null,null,null,null,null,null,null,null,null,null,null,null,null,null,null,null,null,null,null,null,null,null,null,null,null,null,null,null,null,null,null,null,null,null,null,null,null,null,null,null,null,null,null,null,null,null,null,null,null,null,null,null,null,null,null,null,null,null,null,null,null,null,null,null,null,null,null,null,null,null,null,null,null,null,null,null,null,null,null,null,null,null,null,null,null,null,null,null,null,null,null,950,280]
[null,null,null,null,null,null,null,null,null,null,null,null,null,null,null,null,null,null,null,null,null,null,null,null,null,null,null,null,null,null,null,null,null,null,null,null,null,null,null,null,null,null,null,null,null,null,null,null,null,null,null,null,null,null,null,null,null,null,null,null,null,null,null,null,null,null,null,null,null,null,null,null,null,null,null,null,null,null,null,null,null,null,null,null,null,null,null,null,null,null,null,null,null,null,null,null,null,null,null,null,951,280]
[null,null,null,null,null,null,null,null,null,null,null,null,null,null,null,null,null,null,null,null,null,null,null,null,null,null,null,null,null,null,null,null,null,null,null,null,null,null,null,null,null,null,null,null,null,null,null,null,null,null,null,null,null,null,null,null,null,null,null,null,null,null,null,null,null,null,null,null,null,null,null,null,null,null,null,null,null,null,null,null,null,null,null,null,null,null,null,null,null,null,null,null,null,null,null,null,null,null,null,null,952,280]
[null,null,null,null,null,null,null,null,null,null,null,null,null,null,null,null,null,null,null,null,null,null,null,null,null,null,null,null,null,null,null,null,null,null,null,null,null,null,null,null,null,null,null,null,null,null,null,null,null,null,null,null,null,null,null,null,null,null,null,null,null,null,null,null,null,null,null,null,null,null,null,null,null,null,null,null,null,null,null,null,null,null,null,null,null,null,null,null,null,null,null,null,null,null,null,null,null,null,null,null,953,280]
[null,null,null,null,null,null,null,null,null,null,null,null,null,null,null,null,null,null,null,null,null,null,null,null,null,null,null,null,null,null,null,null,null,null,null,null,null,null,null,null,null,null,null,null,null,null,null,null,null,null,null,null,null,null,null,null,null,null,null,null,null,null,null,null,null,null,null,null,null,null,null,null,null,null,null,null,null,null,null,null,null,null,null,null,null,null,null,null,null,null,null,null,null,null,null,null,null,null,null,null,954,280]
[null,null,null,null,null,null,null,null,null,null,null,null,null,null,null,null,null,null,null,null,null,null,null,null,null,null,null,null,null,null,null,null,null,null,null,null,null,null,null,null,null,null,null,null,null,null,null,null,null,null,null,null,null,null,null,null,null,null,null,null,null,null,null,null,null,null,null,null,null,null,null,null,null,null,null,null,null,null,null,null,null,null,null,null,null,null,null,null,null,null,null,null,null,null,null,null,null,null,null,null,955,280]
[null,null,null,null,null,null,null,null,null,null,null,null,null,null,null,null,null,null,null,null,null,null,null,null,null,null,null,null,null,null,null,null,null,null,null,null,null,null,null,null,null,null,null,null,null,null,null,null,null,null,null,null,null,null,null,null,null,null,null,null,null,null,null,null,null,null,null,null,null,null,null,null,null,null,null,null,null,null,null,null,null,null,null,null,null,null,null,null,null,null,null,null,null,null,null,null,null,null,null,null,956,280]
[null,null,null,null,null,null,null,null,null,null,null,null,null,null,null,null,null,null,null,null,null,null,null,null,null,null,null,null,null,null,null,null,null,null,null,null,null,null,null,null,null,null,null,null,null,null,null,null,null,null,null,null,null,null,null,null,null,null,null,null,null,null,null,null,null,null,null,null,null,null,null,null,null,null,null,null,null,null,null,null,null,null,null,null,null,null,null,null,null,null,null,null,null,null,null,null,null,null,null,null,957,280]
[null,null,null,null,null,null,null,null,null,null,null,null,null,null,null,null,null,null,null,null,null,null,null,null,null,null,null,null,null,null,null,null,null,null,null,null,null,null,null,null,null,null,null,null,null,null,null,null,null,null,null,null,null,null,null,null,null,null,null,null,null,null,null,null,null,null,null,null,null,null,null,null,null,null,null,null,null,null,null,null,null,null,null,null,null,null,null,null,null,null,null,null,null,null,null,null,null,null,null,null,960,280]
[null,null,null,null,null,null,null,null,null,null,null,null,null,null,null,null,null,null,null,null,null,null,null,null,null,null,null,null,null,null,null,null,null,null,null,null,null,null,null,null,null,null,null,null,null,null,null,null,null,null,null,null,null,null,null,null,null,null,null,null,null,null,null,null,null,null,null,null,null,null,null,null,null,null,null,null,null,null,null,null,null,null,null,null,null,null,null,null,null,null,null,null,null,null,null,null,null,null,null,null,961,280]
[null,null,null,null,null,null,null,null,null,null,null,null,null,null,null,null,null,null,null,null,null,null,null,null,null,null,null,null,null,null,null,null,null,null,null,null,null,null,null,null,null,null,null,null,null,null,null,null,null,null,null,null,null,null,null,null,null,null,null,null,null,null,null,null,null,null,null,null,null,null,null,null,null,null,null,null,null,null,null,null,null,null,null,null,null,null,null,null,null,null,null,null,null,null,null,null,null,null,null,null,962,280]
[null,null,null,null,null,null,null,null,null,null,null,null,null,null,null,null,null,null,null,null,null,null,null,null,null,null,null,null,null,null,null,null,null,null,null,null,null,null,null,null,null,null,null,null,null,null,null,null,null,null,null,null,null,null,null,null,null,null,null,null,null,null,null,null,null,null,null,null,null,null,null,null,null,null,null,null,null,null,null,null,null,null,null,null,null,null,null,null,null,null,null,null,null,null,null,null,null,null,null,null,963,280]
[null,null,null,null,null,null,null,null,null,null,null,null,null,null,null,null,null,null,null,null,null,null,null,null,null,null,null,null,null,null,null,null,null,null,null,null,null,null,null,null,null,null,null,null,null,null,null,null,null,null,null,null,null,null,null,null,null,null,null,null,null,null,null,null,null,null,null,null,null,null,null,null,null,null,null,null,null,null,null,null,null,null,null,null,null,null,null,null,null,null,null,null,null,null,null,null,null,null,null,null,964,280]
[null,null,null,null,null,null,null,null,null,null,null,null,null,null,null,null,null,null,null,null,null,null,null,null,null,null,null,null,null,null,null,null,null,null,null,null,null,null,null,null,null,null,null,null,null,null,null,null,null,null,null,null,null,null,null,null,null,null,null,null,null,null,null,null,null,null,null,null,null,null,null,null,null,null,null,null,null,null,null,null,null,null,null,null,null,null,null,null,null,null,null,null,null,null,null,null,null,null,null,null,965,280]
[null,null,null,null,null,null,null,null,null,null,null,null,null,null,null,null,null,null,null,null,null,null,null,null,null,null,null,null,null,null,null,null,null,null,null,null,null,null,null,null,null,null,null,null,null,null,null,null,null,null,null,null,null,null,null,null,null,null,null,null,null,null,null,null,null,null,null,null,null,null,null,null,null,null,null,null,null,null,null,null,null,null,null,null,null,null,null,null,null,null,null,null,null,null,null,null,null,null,null,null,966,280]
[null,null,null,null,null,null,null,null,null,null,null,null,null,null,null,null,null,null,null,null,null,null,null,null,null,null,null,null,null,null,null,null,null,null,null,null,null,null,null,null,null,null,null,null,null,null,null,null,null,null,null,null,null,null,null,null,null,null,null,null,null,null,null,null,null,null,null,null,null,null,null,null,null,null,null,null,null,null,null,null,null,null,null,null,null,null,null,null,null,null,null,null,null,null,null,null,null,null,null,null,967,280]
[null,null,null,null,null,null,null,null,null,null,null,null,null,null,null,null,null,null,null,null,null,null,null,null,null,null,null,null,null,null,null,null,null,null,null,null,null,null,null,null,null,null,null,null,null,null,null,null,null,null,null,null,null,null,null,null,null,null,null,null,null,null,null,null,null,null,null,null,null,null,null,null,null,null,null,null,null,null,null,null,null,null,null,null,null,null,null,null,null,null,null,null,null,null,null,null,null,null,null,null,970,280]
[null,null,null,null,null,null,null,null,null,null,null,null,null,null,null,null,null,null,null,null,null,null,null,null,null,null,null,null,null,null,null,null,null,null,null,null,null,null,null,null,null,null,null,null,null,null,null,null,null,null,null,null,null,null,null,null,null,null,null,null,null,null,null,null,null,null,null,null,null,null,null,null,null,null,null,null,null,null,null,null,null,null,null,null,null,null,null,null,null,null,null,null,null,null,null,null,null,null,null,null,980,280]
[null,null,null,null,null,null,null,null,null,null,null,null,null,null,null,null,null,null,null,null,null,null,null,null,null,null,null,null,null,null,null,null,null,null,null,null,null,null,null,null,null,null,null,null,null,null,null,null,null,null,null,null,null,null,null,null,null,null,null,null,null,null,null,null,null,null,null,null,null,null,null,null,null,null,null,null,null,null,null,null,null,null,null,null,null,null,null,null,null,null,null,null,null,null,null,null,null,null,null,null,981,280]
[null,null,null,null,null,null,null,null,null,null,null,null,null,null,null,null,null,null,null,null,null,null,null,null,null,null,null,null,null,null,null,null,null,null,null,null,null,null,null,null,null,null,null,null,null,null,null,null,null,null,null,null,null,null,null,null,null,null,null,null,null,null,null,null,null,null,null,null,null,null,null,null,null,null,null,null,null,null,null,null,null,null,null,null,null,null,null,null,null,null,null,null,null,null,null,null,null,null,null,null,982,280]
[null,null,null,null,null,null,null,null,null,null,null,null,null,null,null,null,null,null,null,null,null,null,null,null,null,null,null,null,null,null,null,null,null,null,null,null,null,null,null,null,null,null,null,null,null,null,null,null,null,null,null,null,null,null,null,null,null,null,null,null,null,null,null,null,null,null,null,null,null,null,null,null,null,null,null,null,null,null,null,null,null,null,null,null,null,null,null,null,null,null,null,null,null,null,null,null,null,null,null,null,983,280]
[null,null,null,null,null,null,null,null,null,null,null,null,null,null,null,null,null,null,null,null,null,null,null,null,null,null,null,null,null,null,null,null,null,null,null,null,null,null,null,null,null,null,null,null,null,null,null,null,null,null,null,null,null,null,null,null,null,null,null,null,null,null,null,null,null,null,null,null,null,null,null,null,null,null,null,null,null,null,null,null,null,null,null,null,null,null,null,null,null,null,null,null,null,null,null,null,null,null,null,null,984,280]
[null,null,null,null,null,null,null,null,null,null,null,null,null,null,null,null,null,null,null,null,null,null,null,null,null,null,null,null,null,null,null,null,null,null,null,null,null,null,null,null,null,null,null,null,null,null,null,null,null,null,null,null,null,null,null,null,null,null,null,null,null,null,null,null,null,null,null,null,null,null,null,null,null,null,null,null,null,null,null,null,null,null,null,null,null,null,null,null,null,null,null,null,null,null,null,null,null,null,null,null,985,280]
[null,null,null,null,null,null,null,null,null,null,null,null,null,null,null,null,null,null,null,null,null,null,null,null,null,null,null,null,null,null,null,null,null,null,null,null,null,null,null,null,null,null,null,null,null,null,null,null,null,null,null,null,null,null,null,null,null,null,null,null,null,null,null,null,null,null,null,null,null,null,null,null,null,null,null,null,null,null,null,null,null,null,null,null,null,null,null,null,null,null,null,null,null,null,null,null,null,null,null,null,986,280]
[null,null,null,null,null,null,null,null,null,null,null,null,null,null,null,null,null,null,null,null,null,null,null,null,null,null,null,null,null,null,null,null,null,null,null,null,null,null,null,null,null,null,null,null,null,null,null,null,null,null,null,null,null,null,null,null,null,null,null,null,null,null,null,null,null,null,null,null,null,null,null,null,null,null,null,null,null,null,null,null,null,null,null,null,null,null,null,null,null,null,null,null,null,null,null,null,null,null,null,null,987,280]
[null,null,null,null,null,null,null,null,null,null,null,null,null,null,null,null,null,null,null,null,null,null,null,null,null,null,null,null,null,null,null,null,null,null,null,null,null,null,null,null,null,null,null,null,null,null,null,null,null,null,null,null,null,null,null,null,null,null,null,null,null,null,null,null,null,null,null,null,null,null,null,null,null,null,null,null,null,null,null,null,null,null,null,null,null,null,null,null,null,null,null,null,null,null,null,null,null,null,null,null,990,280]
[null,null,null,null,null,null,null,null,null,null,null,null,null,null,null,null,null,null,null,null,null,null,null,null,null,null,null,null,null,null,null,null,null,null,null,null,null,null,null,null,null,null,null,null,null,null,null,null,null,null,null,null,null,null,null,null,null,null,null,null,null,null,null,null,null,null,null,null,null,null,null,null,null,null,null,null,null,null,null,null,null,null,null,null,null,null,null,null,null,null,null,null,null,null,null,null,null,null,null,null,995,0]

{"sheet":"Calcul - PEEOL - Usine ","index":3,"n_rows":169,"n_cols":102,"rows_kept":169,"cut":false,"hidden":true,"merged":[[7,0,7,5],[7,6,7,8],[8,6,8,8],[10,0,10,5],[0,0,0,8],[1,0,1,8],[2,0,2,6],[2,7,2,8],[3,0,3,5],[3,6,3,8],[4,0,4,8],[5,0,5,5],[5,6,5,8],[6,0,6,5],[6,6,6,8],[8,0,8,5],[9,0,9,4],[34,0,34,5],[35,0,35,8],[18,0,18,5],[26,0,26,5],[29,0,29,5],[30,0,30,5],[31,0,31,5],[33,0,33,8],[24,0,24,5],[11,0,11,8],[12,0,12,5],[13,0,13,5],[19,0,19,5],[17,0,17,5],[15,0,15,5],[36,0,36,8],[37,0,37,8],[50,0,50,8],[39,0,39,8],[40,0,42,5],[40,6,42,8],[43,0,43,5],[43,6,43,8],[44,0,45,5],[44,6,45,8],[46,0,46,5],[46,6,46,8],[47,0,47,8],[48,0,48,8],[49,0,49,8],[38,0,38,8],[61,0,61,8],[51,0,53,5],[51,6,53,8],[54,0,54,5],[54,6,54,8],[55,0,56,5],[55,6,56,8],[57,0,57,5],[57,6,57,8],[58,0,58,8],[59,0,59,8],[60,0,60,8],[68,0,68,5],[68,6,68,8],[62,0,64,5],[62,6,64,8],[65,0,65,5],[65,6,65,8],[66,0,67,5],[66,6,67,8],[14,0,14,8],[20,0,20,8],[32,0,32,5],[27,0,27,8],[28,0,28,5],[16,0,16,5],[22,0,22,5],[23,0,23,5],[25,0,25,5],[21,0,21,5]]}
[]
["Programme exceptionnel d’écoulement des bois feuillus de faible qualité des régions de l’Outaouais et des Laurentides\nForêt publique\nAnnexe au rapport et au calcul de l'aide au transport des bois\n2024-2025              \n"]
[" *** Veuillez saisir les informations dans les cellules blanches (Planification et Usine de destination) et jaunes (Ministère) ***",null,null,null,null,null,null,"Version 2 : 2024-12-10"]
["Contexte d'utilisation",null,null,null,null,null,"Inscrire une valeur"]
["Identification"]
["Unité d'aménagement (UA)"]
["Secteur d'intervention"]
["Unité de compilation"]
["Numéro de la prescription"]
["Zone de tarification\nValeur requise pour établir le montant de l'aide uniquement pour la deuxième section",null,null,null,null,{"$f":"IF(ISNA(VLOOKUP($I$10,Zone_de_tarification_Admissibilite,1,FALSE)),\"Non_admissible\",\"Question\")","v":"Non_admissible"}]
["Inscrire les renseignements dans la colonne associée au contexte d'utilisation",null,null,null,null,null,"Planification","Usine de destination","Ministère"]
["Admissibilité et calcul de l'aide au transport — À partir de l'usine de sciage ou de la cour de triage et vers une usine de transformation des bois de trituration\n       Calcul établi indépendamment de la valeur à I10\n"]
["Volume provenant de la région de l'Outaouais ou des Laurentides ?"]
["Détenteur d'une entente gré à gré pour transporter ces bois ?"]
["Combinaison A"]
["Ville de provenance des bois de trituration"]
["Usine de destination des bois de trituration"]
["Volume transporté à l'usine de destination et associé à ce calcul (m3)"]
["Taux d'aide au transport ($/m3)",null,null,null,null,null,{"$f":"IFERROR(IF(AND(EXACT(UPPER($G$13),UPPER(Menus!$A$2)),EXACT(UPPER($G$14),UPPER(Menus!$A$2))),VLOOKUP(CONCATENATE($G$16,\" - \",$G$17),Tableau_Provenance_Destination_BGAD_Usine_A,4,FALSE),0),0)","v":0},{"$f":"IFERROR(IF(OR(EXACT(UPPER($G$4),UPPER(Menus!$A$47)),EXACT(UPPER($G$4),UPPER(Menus!$A$48))),IF(AND(EXACT(UPPER($H$13),UPPER(Menus!$A$2)),EXACT(UPPER($H$14),UPPER(Menus!$A$2))),VLOOKUP(CONCATENATE($H$16,\" - \",$H$17),Tableau_Provenance_Destination_BGAD_Usine_A,4,FALSE),0),0),0)","v":0},{"$f":"IFERROR(IF(EXACT(UPPER($G$4),UPPER(Menus!$A$48)),IF(AND(EXACT(UPPER($I$13),UPPER(Menus!$A$2)),EXACT(UPPER($I$14),UPPER(Menus!$A$2))),VLOOKUP(CONCATENATE($I$16,\" - \",$I$17),Tableau_Provenance_Destination_BGAD_Usine_A,4,FALSE),0),0),0)","v":0}]
["Sous-total - Combinaison A ($)",null,null,null,null,null,{"$f":"IFERROR(ROUND($G$18*$G$19,2),0)","v":0},{"$f":"IFERROR(ROUND($H$18*$H$19,2),0)","v":0},{"$f":"IFERROR(ROUND($I$18*$I$19,2),0)","v":0}]
["Combinaison B"]
["Ville de provenance des bois de trituration"]
["Usine de destination des bois de trituration"]
["Volume transporté à l'usine de destination (m3)"]
["Taux d'aide au transport ($/m3)",null,null,null,null,null,{"$f":"IFERROR(IF(AND(EXACT(UPPER($G$13),UPPER(Menus!$A$2)),EXACT(UPPER($G$14),UPPER(Menus!$A$2))),VLOOKUP(CONCATENATE($G$22,\" - \",$G$23),Tableau_Provenance_Destination_BGAD_Usine_A,4,FALSE),0),0)","v":0},{"$f":"IFERROR(IF(OR(EXACT(UPPER($G$4),UPPER(Menus!$A$47)),EXACT(UPPER($G$4),UPPER(Menus!$A$48))),IF(AND(EXACT(UPPER($H$13),UPPER(Menus!$A$2)),EXACT(UPPER($H$14),UPPER(Menus!$A$2))),VLOOKUP(CONCATENATE($H$22,\" - \",$H$23),Tableau_Provenance_Destination_BGAD_Usine_A,4,FALSE),0),0),0)","v":0},{"$f":"IFERROR(IF(EXACT(UPPER($G$4),UPPER(Menus!$A$48)),IF(AND(EXACT(UPPER($I$13),UPPER(Menus!$A$2)),EXACT(UPPER($I$14),UPPER(Menus!$A$2))),VLOOKUP(CONCATENATE($I$22,\" - \",$I$23),Tableau_Provenance_Destination_BGAD_Usine_A,4,FALSE),0),0),0)","v":0}]
["Sous-total - Combinaison B ($)",null,null,null,null,null,{"$f":"IFERROR(ROUND($G$24*$G$25,2),0)","v":0},{"$f":"IFERROR(ROUND($H$24*$H$25,2),0)","v":0},{"$f":"IFERROR(ROUND($I$24*$I$25,2),0)","v":0}]
["Total admissible ($)",null,null,null,null,null,{"$f":"IFERROR(ROUND(SUM($G$20,$G$26),2),0)","v":0},{"$f":"IFERROR(ROUND(SUM($H$20,$H$26),2),0)","v":0},{"$f":"IFERROR(ROUND(SUM($I$20,$I$26),2),0)","v":0}]
["Admissibilité et calcul de l'aide au transport — À partir de la forêt et directement vers une usine de transformation des bois\nde trituration\n       Inscrire une valeur à I10"]
["Entente BGAD et Utilisateur des bois — Le transport des bois est fait directement à partir de la\nforêt ?"]
["Usine de destination des bois de trituration"]
["Volume transporté à l'usine de destination et associé à ce calcul (m3)"]
["Taux d'aide au transport ($/m3)",null,null,null,null,null,{"$f":"IFERROR(IF(EXACT(UPPER($G$29),UPPER(Menus!$A$2)),ROUND(VLOOKUP(CONCATENATE($I$10,\" - \",$G$30),Tableau_Provenance_Destination_BGAD_Usine_B,5,FALSE),2),0),0)","v":0},{"$f":"IFERROR(IF(OR(EXACT(UPPER($G$4),UPPER(Menus!$A$47)),EXACT(UPPER($G$4),UPPER(Menus!$A$48))),IF(EXACT(UPPER($H$29),UPPER(Menus!$A$2)),ROUND(VLOOKUP(CONCATENATE($I$10,\" - \",$H$30),Tableau_Provenance_Destination_BGAD_Usine_B,5,FALSE),2),0),0),0)","v":0},{"$f":"IFERROR(IF(EXACT(UPPER($G$4),UPPER(Menus!$A$48)),IF(EXACT(UPPER($I$29),UPPER(Menus!$A$2)),ROUND(VLOOKUP(CONCATENATE($I$10,\" - \",$I$30),Tableau_Provenance_Destination_BGAD_Usine_B,5,FALSE),2),0),0),0)","v":0}]
["Total admissible ($)",null,null,null,null,null,{"$f":"IFERROR(ROUND($G$32*$G$31,2),0)","v":0},{"$f":"IFERROR(ROUND($H$32*$H$31,2),0)","v":0},{"$f":"IFERROR(ROUND($I$32*$I$31,2),0)","v":0}]
["Résumé de l'aide pour le Programme exceptionnel d’écoulement des bois feuillus de faible qualité des régions de l’Outaouais et des Laurentides"]
["Grand total admissible PEEOL ($)",null,null,null,null,null,{"$f":"IFERROR(ROUND(SUM($G$33,$G$27),2),0)","v":0},{"$f":"IFERROR(ROUND(SUM($H$33,$H$27),2),0)","v":0},{"$f":"IFERROR(ROUND(SUM($I$33,$I$27),2),0)","v":0}]
[]
["Section réservée à l'usage de la Planification"]
["Remarques"]
[]
["J'atteste que les renseignements fournis dans ce document afin de calculer l'aide supplémentaire sont complets et conformes à la vérité, au meilleur de mes connaissances."]
[]
[]
[]
["Nom et prénom de l'ingénieur forestier",null,null,null,null,null,"No de permis"]
[null,null,null,null,null,null,{"$f":"TODAY()","v":"2024-12-10"}]
[]
["Signature de l'ingénieur forestier",null,null,null,null,null,"Date (AAAA-MM-JJ)"]
["Section réservée à l'usage du BGAD"]
["Remarques"]
[]
["J'atteste que les renseignements fournis dans ce document afin de calculer l'aide supplémentaire sont complets et conformes à la vérité, au meilleur de mes connaissances."]
[]
[]
[]
["Nom et prénom de l'ingénieur forestier",null,null,null,null,null,"No de permis"]
[null,null,null,null,null,null,{"$f":"TODAY()","v":"2024-12-10"}]
[]
["Signature de l'ingénieur forestier",null,null,null,null,null,"Date (AAAA-MM-JJ)"]
["Section réservée à l'usage du Ministère"]
["Remarques"]
[]
["J'atteste que les renseignements fournis dans ce document afin de calculer l'aide supplémentaire sont complets et conformes à la vérité, au meilleur de mes connaissances."]
[]
[]
[]
["Nom et prénom de l'ingénieur forestier",null,null,null,null,null,"No de permis"]
[null,null,null,null,null,null,{"$f":"TODAY()","v":"2024-12-10"}]
[]
["Signature de l'ingénieur forestier",null,null,null,null,null,"Date (AAAA-MM-JJ)"]
[null,null,null,null,null,null,null,null,null,null,null,null,null,null,null,null,null,null,null,null,null,null,null,null,null,null,null,null,null,null,null,null,null,null,null,null,null,null,null,null,null,null,null,null,null,null,null,null,null,null,null,null,null,null,null,null,null,null,null,null,null,null,null,null,null,null,null,null,null,null,null,null,null,null,null,null,null,null,null,null,null,null,null,null,null,null,null,null,null,null,null,null,null,null,null,null,null,null,null,null,455,0]
[null,null,null,null,null,null,null,null,null,null,null,null,null,null,null,null,null,null,null,null,null,null,null,null,null,null,null,null,null,null,null,null,null,null,null,null,null,null,null,null,null,null,null,null,null,null,null,null,null,null,null,null,null,null,null,null,null,null,null,null,null,null,null,null,null,null,null,null,null,null,null,null,null,null,null,null,null,null,null,null,null,null,null,null,null,null,null,null,null,null,null,null,null,null,null,null,null,null,null,null,456,0]
[null,null,null,null,null,null,null,null,null,null,null,null,null,null,null,null,null,null,null,null,null,null,null,null,null,null,null,null,null,null,null,null,null,null,null,null,null,null,null,null,null,null,null,null,null,null,null,null,null,null,null,null,null,null,null,null,null,null,null,null,null,null,null,null,null,null,null,null,null,null,null,null,null,null,null,null,null,null,null,null,null,null,null,null,null,null,null,null,null,null,null,null,null,null,null,null,null,null,null,null,457,0]
[null,null,null,null,null,null,null,null,null,null,null,null,null,null,null,null,null,null,null,null,null,null,null,null,null,null,null,null,null,null,null,null,null,null,null,null,null,null,null,null,null,null,null,null,null,null,null,null,null,null,null,null,null,null,null,null,null,null,null,null,null,null,null,null,null,null,null,null,null,null,null,null,null,null,null,null,null,null,null,null,null,null,null,null,null,null,null,null,null,null,null,null,null,null,null,null,null,null,null,null,458,60]
[null,null,null,null,null,null,null,null,null,null,null,null,null,null,null,null,null,null,null,null,null,null,null,null,null,null,null,null,null,null,null,null,null,null,null,null,null,null,null,null,null,null,null,null,null,null,null,null,null,null,null,null,null,null,null,null,null,null,null,null,null,null,null,null,null,null,null,null,null,null,null,null,null,null,null,null,null,null,null,null,null,null,null,null,null,null,null,null,null,null,null,null,null,null,null,null,null,null,null,null,459,60]
[null,null,null,null,null,null,null,null,null,null,null,null,null,null,null,null,null,null,null,null,null,null,null,null,null,null,null,null,null,null,null,null,null,null,null,null,null,null,null,null,null,null,null,null,null,null,null,null,null,null,null,null,null,null,null,null,null,null,null,null,null,null,null,null,null,null,null,null,null,null,null,null,null,null,null,null,null,null,null,null,null,null,null,null,null,null,null,null,null,null,null,null,null,null,null,null,null,null,null,null,460,200]
[null,null,null,null,null,null,null,null,null,null,null,null,null,null,null,null,null,null,null,null,null,null,null,null,null,null,null,null,null,null,null,null,null,null,null,null,null,null,null,null,null,null,null,null,null,null,null,null,null,null,null,null,null,null,null,null,null,null,null,null,null,null,null,null,null,null,null,null,null,null,null,null,null,null,null,null,null,null,null,null,null,null,null,null,null,null,null,null,null,null,null,null,null,null,null,null,null,null,null,null,461,240]
[null,null,null,null,null,null,null,null,null,null,null,null,null,null,null,null,null,null,null,null,null,null,null,null,null,null,null,null,null,null,null,null,null,null,null,null,null,null,null,null,null,null,null,null,null,null,null,null,null,null,null,null,null,null,null,null,null,null,null,null,null,null,null,null,null,null,null,null,null,null,null,null,null,null,null,null,null,null,null,null,null,null,null,null,null,null,null,null,null,null,null,null,null,null,null,null,null,null,null,null,551,0]
[null,null,null,null,null,null,null,null,null,null,null,null,null,null,null,null,null,null,null,null,null,null,null,null,null,null,null,null,null,null,null,null,null,null,null,null,null,null,null,null,null,null,null,null,null,null,null,null,null,null,null,null,null,null,null,null,null,null,null,null,null,null,null,null,null,null,null,null,null,null,null,null,null,null,null,null,null,null,null,null,null,null,null,null,null,null,null,null,null,null,null,null,null,null,null,null,null,null,null,null,650,0]
[null,null,null,null,null,null,null,null,null,null,null,null,null,null,null,null,null,null,null,null,null,null,null,null,null,null,null,null,null,null,null,null,null,null,null,null,null,null,null,null,null,null,null,null,null,null,null,null,null,null,null,null,null,null,null,null,null,null,null,null,null,null,null,null,null,null,null,null,null,null,null,null,null,null,null,null,null,null,null,null,null,null,null,null,null,null,null,null,null,null,null,null,null,null,null,null,null,null,null,null,651,40]
[null,null,null,null,null,null,null,null,null,null,null,null,null,null,null,null,null,null,null,null,null,null,null,null,null,null,null,null,null,null,null,null,null,null,null,null,null,null,null,null,null,null,null,null,null,null,null,null,null,null,null,null,null,null,null,null,null,null,null,null,null,null,null,null,null,null,null,null,null,null,null,null,null,null,null,null,null,null,null,null,null,null,null,null,null,null,null,null,null,null,null,null,null,null,null,null,null,null,null,null,652,200]
[null,null,null,null,null,null,null,null,null,null,null,null,null,null,null,null,null,null,null,null,null,null,null,null,null,null,null,null,null,null,null,null,null,null,null,null,null,null,null,null,null,null,null,null,null,null,null,null,null,null,null,null,null,null,null,null,null,null,null,null,null,null,null,null,null,null,null,null,null,null,null,null,null,null,null,null,null,null,null,null,null,null,null,null,null,null,null,null,null,null,null,null,null,null,null,null,null,null,null,null,653,140]
[null,null,null,null,null,null,null,null,null,null,null,null,null,null,null,null,null,null,null,null,null,null,null,null,null,null,null,null,null,null,null,null,null,null,null,null,null,null,null,null,null,null,null,null,null,null,null,null,null,null,null,null,null,null,null,null,null,null,null,null,null,null,null,null,null,null,null,null,null,null,null,null,null,null,null,null,null,null,null,null,null,null,null,null,null,null,null,null,null,null,null,null,null,null,null,null,null,null,null,null,654,200]
[null,null,null,null,null,null,null,null,null,null,null,null,null,null,null,null,null,null,null,null,null,null,null,null,null,null,null,null,null,null,null,null,null,null,null,null,null,null,null,null,null,null,null,null,null,null,null,null,null,null,null,null,null,null,null,null,null,null,null,null,null,null,null,null,null,null,null,null,null,null,null,null,null,null,null,null,null,null,null,null,null,null,null,null,null,null,null,null,null,null,null,null,null,null,null,null,null,null,null,null,655,40]
[null,null,null,null,null,null,null,null,null,null,null,null,null,null,null,null,null,null,null,null,null,null,null,null,null,null,null,null,null,null,null,null,null,null,null,null,null,null,null,null,null,null,null,null,null,null,null,null,null,null,null,null,null,null,null,null,null,null,null,null,null,null,null,null,null,null,null,null,null,null,null,null,null,null,null,null,null,null,null,null,null,null,null,null,null,null,null,null,null,null,null,null,null,null,null,null,null,null,null,null,656,140]
[null,null,null,null,null,null,null,null,null,null,null,null,null,null,null,null,null,null,null,null,null,null,null,null,null,null,null,null,null,null,null,null,null,null,null,null,null,null,null,null,null,null,null,null,null,null,null,null,null,null,null,null,null,null,null,null,null,null,null,null,null,null,null,null,null,null,null,null,null,null,null,null,null,null,null,null,null,null,null,null,null,null,null,null,null,null,null,null,null,null,null,null,null,null,null,null,null,null,null,null,657,140]
[null,null,null,null,null,null,null,null,null,null,null,null,null,null,null,null,null,null,null,null,null,null,null,null,null,null,null,null,null,null,null,null,null,null,null,null,null,null,null,null,null,null,null,null,null,null,null,null,null,null,null,null,null,null,null,null,null,null,null,null,null,null,null,null,null,null,null,null,null,null,null,null,null,null,null,null,null,null,null,null,null,null,null,null,null,null,null,null,null,null,null,null,null,null,null,null,null,null,null,null,658,220]
[null,null,null,null,null,null,null,null,null,null,null,null,null,null,null,null,null,null,null,null,null,null,null,null,null,null,null,null,null,null,null,null,null,null,null,null,null,null,null,null,null,null,null,null,null,null,null,null,null,null,null,null,null,null,null,null,null,null,null,null,null,null,null,null,null,null,null,null,null,null,null,null,null,null,null,null,null,null,null,null,null,null,null,null,null,null,null,null,null,null,null,null,null,null,null,null,null,null,null,null,659,280]
[null,null,null,null,null,null,null,null,null,null,null,null,null,null,null,null,null,null,null,null,null,null,null,null,null,null,null,null,null,null,null,null,null,null,null,null,null,null,null,null,null,null,null,null,null,null,null,null,null,null,null,null,null,null,null,null,null,null,null,null,null,null,null,null,null,null,null,null,null,null,null,null,null,null,null,null,null,null,null,null,null,null,null,null,null,null,null,null,null,null,null,null,null,null,null,null,null,null,null,null,660,160]
[null,null,null,null,null,null,null,null,null,null,null,null,null,null,null,null,null,null,null,null,null,null,null,null,null,null,null,null,null,null,null,null,null,null,null,null,null,null,null,null,null,null,null,null,null,null,null,null,null,null,null,null,null,null,null,null,null,null,null,null,null,null,null,null,null,null,null,null,null,null,null,null,null,null,null,null,null,null,null,null,null,null,null,null,null,null,null,null,null,null,null,null,null,null,null,null,null,null,null,null,661,40]
[null,null,null,null,null,null,null,null,null,null,null,null,null,null,null,null,null,null,null,null,null,null,null,null,null,null,null,null,null,null,null,null,null,null,null,null,null,null,null,null,null,null,null,null,null,null,null,null,null,null,null,null,null,null,null,null,null,null,null,null,null,null,null,null,null,null,null,null,null,null,null,null,null,null,null,null,null,null,null,null,null,null,null,null,null,null,null,null,null,null,null,null,null,null,null,null,null,null,null,null,662,0]
[null,null,null,null,null,null,null,null,null,null,null,null,null,null,null,null,null,null,null,null,null,null,null,null,null,null,null,null,null,null,null,null,null,null,null,null,null,null,null,null,null,null,null,null,null,null,null,null,null,null,null,null,null,null,null,null,null,null,null,null,null,null,null,null,null,null,null,null,null,null,null,null,null,null,null,null,null,null,null,null,null,null,null,null,null,null,null,null,null,null,null,null,null,null,null,null,null,null,null,null,750,0]
[null,null,null,null,null,null,null,null,null,null,null,null,null,null,null,null,null,null,null,null,null,null,null,null,null,null,null,null,null,null,null,null,null,null,null,null,null,null,null,null,null,null,null,null,null,null,null,null,null,null,null,null,null,null,null,null,null,null,null,null,null,null,null,null,null,null,null,null,null,null,null,null,null,null,null,null,null,null,null,null,null,null,null,null,null,null,null,null,null,null,null,null,null,null,null,null,null,null,null,null,751,40]
[null,null,null,null,null,null,null,null,null,null,null,null,null,null,null,null,null,null,null,null,null,null,null,null,null,null,null,null,null,null,null,null,null,null,null,null,null,null,null,null,null,null,null,null,null,null,null,null,null,null,null,null,null,null,null,null,null,null,null,null,null,null,null,null,null,null,null,null,null,null,null,null,null,null,null,null,null,null,null,null,null,null,null,null,null,null,null,null,null,null,null,null,null,null,null,null,null,null,null,null,752,220]
[null,null,null,null,null,null,null,null,null,null,null,null,null,null,null,null,null,null,null,null,null,null,null,null,null,null,null,null,null,null,null,null,null,null,null,null,null,null,null,null,null,null,null,null,null,null,null,null,null,null,null,null,null,null,null,null,null,null,null,null,null,null,null,null,null,null,null,null,null,null,null,null,null,null,null,null,null,null,null,null,null,null,null,null,null,null,null,null,null,null,null,null,null,null,null,null,null,null,null,null,753,280]
[null,null,null,null,null,null,null,null,null,null,null,null,null,null,null,null,null,null,null,null,null,null,null,null,null,null,null,null,null,null,null,null,null,null,null,null,null,null,null,null,null,null,null,null,null,null,null,null,null,null,null,null,null,null,null,null,null,null,null,null,null,null,null,null,null,null,null,null,null,null,null,null,null,null,null,null,null,null,null,null,null,null,null,null,null,null,null,null,null,null,null,null,null,null,null,null,null,null,null,null,754,80]
[null,null,null,null,null,null,null,null,null,null,null,null,null,null,null,null,null,null,null,null,null,null,null,null,null,null,null,null,null,null,null,null,null,null,null,null,null,null,null,null,null,null,null,null,null,null,null,null,null,null,null,null,null,null,null,null,null,null,null,null,null,null,null,null,null,null,null,null,null,null,null,null,null,null,null,null,null,null,null,null,null,null,null,null,null,null,null,null,null,null,null,null,null,null,null,null,null,null,null,null,755,60]
[null,null,null,null,null,null,null,null,null,null,null,null,null,null,null,null,null,null,null,null,null,null,null,null,null,null,null,null,null,null,null,null,null,null,null,null,null,null,null,null,null,null,null,null,null,null,null,null,null,null,null,null,null,null,null,null,null,null,null,null,null,null,null,null,null,null,null,null,null,null,null,null,null,null,null,null,null,null,null,null,null,null,null,null,null,null,null,null,null,null,null,null,null,null,null,null,null,null,null,null,756,260]
[null,null,null,null,null,null,null,null,null,null,null,null,null,null,null,null,null,null,null,null,null,null,null,null,null,null,null,null,null,null,null,null,null,null,null,null,null,null,null,null,null,null,null,null,null,null,null,null,null,null,null,null,null,null,null,null,null,null,null,null,null,null,null,null,null,null,null,null,null,null,null,null,null,null,null,null,null,null,null,null,null,null,null,null,null,null,null,null,null,null,null,null,null,null,null,null,null,null,null,null,757,260]
[null,null,null,null,null,null,null,null,null,null,null,null,null,null,null,null,null,null,null,null,null,null,null,null,null,null,null,null,null,null,null,null,null,null,null,null,null,null,null,null,null,null,null,null,null,null,null,null,null,null,null,null,null,null,null,null,null,null,null,null,null,null,null,null,null,null,null,null,null,null,null,null,null,null,null,null,null,null,null,null,null,null,null,null,null,null,null,null,null,null,null,null,null,null,null,null,null,null,null,null,758,280]
[null,null,null,null,null,null,null,null,null,null,null,null,null,null,null,null,null,null,null,null,null,null,null,null,null,null,null,null,null,null,null,null,null,null,null,null,null,null,null,null,null,null,null,null,null,null,null,null,null,null,null,null,null,null,null,null,null,null,null,null,null,null,null,null,null,null,null,null,null,null,null,null,null,null,null,null,null,null,null,null,null,null,null,null,null,null,null,null,null,null,null,null,null,null,null,null,null,null,null,null,850,0]
[null,null,null,null,null,null,null,null,null,null,null,null,null,null,null,null,null,null,null,null,null,null,null,null,null,null,null,null,null,null,null,null,null,null,null,null,null,null,null,null,null,null,null,null,null,null,null,null,null,null,null,null,null,null,null,null,null,null,null,null,null,null,null,null,null,null,null,null,null,null,null,null,null,null,null,null,null,null,null,null,null,null,null,null,null,null,null,null,null,null,null,null,null,null,null,null,null,null,null,null,851,0]
[null,null,null,null,null,null,null,null,null,null,null,null,null,null,null,null,null,null,null,null,null,null,null,null,null,null,null,null,null,null,null,null,null,null,null,null,null,null,null,null,null,null,null,null,null,null,null,null,null,null,null,null,null,null,null,null,null,null,null,null,null,null,null,null,null,null,null,null,null,null,null,null,null,null,null,null,null,null,null,null,null,null,null,null,null,null,null,null,null,null,null,null,null,null,null,null,null,null,null,null,852,0]
[null,null,null,null,null,null,null,null,null,null,null,null,null,null,null,null,null,null,null,null,null,null,null,null,null,null,null,null,null,null,null,null,null,null,null,null,null,null,null,null,null,null,null,null,null,null,null,null,null,null,null,null,null,null,null,null,null,null,null,null,null,null,null,null,null,null,null,null,null,null,null,null,null,null,null,null,null,null,null,null,null,null,null,null,null,null,null,null,null,null,null,null,null,null,null,null,null,null,null,null,853,0]
[null,null,null,null,null,null,null,null,null,null,null,null,null,null,null,null,null,null,null,null,null,null,null,null,null,null,null,null,null,null,null,null,null,null,null,null,null,null,null,null,null,null,null,null,null,null,null,null,null,null,null,null,null,null,null,null,null,null,null,null,null,null,null,null,null,null,null,null,null,null,null,null,null,null,null,null,null,null,null,null,null,null,null,null,null,null,null,null,null,null,null,null,null,null,null,null,null,null,null,null,854,0]
[null,null,null,null,null,null,null,null,null,null,null,null,null,null,null,null,null,null,null,null,null,null,null,null,null,null,null,null,null,null,null,null,null,null,null,null,null,null,null,null,null,null,null,null,null,null,null,null,null,null,null,null,null,null,null,null,null,null,null,null,null,null,null,null,null,null,null,null,null,null,null,null,null,null,null,null,null,null,null,null,null,null,null,null,null,null,null,null,null,null,null,null,null,null,null,null,null,null,null,null,855,0]
[null,null,null,null,null,null,null,null,null,null,null,null,null,null,null,null,null,null,null,null,null,null,null,null,null,null,null,null,null,null,null,null,null,null,null,null,null,null,null,null,null,null,null,null,null,null,null,null,null,null,null,null,null,null,null,null,null,null,null,null,null,null,null,null,null,null,null,null,null,null,null,null,null,null,null,null,null,null,null,null,null,null,null,null,null,null,null,null,null,null,null,null,null,null,null,null,null,null,null,null,856,60]
[null,null,null,null,null,null,null,null,null,null,null,null,null,null,null,null,null,null,null,null,null,null,null,null,null,null,null,null,null,null,null,null,null,null,null,null,null,null,null,null,null,null,null,null,null,null,null,null,null,null,null,null,null,null,null,null,null,null,null,null,null,null,null,null,null,null,null,null,null,null,null,null,null,null,null,null,null,null,null,null,null,null,null,null,null,null,null,null,null,null,null,null,null,null,null,null,null,null,null,null,857,80]
[null,null,null,null,null,null,null,null,null,null,null,null,null,null,null,null,null,null,null,null,null,null,null,null,null,null,null,null,null,null,null,null,null,null,null,null,null,null,null,null,null,null,null,null,null,null,null,null,null,null,null,null,null,null,null,null,null,null,null,null,null,null,null,null,null,null,null,null,null,null,null,null,null,null,null,null,null,null,null,null,null,null,null,null,null,null,null,null,null,null,null,null,null,null,null,null,null,null,null,null,858,100]
[null,null,null,null,null,null,null,null,null,null,null,null,null,null,null,null,null,null,null,null,null,null,null,null,null,null,null,null,null,null,null,null,null,null,null,null,null,null,null,null,null,null,null,null,null,null,null,null,null,null,null,null,null,null,null,null,null,null,null,null,null,null,null,null,null,null,null,null,null,null,null,null,null,null,null,null,null,null,null,null,null,null,null,null,null,null,null,null,null,null,null,null,null,null,null,null,null,null,null,null,859,180]
[null,null,null,null,null,null,null,null,null,null,null,null,null,null,null,null,null,null,null,null,null,null,null,null,null,null,null,null,null,null,null,null,null,null,null,null,null,null,null,null,null,null,null,null,null,null,null,null,null,null,null,null,null,null,null,null,null,null,null,null,null,null,null,null,null,null,null,null,null,null,null,null,null,null,null,null,null,null,null,null,null,null,null,null,null,null,null,null,null,null,null,null,null,null,null,null,null,null,null,null,860,260]
[null,null,null,null,null,null,null,null,null,null,null,null,null,null,null,null,null,null,null,null,null,null,null,null,null,null,null,null,null,null,null,null,null,null,null,null,null,null,null,null,null,null,null,null,null,null,null,null,null,null,null,null,null,null,null,null,null,null,null,null,null,null,null,null,null,null,null,null,null,null,null,null,null,null,null,null,null,null,null,null,null,null,null,null,null,null,null,null,null,null,null,null,null,null,null,null,null,null,null,null,861,240]
[null,null,null,null,null,null,null,null,null,null,null,null,null,null,null,null,null,null,null,null,null,null,null,null,null,null,null,null,null,null,null,null,null,null,null,null,null,null,null,null,null,null,null,null,null,null,null,null,null,null,null,null,null,null,null,null,null,null,null,null,null,null,null,null,null,null,null,null,null,null,null,null,null,null,null,null,null,null,null,null,null,null,null,null,null,null,null,null,null,null,null,null,null,null,null,null,null,null,null,null,862,280]
[null,null,null,null,null,null,null,null,null,null,null,null,null,null,null,null,null,null,null,null,null,null,null,null,null,null,null,null,null,null,null,null,null,null,null,null,null,null,null,null,null,null,null,null,null,null,null,null,null,null,null,null,null,null,null,null,null,null,null,null,null,null,null,null,null,null,null,null,null,null,null,null,null,null,null,null,null,null,null,null,null,null,null,null,null,null,null,null,null,null,null,null,null,null,null,null,null,null,null,null,863,280]
[null,null,null,null,null,null,null,null,null,null,null,null,null,null,null,null,null,null,null,null,null,null,null,null,null,null,null,null,null,null,null,null,null,null,null,null,null,null,null,null,null,null,null,null,null,null,null,null,null,null,null,null,null,null,null,null,null,null,null,null,null,null,null,null,null,null,null,null,null,null,null,null,null,null,null,null,null,null,null,null,null,null,null,null,null,null,null,null,null,null,null,null,null,null,null,null,null,null,null,null,864,280]
[null,null,null,null,null,null,null,null,null,null,null,null,null,null,null,null,null,null,null,null,null,null,null,null,null,null,null,null,null,null,null,null,null,null,null,null,null,null,null,null,null,null,null,null,null,null,null,null,null,null,null,null,null,null,null,null,null,null,null,null,null,null,null,null,null,null,null,null,null,null,null,null,null,null,null,null,null,null,null,null,null,null,null,null,null,null,null,null,null,null,null,null,null,null,null,null,null,null,null,null,865,280]
[null,null,null,null,null,null,null,null,null,null,null,null,null,null,null,null,null,null,null,null,null,null,null,null,null,null,null,null,null,null,null,null,null,null,null,null,null,null,null,null,null,null,null,null,null,null,null,null,null,null,null,null,null,null,null,null,null,null,null,null,null,null,null,null,null,null,null,null,null,null,null,null,null,null,null,null,null,null,null,null,null,null,null,null,null,null,null,null,null,null,null,null,null,null,null,null,null,null,null,null,866,280]
[null,null,null,null,null,null,null,null,null,null,null,null,null,null,null,null,null,null,null,null,null,null,null,null,null,null,null,null,null,null,null,null,null,null,null,null,null,null,null,null,null,null,null,null,null,null,null,null,null,null,null,null,null,null,null,null,null,null,null,null,null,null,null,null,null,null,null,null,null,null,null,null,null,null,null,null,null,null,null,null,null,null,null,null,null,null,null,null,null,null,null,null,null,null,null,null,null,null,null,null,867,280]
[null,null,null,null,null,null,null,null,null,null,null,null,null,null,null,null,null,null,null,null,null,null,null,null,null,null,null,null,null,null,null,null,null,null,null,null,null,null,null,null,null,null,null,null,null,null,null,null,null,null,null,null,null,null,null,null,null,null,null,null,null,null,null,null,null,null,null,null,null,null,null,null,null,null,null,null,null,null,null,null,null,null,null,null,null,null,null,null,null,null,null,null,null,null,null,null,null,null,null,null,868,280]
[null,null,null,null,null,null,null,null,null,null,null,null,null,null,null,null,null,null,null,null,null,null,null,null,null,null,null,null,null,null,null,null,null,null,null,null,null,null,null,null,null,null,null,null,null,null,null,null,null,null,null,null,null,null,null,null,null,null,null,null,null,null,null,null,null,null,null,null,null,null,null,null,null,null,null,null,null,null,null,null,null,null,null,null,null,null,null,null,null,null,null,null,null,null,null,null,null,null,null,null,869,280]
[null,null,null,null,null,null,null,null,null,null,null,null,null,null,null,null,null,null,null,null,null,null,null,null,null,null,null,null,null,null,null,null,null,null,null,null,null,null,null,null,null,null,null,null,null,null,null,null,null,null,null,null,null,null,null,null,null,null,null,null,null,null,null,null,null,null,null,null,null,null,null,null,null,null,null,null,null,null,null,null,null,null,null,null,null,null,null,null,null,null,null,null,null,null,null,null,null,null,null,null,870,280]
[null,null,null,null,null,null,null,null,null,null,null,null,null,null,null,null,null,null,null,null,null,null,null,null,null,null,null,null,null,null,null,null,null,null,null,null,null,null,null,null,null,null,null,null,null,null,null,null,null,null,null,null,null,null,null,null,null,null,null,null,null,null,null,null,null,null,null,null,null,null,null,null,null,null,null,null,null,null,null,null,null,null,null,null,null,null,null,null,null,null,null,null,null,null,null,null,null,null,null,null,871,280]
[null,null,null,null,null,null,null,null,null,null,null,null,null,null,null,null,null,null,null,null,null,null,null,null,null,null,null,null,null,null,null,null,null,null,null,null,null,null,null,null,null,null,null,null,null,null,null,null,null,null,null,null,null,null,null,null,null,null,null,null,null,null,null,null,null,null,null,null,null,null,null,null,null,null,null,null,null,null,null,null,null,null,null,null,null,null,null,null,null,null,null,null,null,null,null,null,null,null,null,null,872,280]
[null,null,null,null,null,null,null,null,null,null,null,null,null,null,null,null,null,null,null,null,null,null,null,null,null,null,null,null,null,null,null,null,null,null,null,null,null,null,null,null,null,null,null,null,null,null,null,null,null,null,null,null,null,null,null,null,null,null,null,null,null,null,null,null,null,null,null,null,null,null,null,null,null,null,null,null,null,null,null,null,null,null,null,null,null,null,null,null,null,null,null,null,null,null,null,null,null,null,null,null,873,280]
[null,null,null,null,null,null,null,null,null,null,null,null,null,null,null,null,null,null,null,null,null,null,null,null,null,null,null,null,null,null,null,null,null,null,null,null,null,null,null,null,null,null,null,null,null,null,null,null,null,null,null,null,null,null,null,null,null,null,null,null,null,null,null,null,null,null,null,null,null,null,null,null,null,null,null,null,null,null,null,null,null,null,null,null,null,null,null,null,null,null,null,null,null,null,null,null,null,null,null,null,874,280]
[null,null,null,null,null,null,null,null,null,null,null,null,null,null,null,null,null,null,null,null,null,null,null,null,null,null,null,null,null,null,null,null,null,null,null,null,null,null,null,null,null,null,null,null,null,null,null,null,null,null,null,null,null,null,null,null,null,null,null,null,null,null,null,null,null,null,null,null,null,null,null,null,null,null,null,null,null,null,null,null,null,null,null,null,null,null,null,null,null,null,null,null,null,null,null,null,null,null,null,null,875,280]
[null,null,null,null,null,null,null,null,null,null,null,null,null,null,null,null,null,null,null,null,null,null,null,null,null,null,null,null,null,null,null,null,null,null,null,null,null,null,null,null,null,null,null,null,null,null,null,null,null,null,null,null,null,null,null,null,null,null,null,null,null,null,null,null,null,null,null,null,null,null,null,null,null,null,null,null,null,null,null,null,null,null,null,null,null,null,null,null,null,null,null,null,null,null,null,null,null,null,null,null,876,280]
[null,null,null,null,null,null,null,null,null,null,null,null,null,null,null,null,null,null,null,null,null,null,null,null,null,null,null,null,null,null,null,null,null,null,null,null,null,null,null,null,null,null,null,null,null,null,null,null,null,null,null,null,null,null,null,null,null,null,null,null,null,null,null,null,null,null,null,null,null,null,null,null,null,null,null,null,null,null,null,null,null,null,null,null,null,null,null,null,null,null,null,null,null,null,null,null,null,null,null,null,877,280]
[null,null,null,null,null,null,null,null,null,null,null,null,null,null,null,null,null,null,null,null,null,null,null,null,null,null,null,null,null,null,null,null,null,null,null,null,null,null,null,null,null,null,null,null,null,null,null,null,null,null,null,null,null,null,null,null,null,null,null,null,null,null,null,null,null,null,null,null,null,null,null,null,null,null,null,null,null,null,null,null,null,null,null,null,null,null,null,null,null,null,null,null,null,null,null,null,null,null,null,null,878,280]
[null,null,null,null,null,null,null,null,null,null,null,null,null,null,null,null,null,null,null,null,null,null,null,null,null,null,null,null,null,null,null,null,null,null,null,null,null,null,null,null,null,null,null,null,null,null,null,null,null,null,null,null,null,null,null,null,null,null,null,null,null,null,null,null,null,null,null,null,null,null,null,null,null,null,null,null,null,null,null,null,null,null,null,null,null,null,null,null,null,null,null,null,null,null,null,null,null,null,null,null,879,280]
[null,null,null,null,null,null,null,null,null,null,null,null,null,null,null,null,null,null,null,null,null,null,null,null,null,null,null,null,null,null,null,null,null,null,null,null,null,null,null,null,null,null,null,null,null,null,null,null,null,null,null,null,null,null,null,null,null,null,null,null,null,null,null,null,null,null,null,null,null,null,null,null,null,null,null,null,null,null,null,null,null,null,null,null,null,null,null,null,null,null,null,null,null,null,null,null,null,null,null,null,880,280]
[null,null,null,null,null,null,null,null,null,null,null,null,null,null,null,null,null,null,null,null,null,null,null,null,null,null,null,null,null,null,null,null,null,null,null,null,null,null,null,null,null,null,null,null,null,null,null,null,null,null,null,null,null,null,null,null,null,null,null,null,null,null,null,null,null,null,null,null,null,null,null,null,null,null,null,null,null,null,null,null,null,null,null,null,null,null,null,null,null,null,null,null,null,null,null,null,null,null,null,null,881,280]
[null,null,null,null,null,null,null,null,null,null,null,null,null,null,null,null,null,null,null,null,null,null,null,null,null,null,null,null,null,null,null,null,null,null,null,null,null,null,null,null,null,null,null,null,null,null,null,null,null,null,null,null,null,null,null,null,null,null,null,null,null,null,null,null,null,null,null,null,null,null,null,null,null,null,null,null,null,null,null,null,null,null,null,null,null,null,null,null,null,null,null,null,null,null,null,null,null,null,null,null,882,280]
[null,null,null,null,null,null,null,null,null,null,null,null,null,null,null,null,null,null,null,null,null,null,null,null,null,null,null,null,null,null,null,null,null,null,null,null,null,null,null,null,null,null,null,null,null,null,null,null,null,null,null,null,null,null,null,null,null,null,null,null,null,null,null,null,null,null,null,null,null,null,null,null,null,null,null,null,null,null,null,null,null,null,null,null,null,null,null,null,null,null,null,null,null,null,null,null,null,null,null,null,883,280]
[null,null,null,null,null,null,null,null,null,null,null,null,null,null,null,null,null,null,null,null,null,null,null,null,null,null,null,null,null,null,null,null,null,null,null,null,null,null,null,null,null,null,null,null,null,null,null,null,null,null,null,null,null,null,null,null,null,null,null,null,null,null,null,null,null,null,null,null,null,null,null,null,null,null,null,null,null,null,null,null,null,null,null,null,null,null,null,null,null,null,null,null,null,null,null,null,null,null,null,null,884,280]
[null,null,null,null,null,null,null,null,null,null,null,null,null,null,null,null,null,null,null,null,null,null,null,null,null,null,null,null,null,null,null,null,null,null,null,null,null,null,null,null,null,null,null,null,null,null,null,null,null,null,null,null,null,null,null,null,null,null,null,null,null,null,null,null,null,null,null,null,null,null,null,null,null,null,null,null,null,null,null,null,null,null,null,null,null,null,null,null,null,null,null,null,null,null,null,null,null,null,null,null,885,280]
[null,null,null,null,null,null,null,null,null,null,null,null,null,null,null,null,null,null,null,null,null,null,null,null,null,null,null,null,null,null,null,null,null,null,null,null,null,null,null,null,null,null,null,null,null,null,null,null,null,null,null,null,null,null,null,null,null,null,null,null,null,null,null,null,null,null,null,null,null,null,null,null,null,null,null,null,null,null,null,null,null,null,null,null,null,null,null,null,null,null,null,null,null,null,null,null,null,null,null,null,886,280]
[null,null,null,null,null,null,null,null,null,null,null,null,null,null,null,null,null,null,null,null,null,null,null,null,null,null,null,null,null,null,null,null,null,null,null,null,null,null,null,null,null,null,null,null,null,null,null,null,null,null,null,null,null,null,null,null,null,null,null,null,null,null,null,null,null,null,null,null,null,null,null,null,null,null,null,null,null,null,null,null,null,null,null,null,null,null,null,null,null,null,null,null,null,null,null,null,null,null,null,null,887,280]
[null,null,null,null,null,null,null,null,null,null,null,null,null,null,null,null,null,null,null,null,null,null,null,null,null,null,null,null,null,null,null,null,null,null,null,null,null,null,null,null,null,null,null,null,null,null,null,null,null,null,null,null,null,null,null,null,null,null,null,null,null,null,null,null,null,null,null,null,null,null,null,null,null,null,null,null,null,null,null,null,null,null,null,null,null,null,null,null,null,null,null,null,null,null,null,null,null,null,null,null,888,280]
[null,null,null,null,null,null,null,null,null,null,null,null,null,null,null,null,null,null,null,null,null,null,null,null,null,null,null,null,null,null,null,null,null,null,null,null,null,null,null,null,null,null,null,null,null,null,null,null,null,null,null,null,null,null,null,null,null,null,null,null,null,null,null,null,null,null,null,null,null,null,null,null,null,null,null,null,null,null,null,null,null,null,null,null,null,null,null,null,null,null,null,null,null,null,null,null,null,null,null,null,889,240]
[null,null,null,null,null,null,null,null,null,null,null,null,null,null,null,null,null,null,null,null,null,null,null,null,null,null,null,null,null,null,null,null,null,null,null,null,null,null,null,null,null,null,null,null,null,null,null,null,null,null,null,null,null,null,null,null,null,null,null,null,null,null,null,null,null,null,null,null,null,null,null,null,null,null,null,null,null,null,null,null,null,null,null,null,null,null,null,null,null,null,null,null,null,null,null,null,null,null,null,null,890,280]
[null,null,null,null,null,null,null,null,null,null,null,null,null,null,null,null,null,null,null,null,null,null,null,null,null,null,null,null,null,null,null,null,null,null,null,null,null,null,null,null,null,null,null,null,null,null,null,null,null,null,null,null,null,null,null,null,null,null,null,null,null,null,null,null,null,null,null,null,null,null,null,null,null,null,null,null,null,null,null,null,null,null,null,null,null,null,null,null,null,null,null,null,null,null,null,null,null,null,null,null,891,280]
[null,null,null,null,null,null,null,null,null,null,null,null,null,null,null,null,null,null,null,null,null,null,null,null,null,null,null,null,null,null,null,null,null,null,null,null,null,null,null,null,null,null,null,null,null,null,null,null,null,null,null,null,null,null,null,null,null,null,null,null,null,null,null,null,null,null,null,null,null,null,null,null,null,null,null,null,null,null,null,null,null,null,null,null,null,null,null,null,null,null,null,null,null,null,null,null,null,null,null,null,892,280]
[null,null,null,null,null,null,null,null,null,null,null,null,null,null,null,null,null,null,null,null,null,null,null,null,null,null,null,null,null,null,null,null,null,null,null,null,null,null,null,null,null,null,null,null,null,null,null,null,null,null,null,null,null,null,null,null,null,null,null,null,null,null,null,null,null,null,null,null,null,null,null,null,null,null,null,null,null,null,null,null,null,null,null,null,null,null,null,null,null,null,null,null,null,null,null,null,null,null,null,null,950,280]
[null,null,null,null,null,null,null,null,null,null,null,null,null,null,null,null,null,null,null,null,null,null,null,null,null,null,null,null,null,null,null,null,null,null,null,null,null,null,null,null,null,null,null,null,null,null,null,null,null,null,null,null,null,null,null,null,null,null,null,null,null,null,null,null,null,null,null,null,null,null,null,null,null,null,null,null,null,null,null,null,null,null,null,null,null,null,null,null,null,null,null,null,null,null,null,null,null,null,null,null,951,280]
[null,null,null,null,null,null,null,null,null,null,null,null,null,null,null,null,null,null,null,null,null,null,null,null,null,null,null,null,null,null,null,null,null,null,null,null,null,null,null,null,null,null,null,null,null,null,null,null,null,null,null,null,null,null,null,null,null,null,null,null,null,null,null,null,null,null,null,null,null,null,null,null,null,null,null,null,null,null,null,null,null,null,null,null,null,null,null,null,null,null,null,null,null,null,null,null,null,null,null,null,952,280]
[null,null,null,null,null,null,null,null,null,null,null,null,null,null,null,null,null,null,null,null,null,null,null,null,null,null,null,null,null,null,null,null,null,null,null,null,null,null,null,null,null,null,null,null,null,null,null,null,null,null,null,null,null,null,null,null,null,null,null,null,null,null,null,null,null,null,null,null,null,null,null,null,null,null,null,null,null,null,null,null,null,null,null,null,null,null,null,null,null,null,null,null,null,null,null,null,null,null,null,null,953,280]
[null,null,null,null,null,null,null,null,null,null,null,null,null,null,null,null,null,null,null,null,null,null,null,null,null,null,null,null,null,null,null,null,null,null,null,null,null,null,null,null,null,null,null,null,null,null,null,null,null,null,null,null,null,null,null,null,null,null,null,null,null,null,null,null,null,null,null,null,null,null,null,null,null,null,null,null,null,null,null,null,null,null,null,null,null,null,null,null,null,null,null,null,null,null,null,null,null,null,null,null,954,280]
[null,null,null,null,null,null,null,null,null,null,null,null,null,null,null,null,null,null,null,null,null,null,null,null,null,null,null,null,null,null,null,null,null,null,null,null,null,null,null,null,null,null,null,null,null,null,null,null,null,null,null,null,null,null,null,null,null,null,null,null,null,null,null,null,null,null,null,null,null,null,null,null,null,null,null,null,null,null,null,null,null,null,null,null,null,null,null,null,null,null,null,null,null,null,null,null,null,null,null,null,955,280]
[null,null,null,null,null,null,null,null,null,null,null,null,null,null,null,null,null,null,null,null,null,null,null,null,null,null,null,null,null,null,null,null,null,null,null,null,null,null,null,null,null,null,null,null,null,null,null,null,null,null,null,null,null,null,null,null,null,null,null,null,null,null,null,null,null,null,null,null,null,null,null,null,null,null,null,null,null,null,null,null,null,null,null,null,null,null,null,null,null,null,null,null,null,null,null,null,null,null,null,null,956,280]
[null,null,null,null,null,null,null,null,null,null,null,null,null,null,null,null,null,null,null,null,null,null,null,null,null,null,null,null,null,null,null,null,null,null,null,null,null,null,null,null,null,null,null,null,null,null,null,null,null,null,null,null,null,null,null,null,null,null,null,null,null,null,null,null,null,null,null,null,null,null,null,null,null,null,null,null,null,null,null,null,null,null,null,null,null,null,null,null,null,null,null,null,null,null,null,null,null,null,null,null,957,280]
[null,null,null,null,null,null,null,null,null,null,null,null,null,null,null,null,null,null,null,null,null,null,null,null,null,null,null,null,null,null,null,null,null,null,null,null,null,null,null,null,null,null,null,null,null,null,null,null,null,null,null,null,null,null,null,null,null,null,null,null,null,null,null,null,null,null,null,null,null,null,null,null,null,null,null,null,null,null,null,null,null,null,null,null,null,null,null,null,null,null,null,null,null,null,null,null,null,null,null,null,960,280]
[null,null,null,null,null,null,null,null,null,null,null,null,null,null,null,null,null,null,null,null,null,null,null,null,null,null,null,null,null,null,null,null,null,null,null,null,null,null,null,null,null,null,null,null,null,null,null,null,null,null,null,null,null,null,null,null,null,null,null,null,null,null,null,null,null,null,null,null,null,null,null,null,null,null,null,null,null,null,null,null,null,null,null,null,null,null,null,null,null,null,null,null,null,null,null,null,null,null,null,null,961,280]
[null,null,null,null,null,null,null,null,null,null,null,null,null,null,null,null,null,null,null,null,null,null,null,null,null,null,null,null,null,null,null,null,null,null,null,null,null,null,null,null,null,null,null,null,null,null,null,null,null,null,null,null,null,null,null,null,null,null,null,null,null,null,null,null,null,null,null,null,null,null,null,null,null,null,null,null,null,null,null,null,null,null,null,null,null,null,null,null,null,null,null,null,null,null,null,null,null,null,null,null,962,280]
[null,null,null,null,null,null,null,null,null,null,null,null,null,null,null,null,null,null,null,null,null,null,null,null,null,null,null,null,null,null,null,null,null,null,null,null,null,null,null,null,null,null,null,null,null,null,null,null,null,null,null,null,null,null,null,null,null,null,null,null,null,null,null,null,null,null,null,null,null,null,null,null,null,null,null,null,null,null,null,null,null,null,null,null,null,null,null,null,null,null,null,null,null,null,null,null,null,null,null,null,963,280]
[null,null,null,null,null,null,null,null,null,null,null,null,null,null,null,null,null,null,null,null,null,null,null,null,null,null,null,null,null,null,null,null,null,null,null,null,null,null,null,null,null,null,null,null,null,null,null,null,null,null,null,null,null,null,null,null,null,null,null,null,null,null,null,null,null,null,null,null,null,null,null,null,null,null,null,null,null,null,null,null,null,null,null,null,null,null,null,null,null,null,null,null,null,null,null,null,null,null,null,null,964,280]
[null,null,null,null,null,null,null,null,null,null,null,null,null,null,null,null,null,null,null,null,null,null,null,null,null,null,null,null,null,null,null,null,null,null,null,null,null,null,null,null,null,null,null,null,null,null,null,null,null,null,null,null,null,null,null,null,null,null,null,null,null,null,null,null,null,null,null,null,null,null,null,null,null,null,null,null,null,null,null,null,null,null,null,null,null,null,null,null,null,null,null,null,null,null,null,null,null,null,null,null,965,280]
[null,null,null,null,null,null,null,null,null,null,null,null,null,null,null,null,null,null,null,null,null,null,null,null,null,null,null,null,null,null,null,null,null,null,null,null,null,null,null,null,null,null,null,null,null,null,null,null,null,null,null,null,null,null,null,null,null,null,null,null,null,null,null,null,null,null,null,null,null,null,null,null,null,null,null,null,null,null,null,null,null,null,null,null,null,null,null,null,null,null,null,null,null,null,null,null,null,null,null,null,966,280]
[null,null,null,null,null,null,null,null,null,null,null,null,null,null,null,null,null,null,null,null,null,null,null,null,null,null,null,null,null,null,null,null,null,null,null,null,null,null,null,null,null,null,null,null,null,null,null,null,null,null,null,null,null,null,null,null,null,null,null,null,null,null,null,null,null,null,null,null,null,null,null,null,null,null,null,null,null,null,null,null,null,null,null,null,null,null,null,null,null,null,null,null,null,null,null,null,null,null,null,null,967,280]
[null,null,null,null,null,null,null,null,null,null,null,null,null,null,null,null,null,null,null,null,null,null,null,null,null,null,null,null,null,null,null,null,null,null,null,null,null,null,null,null,null,null,null,null,null,null,null,null,null,null,null,null,null,null,null,null,null,null,null,null,null,null,null,null,null,null,null,null,null,null,null,null,null,null,null,null,null,null,null,null,null,null,null,null,null,null,null,null,null,null,null,null,null,null,null,null,null,null,null,null,970,280]
[null,null,null,null,null,null,null,null,null,null,null,null,null,null,null,null,null,null,null,null,null,null,null,null,null,null,null,null,null,null,null,null,null,null,null,null,null,null,null,null,null,null,null,null,null,null,null,null,null,null,null,null,null,null,null,null,null,null,null,null,null,null,null,null,null,null,null,null,null,null,null,null,null,null,null,null,null,null,null,null,null,null,null,null,null,null,null,null,null,null,null,null,null,null,null,null,null,null,null,null,980,280]
[null,null,null,null,null,null,null,null,null,null,null,null,null,null,null,null,null,null,null,null,null,null,null,null,null,null,null,null,null,null,null,null,null,null,null,null,null,null,null,null,null,null,null,null,null,null,null,null,null,null,null,null,null,null,null,null,null,null,null,null,null,null,null,null,null,null,null,null,null,null,null,null,null,null,null,null,null,null,null,null,null,null,null,null,null,null,null,null,null,null,null,null,null,null,null,null,null,null,null,null,981,280]
[null,null,null,null,null,null,null,null,null,null,null,null,null,null,null,null,null,null,null,null,null,null,null,null,null,null,null,null,null,null,null,null,null,null,null,null,null,null,null,null,null,null,null,null,null,null,null,null,null,null,null,null,null,null,null,null,null,null,null,null,null,null,null,null,null,null,null,null,null,null,null,null,null,null,null,null,null,null,null,null,null,null,null,null,null,null,null,null,null,null,null,null,null,null,null,null,null,null,null,null,982,280]
[null,null,null,null,null,null,null,null,null,null,null,null,null,null,null,null,null,null,null,null,null,null,null,null,null,null,null,null,null,null,null,null,null,null,null,null,null,null,null,null,null,null,null,null,null,null,null,null,null,null,null,null,null,null,null,null,null,null,null,null,null,null,null,null,null,null,null,null,null,null,null,null,null,null,null,null,null,null,null,null,null,null,null,null,null,null,null,null,null,null,null,null,null,null,null,null,null,null,null,null,983,280]
[null,null,null,null,null,null,null,null,null,null,null,null,null,null,null,null,null,null,null,null,null,null,null,null,null,null,null,null,null,null,null,null,null,null,null,null,null,null,null,null,null,null,null,null,null,null,null,null,null,null,null,null,null,null,null,null,null,null,null,null,null,null,null,null,null,null,null,null,null,null,null,null,null,null,null,null,null,null,null,null,null,null,null,null,null,null,null,null,null,null,null,null,null,null,null,null,null,null,null,null,984,280]
[null,null,null,null,null,null,null,null,null,null,null,null,null,null,null,null,null,null,null,null,null,null,null,null,null,null,null,null,null,null,null,null,null,null,null,null,null,null,null,null,null,null,null,null,null,null,null,null,null,null,null,null,null,null,null,null,null,null,null,null,null,null,null,null,null,null,null,null,null,null,null,null,null,null,null,null,null,null,null,null,null,null,null,null,null,null,null,null,null,null,null,null,null,null,null,null,null,null,null,null,985,280]
[null,null,null,null,null,null,null,null,null,null,null,null,null,null,null,null,null,null,null,null,null,null,null,null,null,null,null,null,null,null,null,null,null,null,null,null,null,null,null,null,null,null,null,null,null,null,null,null,null,null,null,null,null,null,null,null,null,null,null,null,null,null,null,null,null,null,null,null,null,null,null,null,null,null,null,null,null,null,null,null,null,null,null,null,null,null,null,null,null,null,null,null,null,null,null,null,null,null,null,null,986,280]
[null,null,null,null,null,null,null,null,null,null,null,null,null,null,null,null,null,null,null,null,null,null,null,null,null,null,null,null,null,null,null,null,null,null,null,null,null,null,null,null,null,null,null,null,null,null,null,null,null,null,null,null,null,null,null,null,null,null,null,null,null,null,null,null,null,null,null,null,null,null,null,null,null,null,null,null,null,null,null,null,null,null,null,null,null,null,null,null,null,null,null,null,null,null,null,null,null,null,null,null,987,280]
[null,null,null,null,null,null,null,null,null,null,null,null,null,null,null,null,null,null,null,null,null,null,null,null,null,null,null,null,null,null,null,null,null,null,null,null,null,null,null,null,null,null,null,null,null,null,null,null,null,null,null,null,null,null,null,null,null,null,null,null,null,null,null,null,null,null,null,null,null,null,null,null,null,null,null,null,null,null,null,null,null,null,null,null,null,null,null,null,null,null,null,null,null,null,null,null,null,null,null,null,990,280]
[null,null,null,null,null,null,null,null,null,null,null,null,null,null,null,null,null,null,null,null,null,null,null,null,null,null,null,null,null,null,null,null,null,null,null,null,null,null,null,null,null,null,null,null,null,null,null,null,null,null,null,null,null,null,null,null,null,null,null,null,null,null,null,null,null,null,null,null,null,null,null,null,null,null,null,null,null,null,null,null,null,null,null,null,null,null,null,null,null,null,null,null,null,null,null,null,null,null,null,null,995,0]

{"sheet":"Calcul - PEEOL - FPrivée","index":4,"n_rows":65,"n_cols":9,"rows_kept":65,"cut":false,"hidden":true,"merged":[[61,0,61,5],[61,6,61,8],[62,0,63,5],[62,6,63,8],[64,0,64,5],[64,6,64,8],[54,0,54,8],[55,0,55,8],[56,0,56,8],[57,0,57,8],[58,0,60,5],[58,6,60,8],[50,0,50,5],[50,6,50,8],[51,0,52,5],[51,6,52,8],[53,0,53,5],[53,6,53,8],[44,0,44,8],[45,0,45,8],[46,0,46,8],[47,0,49,5],[47,6,49,8],[40,0,41,5],[40,6,41,8],[42,0,42,5],[42,6,42,8],[43,0,43,8],[34,0,34,8],[35,0,35,8],[36,0,38,5],[36,6,38,8],[39,0,39,5],[39,6,39,8],[31,0,31,8],[29,0,29,8],[30,0,30,5],[32,0,32,8],[33,0,33,8],[21,0,21,5],[17,0,17,5],[19,0,19,5],[18,0,18,5],[20,0,20,5],[12,0,12,4],[14,0,14,5],[15,0,15,5],[13,0,13,5],[16,0,16,5],[8,0,8,5],[8,6,8,8],[9,0,9,5],[10,0,10,8],[11,0,11,5],[4,0,4,8],[5,0,5,5],[6,0,6,5],[6,6,6,8],[7,0,7,5],[7,6,7,8],[0,0,0,8],[1,0,1,8],[2,0,2,6],[2,7,2,8],[3,0,3,5],[3,6,3,8],[27,0,27,5],[28,0,28,5],[22,0,22,8],[23,0,23,5],[24,0,24,5],[25,0,25,5],[26,0,26,5]]}
[]
["Programme exceptionnel d’écoulement des bois feuillus de faible qualité des régions de l’Outaouais et des Laurentides\nForêt privée\nAnnexe au rapport et au calcul de l'aide au transport des bois\n2024-2025              \n"]
[" *** Veuillez saisir les informations dans les cellules blanches (Bénéficiaire) et jaunes (Ministère) ***",null,null,null,null,null,null,"Version 1 : 2024-05-06"]
["Contexte d'utilisation",null,null,null,null,null,"Inscrire une valeur"]
["Identification"]
["Territoire du plan conjoint des producteurs de bois\nValeur requise pour le calcul"]
["Propriétaire"]
["Numéro du plan d'aménagement forestier"]
["Numéro de la prescription"]
["Inscrire les renseignements dans la colonne associée au contexte d'utilisation",null,null,null,null,null,"Planification","Bénéficiaire","Ministère"]
["Admissibilité et calcul de l'aide au transport — Forêt privée\nInscrire une valeur à I6"]
["Volume provenant d'un territoire des plans conjoints des producteurs de bois admissibles\nLes volumes transportés doivent provenir des territoires des plans conjoints des producteurs de bois de\n« Alliance des propriétaires forestiers Laurentides-Outaouais », « Office des producteurs de bois de la Gatineau » ou « Office des producteurs de bois du Pontiac »."]
["Usine de destination des bois #1",null,null,null,null,{"$f":"IF(ISNA(VLOOKUP($I$6,Territoire_plan_conjoint_FPr_Question,1,FALSE)),\"Non_admissible\",\"Question\")","v":"Non_admissible"}]
["Volume transporté à l'usine de destination #1 (m3)"]
["Type de bois de faible qualité #1"]
["Taux d'aide au transport - Usine de destination #1 ($/m3)",null,null,null,null,null,{"$f":"IFERROR(IF(EXACT(UPPER($G$12),UPPER(Menus!$A$2)),VLOOKUP(CONCATENATE($I$6,\" - \",$G$13,\" - \",$G$15),Tableau_Plan_conjoint_Destination_Essence_FPr,5,FALSE),0),0)","v":0},{"$f":"IFERROR(IF(EXACT(UPPER($H$12),UPPER(Menus!$A$2)),IF(OR(EXACT(UPPER($G$4),UPPER(Menus!$A$52)),EXACT(UPPER($G$4),UPPER(Menus!$A$53)),EXACT(UPPER($G$4),UPPER(Menus!$A$54))),VLOOKUP(CONCATENATE($I$6,\" - \",$H$13,\" - \",$H$15),Tableau_Plan_conjoint_Destination_Essence_FPr,5,FALSE),0),0),0)","v":0},{"$f":"IFERROR(IF(EXACT(UPPER($I$12),UPPER(Menus!$A$2)),IF(EXACT(UPPER($G$4),UPPER(Menus!$A$53)),VLOOKUP(CONCATENATE($I$6,\" - \",$I$13,\" - \",$I$15),Tableau_Plan_conjoint_Destination_Essence_FPr,5,FALSE),0),0),0)","v":0}]
["Sous-total pour l'usine #1 ($)",null,null,null,null,null,{"$f":"IFERROR(ROUND($G$14*$G$16,2),0)","v":0},{"$f":"IFERROR(ROUND($H$14*$H$16,2),0)","v":0},{"$f":"IFERROR(ROUND($I$14*$I$16,2),0)","v":0}]
["Usine de destination des bois #2"]
["Volume transporté à l'usine de destination #2 (m3)"]
["Type de bois de faible qualité #2"]
["Taux d'aide au transport - Usine de destination #2 ($/m3)",null,null,null,null,null,{"$f":"IFERROR(IF(EXACT(UPPER($G$12),UPPER(Menus!$A$2)),VLOOKUP(CONCATENATE($I$6,\" - \",$G$18,\" - \",$G$20),Tableau_Plan_conjoint_Destination_Essence_FPr,5,FALSE),0),0)","v":0},{"$f":"IFERROR(IF(EXACT(UPPER($H$12),UPPER(Menus!$A$2)),IF(OR(EXACT(UPPER($G$4),UPPER(Menus!$A$52)),EXACT(UPPER($G$4),UPPER(Menus!$A$53)),EXACT(UPPER($G$4),UPPER(Menus!$A$54))),VLOOKUP(CONCATENATE($I$6,\" - \",$H$18,\" - \",$H$20),Tableau_Plan_conjoint_Destination_Essence_FPr,5,FALSE),0),0),0)","v":0},{"$f":"IFERROR(IF(EXACT(UPPER($I$12),UPPER(Menus!$A$2)),IF(EXACT(UPPER($G$4),UPPER(Menus!$A$53)),VLOOKUP(CONCATENATE($I$6,\" - \",$I$18,\" - \",$I$20),Tableau_Plan_conjoint_Destination_Essence_FPr,5,FALSE),0),0),0)","v":0}]
["Sous-total pour l'usine #2 ($)",null,null,null,null,null,{"$f":"IFERROR(ROUND($G$19*$G$21,2),0)","v":0},{"$f":"IFERROR(ROUND($H$19*$H$21,2),0)","v":0},{"$f":"IFERROR(ROUND($I$19*$I$21,2),0)","v":0}]
["Retour en charge"]
["Est-ce qu'il y a un retour en charge ?"]
["Usine d'origine des bois utilisées pour le retour en charge"]
["Ville de destination des bois utilisées pour le retour en charge"]
["Volume de bois transporté en lien avec le retour en charge"]
["Taux d'aide au retour en charge ($/m3)",null,null,null,null,null,{"$f":"IFERROR(IF(EXACT(UPPER($G$24),UPPER(Menus!$A$2)),VLOOKUP(CONCATENATE($G$26,\" - \",$G$25),Tableau_retour,4,FALSE),0),0)","v":0},{"$f":"IFERROR(IF(EXACT(UPPER($H$24),UPPER(Menus!$A$2)),VLOOKUP(CONCATENATE($H$26,\" - \",$H$25),Tableau_retour,4,FALSE),0),0)","v":0},{"$f":"IFERROR(IF(EXACT(UPPER($I$24),UPPER(Menus!$A$2)),VLOOKUP(CONCATENATE($I$26,\" - \",$I$25),Tableau_retour,4,FALSE),0),0)","v":0}]
["Sous-total - Retour en charge",null,null,null,null,null,{"$f":"IFERROR(ROUND($G$27*$G$28,2),0)","v":0},{"$f":"IFERROR(ROUND($H$27*$H$28,2),0)","v":0},{"$f":"IFERROR(ROUND($I$27*$I$28,2),0)","v":0}]
["Résumé de l'aide pour le Programme exceptionnel d’écoulement des bois feuillus de faible qualité des régions de l’Outaouais et des Laurentides"]
["Grand total admissible ($)",null,null,null,null,null,{"$f":"IFERROR(ROUND(SUM($G$17,$G$22,G29),2),0)","v":0},{"$f":"IFERROR(ROUND(SUM($H$17,$H$22,H29),2),0)","v":0},{"$f":"IFERROR(ROUND(SUM($I$17,$I$22,I29),2),0)","v":0}]
[]
["Section réservée à l'usage de la Planification"]
["Remarques"]
[]
["J'atteste que les renseignements fournis dans ce document afin de calculer l'aide supplémentaire sont complets et conformes à la vérité, au meilleur de mes connaissances."]
[]
[]
[]
["Nom et prénom de l'ingénieur forestier",null,null,null,null,null,"No de permis"]
[null,null,null,null,null,null,{"$f":"TODAY()","v":"2024-12-10"}]
[]
["Signature de l'ingénieur forestier",null,null,null,null,null,"Date (AAAA-MM-JJ)"]
["Section réservée à l'usage du Bénéficiaire"]
["Remarques"]
[]
["J'atteste que les renseignements fournis dans ce document afin de calculer l'aide supplémentaire sont complets et conformes à la vérité, au meilleur de mes connaissances."]
[]
[]
[]
["Nom et prénom de l'ingénieur forestier",null,null,null,null,null,"No de permis"]
[null,null,null,null,null,null,{"$f":"TODAY()","v":"2024-12-10"}]
[]
["Signature de l'ingénieur forestier",null,null,null,null,null,"Date (AAAA-MM-JJ)"]
["Section réservée à l'usage du Ministère"]
["Remarques"]
[]
["J'atteste que les renseignements fournis dans ce document afin de calculer l'aide supplémentaire sont complets et conformes à la vérité, au meilleur de mes connaissances."]
[]
[]
[]
["Nom et prénom de l'ingénieur forestier",null,null,null,null,null,"No de permis"]
[null,null,null,null,null,null,{"$f":"TODAY()","v":"2024-12-10"}]
[]
["Signature de l'ingénieur forestier",null,null,null,null,null,"Date (AAAA-MM-JJ)"]

{"sheet":"Carte admi. - PEEOL - FPublique","index":5,"n_rows":0,"n_cols":0,"rows_kept":0,"cut":false,"hidden":true,"merged":[]}

{"sheet":"Cartes admis. - PEEOL - FPrivée","index":6,"n_rows":0,"n_cols":0,"rows_kept":0,"cut":false,"hidden":true,"merged":[]}

{"sheet":"Versions du fichier - FPublique","index":7,"n_rows":14,"n_cols":33,"rows_kept":14,"cut":false,"hidden":true,"merged":[[0,0,0,16],[0,19,0,24],[14,2,14,12]]}
["Programme exceptionnel d’écoulement des bois feuillus de faible qualité des régions de l’Outaouais et des Laurentides\nForêt publique\nSuivi des versions du fichier de l'annexe au rapport et au calcul de l'aide au transport des bois pour l’exercice 2024-2025                     ",null,null,null,null,null,null,null,null,null,null,null,null,null,null,null,null,null,null,"Version 2 : 2024-12-10",null,null,null,null,null,null,null,null,null,null,null,null,{"$f":"TODAY()","v":"2024-12-10"}]
[]
["Version 1 - FPu","Nom du fichier :","Calcul_aide_PEEOL_FPublique_2024-2025_2024-04-18.xlsm"]
[{"$f":"A3","v":"Version 1 - FPu"},"Date de mise en ligne :","2024-04-18 ou dans les jours suivants."]
[{"$f":"A4","v":"Version 1 - FPu"},"Remarques :","• Version initiale"]
[{"$f":"A5","v":"Version 1 - FPu"}]
["Version 2 - FPu","Nom du fichier :","Calcul_aide_PEEOL_FPublique_2024-2025_2024-07-09.xlsm"]
[{"$f":"A7","v":"Version 2 - FPu"},"Date de mise en ligne :","2024-12-10 ou dans les jours suivants."]
[{"$f":"A8","v":"Version 2 - FPu"},"Remarques :","• Ajout groupe Crête (Ferme-Neuve)"]
[]
[]
[]
[]
[{"$f":"A13","v":0}]

{"sheet":"Versions du fichier - FPrivée","index":8,"n_rows":14,"n_cols":33,"rows_kept":14,"cut":false,"hidden":true,"merged":[[0,0,0,16],[0,19,0,24]]}
["Programme exceptionnel d’écoulement des bois feuillus de faible qualité des régions de l’Outaouais et des Laurentides\nForêt privée\nSuivi des versions du fichier de l'annexe au rapport et au calcul de l'aide au transport des bois pour l’exercice 2024-2025                     ",null,null,null,null,null,null,null,null,null,null,null,null,null,null,null,null,null,null,"Version 1 : 2024-05-06",null,null,null,null,null,null,null,null,null,null,null,null,{"$f":"TODAY()","v":"2024-12-10"}]
[]
["Version 1 - FPr","Nom du fichier :","Calcul_aide_PEEOL_FPrivée_2024-2025_2024-04-18.xlsm"]
[{"$f":"A3","v":"Version 1 - FPr"},"Date de mise en ligne :","2024-04-18 ou les jours suivant"]
[{"$f":"A4","v":"Version 1 - FPr"},"Remarques :","• Version initiale"]
[{"$f":"A5","v":"Version 1 - FPr"}]
[]
[]
[]
[]
[]
[]
[]
[{"$f":"A13","v":0}]

{"sheet":"Menus","index":9,"n_rows":869,"n_cols":6,"rows_kept":869,"cut":false,"hidden":true,"merged":[]}
["Question"]
["Oui"]
["Non"]
["Sans objet"]
["Non admissible"]
[]
["UA (R14-15 et R07 seulement)"]
["06151"]
["06452"]
["06471"]
["07151"]
["07152"]
["07251"]
["07351"]
["07352"]
["07451"]
[]
["Zone de tarification"]
["648"]
["649"]
["656"]
["657"]
["658"]
["659"]
["660"]
["661"]
["662"]
["750"]
["751"]
["752"]
["753"]
["754"]
["755"]
["756"]
["757"]
["758"]
["Inscrire une valeur"]
[]
["Contexte - BGAD"]
["Planification"]
["BGAD"]
["Ministère"]
["Inscrire une valeur"]
[]
["Contexte - Usine de destination"]
["Planification"]
["Usine de destination"]
["Ministère"]
["Inscrire une valeur"]
[]
["Contexte - Forêt privée"]
["Bénéficiaire"]
["Ministère"]
["Inscrire une valeur"]
[]
["BGAD",null,"BGAD PEEOL"]
["CCPL (Low)",null,"CCPL (Low)"]
["CCPL (Mont-Laurier)",null,"CCPL (Mont-Laurier)"]
["CCPL (Rapides-des-Joachims)",null,"CCPL (Rapides-des-Joachims)"]
["CCPL (Sainte-Thérèse)",null,"CCPL (Sainte-Thérèse)"]
["Forespect inc.",null,"Forespect inc."]
["Forex inc.",null,"Forex inc."]
["Groupe Crête (Saint-Faustin)",null,"Groupe Crête (Saint-Faustin)"]
["Groupe Crête (Ferme-Neuve)",null,"Groupe Crête (Ferme-Neuve)"]
["Lauzon - Planchers de bois exclusifs inc.",null,"Lauzon - Planchers de bois exclusifs inc."]
["Louisiana-Pacific (Bois­Franc)",null,"PF Résolu Canada inc. (Maniwaki)"]
["PF Résolu Canada inc. (Maniwaki)",null,"Produits forestiers Lachance inc."]
["Produits forestiers Lachance inc.",null,"Scierie Carrière ltée"]
["Scierie Carrière ltée"]
[]
["Zone de tarification et BGAD (RechercheV) - A BGAD (CP)","Zone","Numéro de l'usine","Nom de l'usine","Aide$/ha CP"]
[{"$f":"CONCATENATE(B72,\" - \",D72)","v":"648 - Louisiana-Pacific (Bois­Franc)"},648,"073-0-001","Louisiana-Pacific (Bois­Franc)",460]
[{"$f":"CONCATENATE(B73,\" - \",D73)","v":"649 - Louisiana-Pacific (Bois­Franc)"},649,"073-0-001","Louisiana-Pacific (Bois­Franc)",460]
["656 - Louisiana-Pacific (Bois­Franc)",656,"073-0-001","Louisiana-Pacific (Bois­Franc)",460]
["657 - Louisiana-Pacific (Bois­Franc)",657,"073-0-001","Louisiana-Pacific (Bois­Franc)",460]
["658 - Louisiana-Pacific (Bois­Franc)",658,"073-0-001","Louisiana-Pacific (Bois­Franc)",460]
["659 - Louisiana-Pacific (Bois­Franc)",659,"073-0-001","Louisiana-Pacific (Bois­Franc)",460]
["660 - Louisiana-Pacific (Bois­Franc)",660,"073-0-001","Louisiana-Pacific (Bois­Franc)",400]
["661 - Louisiana-Pacific (Bois­Franc)",661,"073-0-001","Louisiana-Pacific (Bois­Franc)",300]
["662 - Louisiana-Pacific (Bois­Franc)",662,"073-0-001","Louisiana-Pacific (Bois­Franc)",280]
["750 - Louisiana-Pacific (Bois­Franc)",750,"073-0-001","Louisiana-Pacific (Bois­Franc)",460]
["751 - Louisiana-Pacific (Bois­Franc)",751,"073-0-001","Louisiana-Pacific (Bois­Franc)",460]
["752 - Louisiana-Pacific (Bois­Franc)",752,"073-0-001","Louisiana-Pacific (Bois­Franc)",460]
["753 - Louisiana-Pacific (Bois­Franc)",753,"073-0-001","Louisiana-Pacific (Bois­Franc)",460]
["754 - Louisiana-Pacific (Bois­Franc)",754,"073-0-001","Louisiana-Pacific (Bois­Franc)",280]
["755 - Louisiana-Pacific (Bois­Franc)",755,"073-0-001","Louisiana-Pacific (Bois­Franc)",80]
["756 - Louisiana-Pacific (Bois­Franc)",756,"073-0-001","Louisiana-Pacific (Bois­Franc)",460]
["757 - Louisiana-Pacific (Bois­Franc)",757,"073-0-001","Louisiana-Pacific (Bois­Franc)",460]
["758 - Louisiana-Pacific (Bois­Franc)",758,"073-0-001","Louisiana-Pacific (Bois­Franc)",460]
["648 - PF Résolu Canada inc. (Maniwaki)",648,"073-0-001","PF Résolu Canada inc. (Maniwaki)",460]
["649 - PF Résolu Canada inc. (Maniwaki)",649,"073-0-002","PF Résolu Canada inc. (Maniwaki)",460]
["656 - PF Résolu Canada inc. (Maniwaki)",656,"073-0-003","PF Résolu Canada inc. (Maniwaki)",460]
["657 - PF Résolu Canada inc. (Maniwaki)",657,"073-0-004","PF Résolu Canada inc. (Maniwaki)",460]
["658 - PF Résolu Canada inc. (Maniwaki)",658,"073-0-005","PF Résolu Canada inc. (Maniwaki)",460]
["659 - PF Résolu Canada inc. (Maniwaki)",659,"073-0-006","PF Résolu Canada inc. (Maniwaki)",460]
["660 - PF Résolu Canada inc. (Maniwaki)",660,"073-0-007","PF Résolu Canada inc. (Maniwaki)",440]
["661 - PF Résolu Canada inc. (Maniwaki)",661,"073-0-008","PF Résolu Canada inc. (Maniwaki)",300]
["662 - PF Résolu Canada inc. (Maniwaki)",662,"073-0-009","PF Résolu Canada inc. (Maniwaki)",280]
["750 - PF Résolu Canada inc. (Maniwaki)",750,"073-0-010","PF Résolu Canada inc. (Maniwaki)",400]
["751 - PF Résolu Canada inc. (Maniwaki)",751,"073-0-011","PF Résolu Canada inc. (Maniwaki)",460]
["752 - PF Résolu Canada inc. (Maniwaki)",752,"073-0-012","PF Résolu Canada inc. (Maniwaki)",460]
["753 - PF Résolu Canada inc. (Maniwaki)",753,"073-0-013","PF Résolu Canada inc. (Maniwaki)",460]
["754 - PF Résolu Canada inc. (Maniwaki)",754,"073-0-014","PF Résolu Canada inc. (Maniwaki)",220]
["755 - PF Résolu Canada inc. (Maniwaki)",755,"073-0-015","PF Résolu Canada inc. (Maniwaki)",20]
["756 - PF Résolu Canada inc. (Maniwaki)",756,"073-0-016","PF Résolu Canada inc. (Maniwaki)",460]
["757 - PF Résolu Canada inc. (Maniwaki)",757,"073-0-017","PF Résolu Canada inc. (Maniwaki)",400]
["758 - PF Résolu Canada inc. (Maniwaki)",758,"073-0-018","PF Résolu Canada inc. (Maniwaki)",460]
["648 - CCPL (Rapides-des-Joachims)",648,"071-1-002","CCPL (Rapides-des-Joachims)",460]
["649 - CCPL (Rapides-des-Joachims)",649,"071-1-002","CCPL (Rapides-des-Joachims)",460]
["656 - CCPL (Rapides-des-Joachims)",656,"071-1-002","CCPL (Rapides-des-Joachims)",460]
["657 - CCPL (Rapides-des-Joachims)",657,"071-1-002","CCPL (Rapides-des-Joachims)",460]
["658 - CCPL (Rapides-des-Joachims)",658,"071-1-002","CCPL (Rapides-des-Joachims)",460]
["659 - CCPL (Rapides-des-Joachims)",659,"071-1-002","CCPL (Rapides-des-Joachims)",460]
["660 - CCPL (Rapides-des-Joachims)",660,"071-1-002","CCPL (Rapides-des-Joachims)",460]
["661 - CCPL (Rapides-des-Joachims)",661,"071-1-002","CCPL (Rapides-des-Joachims)",460]
["662 - CCPL (Rapides-des-Joachims)",662,"071-1-002","CCPL (Rapides-des-Joachims)",460]
["750 - CCPL (Rapides-des-Joachims)",750,"071-1-002","CCPL (Rapides-des-Joachims)",460]
["751 - CCPL (Rapides-des-Joachims)",751,"071-1-002","CCPL (Rapides-des-Joachims)",280]
["752 - CCPL (Rapides-des-Joachims)",752,"071-1-002","CCPL (Rapides-des-Joachims)",60]
["753 - CCPL (Rapides-des-Joachims)",753,"071-1-002","CCPL (Rapides-des-Joachims)",140]
["754 - CCPL (Rapides-des-Joachims)",754,"071-1-002","CCPL (Rapides-des-Joachims)",460]
["755 - CCPL (Rapides-des-Joachims)",755,"071-1-002","CCPL (Rapides-des-Joachims)",460]
["756 - CCPL (Rapides-des-Joachims)",756,"071-1-002","CCPL (Rapides-des-Joachims)",360]
["757 - CCPL (Rapides-des-Joachims)",757,"071-1-002","CCPL (Rapides-des-Joachims)",460]
["758 - CCPL (Rapides-des-Joachims)",758,"071-1-002","CCPL (Rapides-des-Joachims)",460]
["648 - CCPL (Low)",648,"072-1-001","CCPL (Low)",460]
["649 - CCPL (Low)",649,"072-1-001","CCPL (Low)",460]
["656 - CCPL (Low)",656,"072-1-001","CCPL (Low)",460]
["657 - CCPL (Low)",657,"072-1-001","CCPL (Low)",460]
["658 - CCPL (Low)",658,"072-1-001","CCPL (Low)",460]
["659 - CCPL (Low)",659,"072-1-001","CCPL (Low)",460]
["660 - CCPL (Low)",660,"072-1-001","CCPL (Low)",460]
["661 - CCPL (Low)",661,"072-1-001","CCPL (Low)",460]
["662 - CCPL (Low)",662,"072-1-001","CCPL (Low)",320]
["750 - CCPL (Low)",750,"072-1-001","CCPL (Low)",80]
["751 - CCPL (Low)",751,"072-1-001","CCPL (Low)",260]
[{"$f":"CONCATENATE(B137,\" - \",D137)","v":"752 - CCPL (Low)"},752,"072-1-001","CCPL (Low)",460]
["753 - CCPL (Low)",753,"072-1-001","CCPL (Low)",460]
["754 - CCPL (Low)",754,"072-1-001","CCPL (Low)",380]
["755 - CCPL (Low)",755,"072-1-001","CCPL (Low)",260]
["756 - CCPL (Low)",756,"072-1-001","CCPL (Low)",460]
["757 - CCPL (Low)",757,"072-1-001","CCPL (Low)",460]
["758 - CCPL (Low)",758,"072-1-001","CCPL (Low)",460]
["648 - Lauzon - Planchers de bois exclusifs inc.",648,"072-1-005","Lauzon - Planchers de bois exclusifs inc.",440]
["649 - Lauzon - Planchers de bois exclusifs inc.",649,"072-1-005","Lauzon - Planchers de bois exclusifs inc.",240]
["656 - Lauzon - Planchers de bois exclusifs inc.",656,"072-1-005","Lauzon - Planchers de bois exclusifs inc.",460]
["657 - Lauzon - Planchers de bois exclusifs inc.",657,"072-1-005","Lauzon - Planchers de bois exclusifs inc.",460]
["658 - Lauzon - Planchers de bois exclusifs inc.",658,"072-1-005","Lauzon - Planchers de bois exclusifs inc.",460]
["659 - Lauzon - Planchers de bois exclusifs inc.",659,"072-1-005","Lauzon - Planchers de bois exclusifs inc.",460]
["660 - Lauzon - Planchers de bois exclusifs inc.",660,"072-1-005","Lauzon - Planchers de bois exclusifs inc.",460]
["661 - Lauzon - Planchers de bois exclusifs inc.",661,"072-1-005","Lauzon - Planchers de bois exclusifs inc.",460]
["662 - Lauzon - Planchers de bois exclusifs inc.",662,"072-1-005","Lauzon - Planchers de bois exclusifs inc.",360]
["750 - Lauzon - Planchers de bois exclusifs inc.",750,"072-1-005","Lauzon - Planchers de bois exclusifs inc.",20]
["751 - Lauzon - Planchers de bois exclusifs inc.",751,"072-1-005","Lauzon - Planchers de bois exclusifs inc.",460]
["752 - Lauzon - Planchers de bois exclusifs inc.",752,"072-1-005","Lauzon - Planchers de bois exclusifs inc.",460]
["753 - Lauzon - Planchers de bois exclusifs inc.",753,"072-1-005","Lauzon - Planchers de bois exclusifs inc.",460]
["754 - Lauzon - Planchers de bois exclusifs inc.",754,"072-1-005","Lauzon - Planchers de bois exclusifs inc.",460]
["755 - Lauzon - Planchers de bois exclusifs inc.",755,"072-1-005","Lauzon - Planchers de bois exclusifs inc.",460]
["756 - Lauzon - Planchers de bois exclusifs inc.",756,"072-1-005","Lauzon - Planchers de bois exclusifs inc.",460]
["757 - Lauzon - Planchers de bois exclusifs inc.",757,"072-1-005","Lauzon - Planchers de bois exclusifs inc.",460]
["758 - Lauzon - Planchers de bois exclusifs inc.",758,"072-1-005","Lauzon - Planchers de bois exclusifs inc.",460]
["648 - Forespect inc.",648,"072-1-012","Forespect inc.",260]
["649 - Forespect inc.",649,"072-1-012","Forespect inc.",140]
["656 - Forespect inc.",656,"072-1-012","Forespect inc.",440]
["657 - Forespect inc.",657,"072-1-012","Forespect inc.",460]
["658 - Forespect inc.",658,"072-1-012","Forespect inc.",460]
["659 - Forespect inc.",659,"072-1-012","Forespect inc.",460]
["660 - Forespect inc.",660,"072-1-012","Forespect inc.",460]
["661 - Forespect inc.",661,"072-1-012","Forespect inc.",400]
["662 - Forespect inc.",662,"072-1-012","Forespect inc.",220]
["750 - Forespect inc.",750,"072-1-012","Forespect inc.",260]
["751 - Forespect inc.",751,"072-1-012","Forespect inc.",460]
["752 - Forespect inc.",752,"072-1-012","Forespect inc.",460]
["753 - Forespect inc.",753,"072-1-012","Forespect inc.",460]
["754 - Forespect inc.",754,"072-1-012","Forespect inc.",460]
["755 - Forespect inc.",755,"072-1-012","Forespect inc.",460]
["756 - Forespect inc.",756,"072-1-012","Forespect inc.",460]
["757 - Forespect inc.",757,"072-1-012","Forespect inc.",460]
["758 - Forespect inc.",758,"072-1-012","Forespect inc.",460]
["648 - Produits forestiers Lachance inc.",648,"142-1-005","Produits forestiers Lachance inc.",460]
["649 - Produits forestiers Lachance inc.",649,"142-1-005","Produits forestiers Lachance inc.",160]
["656 - Produits forestiers Lachance inc.",656,"142-1-005","Produits forestiers Lachance inc.",360]
["657 - Produits forestiers Lachance inc.",657,"142-1-005","Produits forestiers Lachance inc.",460]
["658 - Produits forestiers Lachance inc.",658,"142-1-005","Produits forestiers Lachance inc.",460]
["659 - Produits forestiers Lachance inc.",659,"142-1-005","Produits forestiers Lachance inc.",460]
["660 - Produits forestiers Lachance inc.",660,"142-1-005","Produits forestiers Lachance inc.",460]
["661 - Produits forestiers Lachance inc.",661,"142-1-005","Produits forestiers Lachance inc.",460]
["662 - Produits forestiers Lachance inc.",662,"142-1-005","Produits forestiers Lachance inc.",460]
["750 - Produits forestiers Lachance inc.",750,"142-1-005","Produits forestiers Lachance inc.",460]
["751 - Produits forestiers Lachance inc.",751,"142-1-005","Produits forestiers Lachance inc.",460]
["752 - Produits forestiers Lachance inc.",752,"142-1-005","Produits forestiers Lachance inc.",460]
["753 - Produits forestiers Lachance inc.",753,"142-1-005","Produits forestiers Lachance inc.",460]
["754 - Produits forestiers Lachance inc.",754,"142-1-005","Produits forestiers Lachance inc.",460]
["755 - Produits forestiers Lachance inc.",755,"142-1-005","Produits forestiers Lachance inc.",460]
["756 - Produits forestiers Lachance inc.",756,"142-1-005","Produits forestiers Lachance inc.",460]
["757 - Produits forestiers Lachance inc.",757,"142-1-005","Produits forestiers Lachance inc.",460]
["758 - Produits forestiers Lachance inc.",758,"142-1-005","Produits forestiers Lachance inc.",460]
["648 - Groupe Crête (Saint-Faustin)",648,"151-1-019","Groupe Crête (Saint-Faustin)",200]
["649 - Groupe Crête (Saint-Faustin)",649,"151-1-019","Groupe Crête (Saint-Faustin)",60]
["656 - Groupe Crête (Saint-Faustin)",656,"151-1-019","Groupe Crête (Saint-Faustin)",340]
[{"$f":"CONCATENATE(B201,\" - \",D201)","v":"657 - Groupe Crête (Saint-Faustin)"},657,"151-1-019","Groupe Crête (Saint-Faustin)",380]
["658 - Groupe Crête (Saint-Faustin)",658,"151-1-019","Groupe Crête (Saint-Faustin)",460]
["659 - Groupe Crête (Saint-Faustin)",659,"151-1-019","Groupe Crête (Saint-Faustin)",460]
["660 - Groupe Crête (Saint-Faustin)",660,"151-1-019","Groupe Crête (Saint-Faustin)",460]
["661 - Groupe Crête (Saint-Faustin)",661,"151-1-019","Groupe Crête (Saint-Faustin)",300]
["662 - Groupe Crête (Saint-Faustin)",662,"151-1-019","Groupe Crête (Saint-Faustin)",360]
["750 - Groupe Crête (Saint-Faustin)",750,"151-1-019","Groupe Crête (Saint-Faustin)",460]
["751 - Groupe Crête (Saint-Faustin)",751,"151-1-019","Groupe Crête (Saint-Faustin)",460]
["752 - Groupe Crête (Saint-Faustin)",752,"151-1-019","Groupe Crête (Saint-Faustin)",460]
["753 - Groupe Crête (Saint-Faustin)",753,"151-1-019","Groupe Crête (Saint-Faustin)",460]
["754 - Groupe Crête (Saint-Faustin)",754,"151-1-019","Groupe Crête (Saint-Faustin)",460]
["755 - Groupe Crête (Saint-Faustin)",755,"151-1-019","Groupe Crête (Saint-Faustin)",460]
["756 - Groupe Crête (Saint-Faustin)",756,"151-1-019","Groupe Crête (Saint-Faustin)",460]
["757 - Groupe Crête (Saint-Faustin)",757,"151-1-019","Groupe Crête (Saint-Faustin)",460]
["758 - Groupe Crête (Saint-Faustin)",758,"151-1-019","Groupe Crête (Saint-Faustin)",460]
["648 - Groupe Crête (Ferme-Neuve)","648","154-1-007","Groupe Crête (Ferme-Neuve)",260]
["649 - Groupe Crête (Ferme-Neuve)","649","154-1-007","Groupe Crête (Ferme-Neuve)",460]
["656 - Groupe Crête (Ferme-Neuve)","656","154-1-007","Groupe Crête (Ferme-Neuve)",380]
["657 - Groupe Crête (Ferme-Neuve)","657","154-1-007","Groupe Crête (Ferme-Neuve)",200]
["658 - Groupe Crête (Ferme-Neuve)","658","154-1-007","Groupe Crête (Ferme-Neuve)",380]
["659 - Groupe Crête (Ferme-Neuve)","659","154-1-007","Groupe Crête (Ferme-Neuve)",460]
["660 - Groupe Crête (Ferme-Neuve)","660","154-1-007","Groupe Crête (Ferme-Neuve)",80]
["661 - Groupe Crête (Ferme-Neuve)","661","154-1-007","Groupe Crête (Ferme-Neuve)","                       -    $"]
["662 - Groupe Crête (Ferme-Neuve)","662","154-1-007","Groupe Crête (Ferme-Neuve)",60]
["750 - Groupe Crête (Ferme-Neuve)","750","154-1-007","Groupe Crête (Ferme-Neuve)",440]
["751 - Groupe Crête (Ferme-Neuve)","751","154-1-007","Groupe Crête (Ferme-Neuve)",460]
["752 - Groupe Crête (Ferme-Neuve)","752","154-1-007","Groupe Crête (Ferme-Neuve)",460]
["753 - Groupe Crête (Ferme-Neuve)","753","154-1-007","Groupe Crête (Ferme-Neuve)",460]
["754 - Groupe Crête (Ferme-Neuve)","754","154-1-007","Groupe Crête (Ferme-Neuve)",460]
["755 - Groupe Crête (Ferme-Neuve)","755","154-1-007","Groupe Crête (Ferme-Neuve)",240]
["756 - Groupe Crête (Ferme-Neuve)","756","154-1-007","Groupe Crête (Ferme-Neuve)",460]
["757 - Groupe Crête (Ferme-Neuve)","757","154-1-007","Groupe Crête (Ferme-Neuve)",460]
["758 - Groupe Crête (Ferme-Neuve)","758","154-1-007","Groupe Crête (Ferme-Neuve)",460]
["648 - Scierie Carrière ltée",648,"151-1-020","Scierie Carrière ltée",360]
["649 - Scierie Carrière ltée",649,"151-1-020","Scierie Carrière ltée",40]
["656 - Scierie Carrière ltée",656,"151-1-020","Scierie Carrière ltée",460]
["657 - Scierie Carrière ltée",657,"151-1-020","Scierie Carrière ltée",460]
["658 - Scierie Carrière ltée",658,"151-1-020","Scierie Carrière ltée",460]
["659 - Scierie Carrière ltée",659,"151-1-020","Scierie Carrière ltée",460]
["660 - Scierie Carrière ltée",660,"151-1-020","Scierie Carrière ltée",460]
["661 - Scierie Carrière ltée",661,"151-1-020","Scierie Carrière ltée",460]
["662 - Scierie Carrière ltée",662,"151-1-020","Scierie Carrière ltée",460]
["750 - Scierie Carrière ltée",750,"151-1-020","Scierie Carrière ltée",320]
["751 - Scierie Carrière ltée",751,"151-1-020","Scierie Carrière ltée",460]
["752 - Scierie Carrière ltée",752,"151-1-020","Scierie Carrière ltée",460]
["753 - Scierie Carrière ltée",753,"151-1-020","Scierie Carrière ltée",460]
["754 - Scierie Carrière ltée",754,"151-1-020","Scierie Carrière ltée",460]
["755 - Scierie Carrière ltée",755,"151-1-020","Scierie Carrière ltée",460]
["756 - Scierie Carrière ltée",756,"151-1-020","Scierie Carrière ltée",460]
["757 - Scierie Carrière ltée",757,"151-1-020","Scierie Carrière ltée",460]
["758 - Scierie Carrière ltée",758,"151-1-020","Scierie Carrière ltée",460]
["648 - CCPL (Sainte-Thérèse)",648,"152-2-004","CCPL (Sainte-Thérèse)",460]
["649 - CCPL (Sainte-Thérèse)",649,"152-2-005","CCPL (Sainte-Thérèse)",60]
["656 - CCPL (Sainte-Thérèse)",656,"152-2-006","CCPL (Sainte-Thérèse)",460]
["657 - CCPL (Sainte-Thérèse)",657,"152-2-007","CCPL (Sainte-Thérèse)",460]
["658 - CCPL (Sainte-Thérèse)",658,"152-2-008","CCPL (Sainte-Thérèse)",460]
["659 - CCPL (Sainte-Thérèse)",659,"152-2-009","CCPL (Sainte-Thérèse)",460]
["660 - CCPL (Sainte-Thérèse)",660,"152-2-010","CCPL (Sainte-Thérèse)",460]
["661 - CCPL (Sainte-Thérèse)",661,"152-2-011","CCPL (Sainte-Thérèse)",460]
["662 - CCPL (Sainte-Thérèse)",662,"152-2-012","CCPL (Sainte-Thérèse)",460]
["750 - CCPL (Sainte-Thérèse)",750,"152-2-013","CCPL (Sainte-Thérèse)",460]
["751 - CCPL (Sainte-Thérèse)",751,"152-2-014","CCPL (Sainte-Thérèse)",460]
["752 - CCPL (Sainte-Thérèse)",752,"152-2-015","CCPL (Sainte-Thérèse)",460]
["753 - CCPL (Sainte-Thérèse)",753,"152-2-016","CCPL (Sainte-Thérèse)",460]
["754 - CCPL (Sainte-Thérèse)",754,"152-2-017","CCPL (Sainte-Thérèse)",460]
["755 - CCPL (Sainte-Thérèse)",755,"152-2-018","CCPL (Sainte-Thérèse)",460]
["756 - CCPL (Sainte-Thérèse)",756,"152-2-019","CCPL (Sainte-Thérèse)",460]
["757 - CCPL (Sainte-Thérèse)",757,"152-2-020","CCPL (Sainte-Thérèse)",460]
["758 - CCPL (Sainte-Thérèse)",758,"152-2-021","CCPL (Sainte-Thérèse)",460]
["648 - CCPL (Mont-Laurier)",648,"154-1-006","CCPL (Mont-Laurier)",260]
["649 - CCPL (Mont-Laurier)",649,"154-1-006","CCPL (Mont-Laurier)",460]
["656 - CCPL (Mont-Laurier)",656,"154-1-006","CCPL (Mont-Laurier)",340]
["657 - CCPL (Mont-Laurier)",657,"154-1-006","CCPL (Mont-Laurier)",300]
["658 - CCPL (Mont-Laurier)",658,"154-1-006","CCPL (Mont-Laurier)",460]
["659 - CCPL (Mont-Laurier)",659,"154-1-006","CCPL (Mont-Laurier)",460]
["660 - CCPL (Mont-Laurier)",660,"154-1-006","CCPL (Mont-Laurier)",200]
["661 - CCPL (Mont-Laurier)",661,"154-1-006","CCPL (Mont-Laurier)",60]
["662 - CCPL (Mont-Laurier)",662,"154-1-006","CCPL (Mont-Laurier)",60]
["750 - CCPL (Mont-Laurier)",750,"154-1-006","CCPL (Mont-Laurier)",400]
["751 - CCPL (Mont-Laurier)",751,"154-1-006","CCPL (Mont-Laurier)",460]
["752 - CCPL (Mont-Laurier)",752,"154-1-006","CCPL (Mont-Laurier)",460]
["753 - CCPL (Mont-Laurier)",753,"154-1-006","CCPL (Mont-Laurier)",460]
[{"$f":"CONCATENATE(B283,\" - \",D283)","v":"754 - CCPL (Mont-Laurier)"},754,"154-1-006","CCPL (Mont-Laurier)",420]
["755 - CCPL (Mont-Laurier)",755,"154-1-006","CCPL (Mont-Laurier)",240]
["756 - CCPL (Mont-Laurier)",756,"154-1-006","CCPL (Mont-Laurier)",460]
["757 - CCPL (Mont-Laurier)",757,"154-1-006","CCPL (Mont-Laurier)",460]
["758 - CCPL (Mont-Laurier)",758,"154-1-006","CCPL (Mont-Laurier)",460]
["648 - Forex inc.",648,"154-1-007","Forex inc.",260]
["649 - Forex inc.",649,"154-1-007","Forex inc.",460]
["656 - Forex inc.",656,"154-1-007","Forex inc.",360]
["657 - Forex inc.",657,"154-1-007","Forex inc.",300]
["658 - Forex inc.",658,"154-1-007","Forex inc.",460]
["659 - Forex inc.",659,"154-1-007","Forex inc.",460]
["660 - Forex inc.",660,"154-1-007","Forex inc.",200]
["661 - Forex inc.",661,"154-1-007","Forex inc.",60]
["662 - Forex inc.",662,"154-1-007","Forex inc.",60]
["750 - Forex inc.",750,"154-1-007","Forex inc.",400]
["751 - Forex inc.",751,"154-1-007","Forex inc.",460]
["752 - Forex inc.",752,"154-1-007","Forex inc.",460]
["753 - Forex inc.",753,"154-1-007","Forex inc.",460]
["754 - Forex inc.",754,"154-1-007","Forex inc.",420]
["755 - Forex inc.",755,"154-1-007","Forex inc.",240]
["756 - Forex inc.",756,"154-1-007","Forex inc.",460]
["757 - Forex inc.",757,"154-1-007","Forex inc.",460]
["758 - Forex inc.",758,"154-1-007","Forex inc.",460]
[]
["Zone de tarification et BGAD (RechercheV) - BGAD B (CT)","Zone","Numéro de l'usine","Nom de l'usine","Plafond$/ha CT","Aide$/m3 CT"]
[{"$f":"CONCATENATE(B308,\" - \",D308)","v":"648 - Louisiana-Pacific (Bois­Franc)"},648,"073-0-001","Louisiana-Pacific (Bois­Franc)",460,8]
[{"$f":"CONCATENATE(B309,\" - \",D309)","v":"649 - Louisiana-Pacific (Bois­Franc)"},649,"073-0-001","Louisiana-Pacific (Bois­Franc)",460,8]
["656 - Louisiana-Pacific (Bois­Franc)",656,"073-0-001","Louisiana-Pacific (Bois­Franc)",460,8]
["657 - Louisiana-Pacific (Bois­Franc)",657,"073-0-001","Louisiana-Pacific (Bois­Franc)",460,8]
["658 - Louisiana-Pacific (Bois­Franc)",658,"073-0-001","Louisiana-Pacific (Bois­Franc)",460,8]
["659 - Louisiana-Pacific (Bois­Franc)",659,"073-0-001","Louisiana-Pacific (Bois­Franc)",460,8]
["660 - Louisiana-Pacific (Bois­Franc)",660,"073-0-001","Louisiana-Pacific (Bois­Franc)",420,7]
["661 - Louisiana-Pacific (Bois­Franc)",661,"073-0-001","Louisiana-Pacific (Bois­Franc)",300,5]
["662 - Louisiana-Pacific (Bois­Franc)",662,"073-0-001","Louisiana-Pacific (Bois­Franc)",300,5]
["750 - Louisiana-Pacific (Bois­Franc)",750,"073-0-001","Louisiana-Pacific (Bois­Franc)",460,8]
["751 - Louisiana-Pacific (Bois­Franc)",751,"073-0-001","Louisiana-Pacific (Bois­Franc)",460,8]
["752 - Louisiana-Pacific (Bois­Franc)",752,"073-0-001","Louisiana-Pacific (Bois­Franc)",460,8]
["753 - Louisiana-Pacific (Bois­Franc)",753,"073-0-001","Louisiana-Pacific (Bois­Franc)",460,8]
["754 - Louisiana-Pacific (Bois­Franc)",754,"073-0-001","Louisiana-Pacific (Bois­Franc)",300,5]
["755 - Louisiana-Pacific (Bois­Franc)",755,"073-0-001","Louisiana-Pacific (Bois­Franc)",120,2]
["756 - Louisiana-Pacific (Bois­Franc)",756,"073-0-001","Louisiana-Pacific (Bois­Franc)",460,8]
["757 - Louisiana-Pacific (Bois­Franc)",757,"073-0-001","Louisiana-Pacific (Bois­Franc)",460,8]
["758 - Louisiana-Pacific (Bois­Franc)",758,"073-0-001","Louisiana-Pacific (Bois­Franc)",460,8]
["648 - PF Résolu Canada inc. (Maniwaki)",648,"073-0-001","PF Résolu Canada inc. (Maniwaki)",460,8]
["649 - PF Résolu Canada inc. (Maniwaki)",649,"073-0-002","PF Résolu Canada inc. (Maniwaki)",460,8]
["656 - PF Résolu Canada inc. (Maniwaki)",656,"073-0-003","PF Résolu Canada inc. (Maniwaki)",460,8]
["657 - PF Résolu Canada inc. (Maniwaki)",657,"073-0-004","PF Résolu Canada inc. (Maniwaki)",460,8]
["658 - PF Résolu Canada inc. (Maniwaki)",658,"073-0-005","PF Résolu Canada inc. (Maniwaki)",460,8]
["659 - PF Résolu Canada inc. (Maniwaki)",659,"073-0-006","PF Résolu Canada inc. (Maniwaki)",460,8]
["660 - PF Résolu Canada inc. (Maniwaki)",660,"073-0-007","PF Résolu Canada inc. (Maniwaki)",460,8]
["661 - PF Résolu Canada inc. (Maniwaki)",661,"073-0-008","PF Résolu Canada inc. (Maniwaki)",300,5]
["662 - PF Résolu Canada inc. (Maniwaki)",662,"073-0-009","PF Résolu Canada inc. (Maniwaki)",300,5]
["750 - PF Résolu Canada inc. (Maniwaki)",750,"073-0-010","PF Résolu Canada inc. (Maniwaki)",420,7]
["751 - PF Résolu Canada inc. (Maniwaki)",751,"073-0-011","PF Résolu Canada inc. (Maniwaki)",460,8]
["752 - PF Résolu Canada inc. (Maniwaki)",752,"073-0-012","PF Résolu Canada inc. (Maniwaki)",460,8]
["753 - PF Résolu Canada inc. (Maniwaki)",753,"073-0-013","PF Résolu Canada inc. (Maniwaki)",460,8]
["754 - PF Résolu Canada inc. (Maniwaki)",754,"073-0-014","PF Résolu Canada inc. (Maniwaki)",240,4]
["755 - PF Résolu Canada inc. (Maniwaki)",755,"073-0-015","PF Résolu Canada inc. (Maniwaki)",60,1]
["756 - PF Résolu Canada inc. (Maniwaki)",756,"073-0-016","PF Résolu Canada inc. (Maniwaki)",460,8]
["757 - PF Résolu Canada inc. (Maniwaki)",757,"073-0-017","PF Résolu Canada inc. (Maniwaki)",420,7]
["758 - PF Résolu Canada inc. (Maniwaki)",758,"073-0-018","PF Résolu Canada inc. (Maniwaki)",460,8]
["648 - CCPL (Rapides-des-Joachims)",648,"071-1-002","CCPL (Rapides-des-Joachims)",460,8]
["649 - CCPL (Rapides-des-Joachims)",649,"071-1-002","CCPL (Rapides-des-Joachims)",460,8]
["656 - CCPL (Rapides-des-Joachims)",656,"071-1-002","CCPL (Rapides-des-Joachims)",460,8]
["657 - CCPL (Rapides-des-Joachims)",657,"071-1-002","CCPL (Rapides-des-Joachims)",460,8]
["658 - CCPL (Rapides-des-Joachims)",658,"071-1-002","CCPL (Rapides-des-Joachims)",460,8]
["659 - CCPL (Rapides-des-Joachims)",659,"071-1-002","CCPL (Rapides-des-Joachims)",460,8]
["660 - CCPL (Rapides-des-Joachims)",660,"071-1-002","CCPL (Rapides-des-Joachims)",460,8]
["661 - CCPL (Rapides-des-Joachims)",661,"071-1-002","CCPL (Rapides-des-Joachims)",460,8]
["662 - CCPL (Rapides-des-Joachims)",662,"071-1-002","CCPL (Rapides-des-Joachims)",460,8]
["750 - CCPL (Rapides-des-Joachims)",750,"071-1-002","CCPL (Rapides-des-Joachims)",460,8]
["751 - CCPL (Rapides-des-Joachims)",751,"071-1-002","CCPL (Rapides-des-Joachims)",300,5]
["752 - CCPL (Rapides-des-Joachims)",752,"071-1-002","CCPL (Rapides-des-Joachims)",60,1]
["753 - CCPL (Rapides-des-Joachims)",753,"071-1-002","CCPL (Rapides-des-Joachims)",180,3]
["754 - CCPL (Rapides-des-Joachims)",754,"071-1-002","CCPL (Rapides-des-Joachims)",460,8]
["755 - CCPL (Rapides-des-Joachims)",755,"071-1-002","CCPL (Rapides-des-Joachims)",460,8]
["756 - CCPL (Rapides-des-Joachims)",756,"071-1-002","CCPL (Rapides-des-Joachims)",360,6]
["757 - CCPL (Rapides-des-Joachims)",757,"071-1-002","CCPL (Rapides-des-Joachims)",460,8]
["758 - CCPL (Rapides-des-Joachims)",758,"071-1-002","CCPL (Rapides-des-Joachims)",460,8]
["648 - CCPL (Low)",648,"072-1-001","CCPL (Low)",460,8]
["649 - CCPL (Low)",649,"072-1-001","CCPL (Low)",460,8]
["656 - CCPL (Low)",656,"072-1-001","CCPL (Low)",460,8]
["657 - CCPL (Low)",657,"072-1-001","CCPL (Low)",460,8]
["658 - CCPL (Low)",658,"072-1-001","CCPL (Low)",460,8]
["659 - CCPL (Low)",659,"072-1-001","CCPL (Low)",460,8]
["660 - CCPL (Low)",660,"072-1-001","CCPL (Low)",460,8]
["661 - CCPL (Low)",661,"072-1-001","CCPL (Low)",460,8]
["662 - CCPL (Low)",662,"072-1-001","CCPL (Low)",360,6]
["750 - CCPL (Low)",750,"072-1-001","CCPL (Low)",120,2]
["751 - CCPL (Low)",751,"072-1-001","CCPL (Low)",300,5]
[{"$f":"CONCATENATE(B373,\" - \",D373)","v":"752 - CCPL (Low)"},752,"072-1-001","CCPL (Low)",460,8]
["753 - CCPL (Low)",753,"072-1-001","CCPL (Low)",460,8]
["754 - CCPL (Low)",754,"072-1-001","CCPL (Low)",420,7]
["755 - CCPL (Low)",755,"072-1-001","CCPL (Low)",300,5]
["756 - CCPL (Low)",756,"072-1-001","CCPL (Low)",460,8]
["757 - CCPL (Low)",757,"072-1-001","CCPL (Low)",460,8]
["758 - CCPL (Low)",758,"072-1-001","CCPL (Low)",460,8]
["648 - Lauzon - Planchers de bois exclusifs inc.",648,"072-1-005","Lauzon - Planchers de bois exclusifs inc.",460,8]
["649 - Lauzon - Planchers de bois exclusifs inc.",649,"072-1-005","Lauzon - Planchers de bois exclusifs inc.",240,4]
["656 - Lauzon - Planchers de bois exclusifs inc.",656,"072-1-005","Lauzon - Planchers de bois exclusifs inc.",460,8]
["657 - Lauzon - Planchers de bois exclusifs inc.",657,"072-1-005","Lauzon - Planchers de bois exclusifs inc.",460,8]
["658 - Lauzon - Planchers de bois exclusifs inc.",658,"072-1-005","Lauzon - Planchers de bois exclusifs inc.",460,8]
["659 - Lauzon - Planchers de bois exclusifs inc.",659,"072-1-005","Lauzon - Planchers de bois exclusifs inc.",460,8]
["660 - Lauzon - Planchers de bois exclusifs inc.",660,"072-1-005","Lauzon - Planchers de bois exclusifs inc.",460,8]
["661 - Lauzon - Planchers de bois exclusifs inc.",661,"072-1-005","Lauzon - Planchers de bois exclusifs inc.",460,8]
["662 - Lauzon - Planchers de bois exclusifs inc.",662,"072-1-005","Lauzon - Planchers de bois exclusifs inc.",360,6]
["750 - Lauzon - Planchers de bois exclusifs inc.",750,"072-1-005","Lauzon - Planchers de bois exclusifs inc.",60,1]
["751 - Lauzon - Planchers de bois exclusifs inc.",751,"072-1-005","Lauzon - Planchers de bois exclusifs inc.",460,8]
["752 - Lauzon - Planchers de bois exclusifs inc.",752,"072-1-005","Lauzon - Planchers de bois exclusifs inc.",460,8]
["753 - Lauzon - Planchers de bois exclusifs inc.",753,"072-1-005","Lauzon - Planchers de bois exclusifs inc.",460,8]
["754 - Lauzon - Planchers de bois exclusifs inc.",754,"072-1-005","Lauzon - Planchers de bois exclusifs inc.",460,8]
["755 - Lauzon - Planchers de bois exclusifs inc.",755,"072-1-005","Lauzon - Planchers de bois exclusifs inc.",460,8]
["756 - Lauzon - Planchers de bois exclusifs inc.",756,"072-1-005","Lauzon - Planchers de bois exclusifs inc.",460,8]
["757 - Lauzon - Planchers de bois exclusifs inc.",757,"072-1-005","Lauzon - Planchers de bois exclusifs inc.",460,8]
["758 - Lauzon - Planchers de bois exclusifs inc.",758,"072-1-005","Lauzon - Planchers de bois exclusifs inc.",460,8]
["648 - Forespect inc.",648,"072-1-012","Forespect inc.",300,5]
["649 - Forespect inc.",649,"072-1-012","Forespect inc.",180,3]
["656 - Forespect inc.",656,"072-1-012","Forespect inc.",460,8]
["657 - Forespect inc.",657,"072-1-012","Forespect inc.",460,8]
["658 - Forespect inc.",658,"072-1-012","Forespect inc.",460,8]
["659 - Forespect inc.",659,"072-1-012","Forespect inc.",460,8]
["660 - Forespect inc.",660,"072-1-012","Forespect inc.",460,8]
["661 - Forespect inc.",661,"072-1-012","Forespect inc.",420,7]
["662 - Forespect inc.",662,"072-1-012","Forespect inc.",240,4]
["750 - Forespect inc.",750,"072-1-012","Forespect inc.",300,5]
["751 - Forespect inc.",751,"072-1-012","Forespect inc.",460,8]
["752 - Forespect inc.",752,"072-1-012","Forespect inc.",460,8]
["753 - Forespect inc.",753,"072-1-012","Forespect inc.",460,8]
["754 - Forespect inc.",754,"072-1-012","Forespect inc.",460,8]
["755 - Forespect inc.",755,"072-1-012","Forespect inc.",460,8]
["756 - Forespect inc.",756,"072-1-012","Forespect inc.",460,8]
["757 - Forespect inc.",757,"072-1-012","Forespect inc.",460,8]
["758 - Forespect inc.",758,"072-1-012","Forespect inc.",460,8]
["648 - Produits forestiers Lachance inc.",648,"142-1-005","Produits forestiers Lachance inc.",460,8]
["649 - Produits forestiers Lachance inc.",649,"142-1-005","Produits forestiers Lachance inc.",180,3]
["656 - Produits forestiers Lachance inc.",656,"142-1-005","Produits forestiers Lachance inc.",360,6]
["657 - Produits forestiers Lachance inc.",657,"142-1-005","Produits forestiers Lachance inc.",460,8]
["658 - Produits forestiers Lachance inc.",658,"142-1-005","Produits forestiers Lachance inc.",460,8]
["659 - Produits forestiers Lachance inc.",659,"142-1-005","Produits forestiers Lachance inc.",460,8]
["660 - Produits forestiers Lachance inc.",660,"142-1-005","Produits forestiers Lachance inc.",460,8]
["661 - Produits forestiers Lachance inc.",661,"142-1-005","Produits forestiers Lachance inc.",460,8]
["662 - Produits forestiers Lachance inc.",662,"142-1-005","Produits forestiers Lachance inc.",460,8]
["750 - Produits forestiers Lachance inc.",750,"142-1-005","Produits forestiers Lachance inc.",460,8]
["751 - Produits forestiers Lachance inc.",751,"142-1-005","Produits forestiers Lachance inc.",460,8]
["752 - Produits forestiers Lachance inc.",752,"142-1-005","Produits forestiers Lachance inc.",460,8]
["753 - Produits forestiers Lachance inc.",753,"142-1-005","Produits forestiers Lachance inc.",460,8]
["754 - Produits forestiers Lachance inc.",754,"142-1-005","Produits forestiers Lachance inc.",460,8]
["755 - Produits forestiers Lachance inc.",755,"142-1-005","Produits forestiers Lachance inc.",460,8]
["756 - Produits forestiers Lachance inc.",756,"142-1-005","Produits forestiers Lachance inc.",460,8]
["757 - Produits forestiers Lachance inc.",757,"142-1-005","Produits forestiers Lachance inc.",460,8]
["758 - Produits forestiers Lachance inc.",758,"142-1-005","Produits forestiers Lachance inc.",460,8]
["648 - Groupe Crête (Saint-Faustin)",648,"151-1-019","Groupe Crête (Saint-Faustin)",240,4]
["649 - Groupe Crête (Saint-Faustin)",649,"151-1-019","Groupe Crête (Saint-Faustin)",60,1]
["656 - Groupe Crête (Saint-Faustin)",656,"151-1-019","Groupe Crête (Saint-Faustin)",360,6]
[{"$f":"CONCATENATE(B437,\" - \",D437)","v":"657 - Groupe Crête (Saint-Faustin)"},657,"151-1-019","Groupe Crête (Saint-Faustin)",420,7]
["658 - Groupe Crête (Saint-Faustin)",658,"151-1-019","Groupe Crête (Saint-Faustin)",460,8]
["659 - Groupe Crête (Saint-Faustin)",659,"151-1-019","Groupe Crête (Saint-Faustin)",460,8]
["660 - Groupe Crête (Saint-Faustin)",660,"151-1-019","Groupe Crête (Saint-Faustin)",460,8]
["661 - Groupe Crête (Saint-Faustin)",661,"151-1-019","Groupe Crête (Saint-Faustin)",300,5]
["662 - Groupe Crête (Saint-Faustin)",662,"151-1-019","Groupe Crête (Saint-Faustin)",360,6]
["750 - Groupe Crête (Saint-Faustin)",750,"151-1-019","Groupe Crête (Saint-Faustin)",460,8]
["751 - Groupe Crête (Saint-Faustin)",751,"151-1-019","Groupe Crête (Saint-Faustin)",460,8]
["752 - Groupe Crête (Saint-Faustin)",752,"151-1-019","Groupe Crête (Saint-Faustin)",460,8]
["753 - Groupe Crête (Saint-Faustin)",753,"151-1-019","Groupe Crête (Saint-Faustin)",460,8]
["754 - Groupe Crête (Saint-Faustin)",754,"151-1-019","Groupe Crête (Saint-Faustin)",460,8]
["755 - Groupe Crête (Saint-Faustin)",755,"151-1-019","Groupe Crête (Saint-Faustin)",460,8]
[{"$f":"CONCATENATE(B449,\" - \",D449)","v":"756 - Groupe Crête (Saint-Faustin)"},756,"151-1-019","Groupe Crête (Saint-Faustin)",460,8]
["757 - Groupe Crête (Saint-Faustin)",757,"151-1-019","Groupe Crête (Saint-Faustin)",460,8]
["758 - Groupe Crête (Saint-Faustin)",758,"151-1-019","Groupe Crête (Saint-Faustin)",460,8]
[{"$f":"CONCATENATE(B452,\" - \",D452)","v":"648 - Groupe Crête (Ferme-Neuve)"},648,"154-1-007","Groupe Crête (Ferme-Neuve)",300,5]
["649 - Groupe Crête (Ferme-Neuve)",649,"154-1-007","Groupe Crête (Ferme-Neuve)",460,8]
["656 - Groupe Crête (Ferme-Neuve)",656,"154-1-007","Groupe Crête (Ferme-Neuve)",420,7]
["657 - Groupe Crête (Ferme-Neuve)",657,"154-1-007","Groupe Crête (Ferme-Neuve)",240,4]
["658 - Groupe Crête (Ferme-Neuve)",658,"154-1-007","Groupe Crête (Ferme-Neuve)",420,7]
["659 - Groupe Crête (Ferme-Neuve)",659,"154-1-007","Groupe Crête (Ferme-Neuve)",460,8]
["660 - Groupe Crête (Ferme-Neuve)",660,"154-1-007","Groupe Crête (Ferme-Neuve)",120,2]
["661 - Groupe Crête (Ferme-Neuve)",661,"154-1-007","Groupe Crête (Ferme-Neuve)","                      -    $","                    -    $"]
["662 - Groupe Crête (Ferme-Neuve)",662,"154-1-007","Groupe Crête (Ferme-Neuve)",60,1]
["750 - Groupe Crête (Ferme-Neuve)",750,"154-1-007","Groupe Crête (Ferme-Neuve)",460,8]
["751 - Groupe Crête (Ferme-Neuve)",751,"154-1-007","Groupe Crête (Ferme-Neuve)",460,8]
["752 - Groupe Crête (Ferme-Neuve)",752,"154-1-007","Groupe Crête (Ferme-Neuve)",460,8]
["753 - Groupe Crête (Ferme-Neuve)",753,"154-1-007","Groupe Crête (Ferme-Neuve)",460,8]
["754 - Groupe Crête (Ferme-Neuve)",754,"154-1-007","Groupe Crête (Ferme-Neuve)",460,8]
["755 - Groupe Crête (Ferme-Neuve)",755,"154-1-007","Groupe Crête (Ferme-Neuve)",240,4]
["756 - Groupe Crête (Ferme-Neuve)",756,"154-1-007","Groupe Crête (Ferme-Neuve)",460,8]
["757 - Groupe Crête (Ferme-Neuve)",757,"154-1-007","Groupe Crête (Ferme-Neuve)",460,8]
["758 - Groupe Crête (Ferme-Neuve)",758,"154-1-007","Groupe Crête (Ferme-Neuve)",460,8]
["648 - Scierie Carrière ltée",648,"151-1-020","Scierie Carrière ltée",360,6]
["649 - Scierie Carrière ltée",649,"151-1-020","Scierie Carrière ltée",60,1]
["656 - Scierie Carrière ltée",656,"151-1-020","Scierie Carrière ltée",460,8]
["657 - Scierie Carrière ltée",657,"151-1-020","Scierie Carrière ltée",460,8]
["658 - Scierie Carrière ltée",658,"151-1-020","Scierie Carrière ltée",460,8]
["659 - Scierie Carrière ltée",659,"151-1-020","Scierie Carrière ltée",460,8]
["660 - Scierie Carrière ltée",660,"151-1-020","Scierie Carrière ltée",460,8]
["661 - Scierie Carrière ltée",661,"151-1-020","Scierie Carrière ltée",460,8]
["662 - Scierie Carrière ltée",662,"151-1-020","Scierie Carrière ltée",460,8]
["750 - Scierie Carrière ltée",750,"151-1-020","Scierie Carrière ltée",360,6]
["751 - Scierie Carrière ltée",751,"151-1-020","Scierie Carrière ltée",460,8]
["752 - Scierie Carrière ltée",752,"151-1-020","Scierie Carrière ltée",460,8]
["753 - Scierie Carrière ltée",753,"151-1-020","Scierie Carrière ltée",460,8]
["754 - Scierie Carrière ltée",754,"151-1-020","Scierie Carrière ltée",460,8]
["755 - Scierie Carrière ltée",755,"151-1-020","Scierie Carrière ltée",460,8]
["756 - Scierie Carrière ltée",756,"151-1-020","Scierie Carrière ltée",460,8]
["757 - Scierie Carrière ltée",757,"151-1-020","Scierie Carrière ltée",460,8]
["758 - Scierie Carrière ltée",758,"151-1-020","Scierie Carrière ltée",460,8]
["648 - CCPL (Sainte-Thérèse)",648,"152-2-004","CCPL (Sainte-Thérèse)",460,8]
["649 - CCPL (Sainte-Thérèse)",649,"152-2-005","CCPL (Sainte-Thérèse)",60,1]
["656 - CCPL (Sainte-Thérèse)",656,"152-2-006","CCPL (Sainte-Thérèse)",460,8]
["657 - CCPL (Sainte-Thérèse)",657,"152-2-007","CCPL (Sainte-Thérèse)",460,8]
["658 - CCPL (Sainte-Thérèse)",658,"152-2-008","CCPL (Sainte-Thérèse)",460,8]
["659 - CCPL (Sainte-Thérèse)",659,"152-2-009","CCPL (Sainte-Thérèse)",460,8]
["660 - CCPL (Sainte-Thérèse)",660,"152-2-010","CCPL (Sainte-Thérèse)",460,8]
["661 - CCPL (Sainte-Thérèse)",661,"152-2-011","CCPL (Sainte-Thérèse)",460,8]
["662 - CCPL (Sainte-Thérèse)",662,"152-2-012","CCPL (Sainte-Thérèse)",460,8]
["750 - CCPL (Sainte-Thérèse)",750,"152-2-013","CCPL (Sainte-Thérèse)",460,8]
["751 - CCPL (Sainte-Thérèse)",751,"152-2-014","CCPL (Sainte-Thérèse)",460,8]
["752 - CCPL (Sainte-Thérèse)",752,"152-2-015","CCPL (Sainte-Thérèse)",460,8]
["753 - CCPL (Sainte-Thérèse)",753,"152-2-016","CCPL (Sainte-Thérèse)",460,8]
["754 - CCPL (Sainte-Thérèse)",754,"152-2-017","CCPL (Sainte-Thérèse)",460,8]
["755 - CCPL (Sainte-Thérèse)",755,"152-2-018","CCPL (Sainte-Thérèse)",460,8]
["756 - CCPL (Sainte-Thérèse)",756,"152-2-019","CCPL (Sainte-Thérèse)",460,8]
["757 - CCPL (Sainte-Thérèse)",757,"152-2-020","CCPL (Sainte-Thérèse)",460,8]
["758 - CCPL (Sainte-Thérèse)",758,"152-2-021","CCPL (Sainte-Thérèse)",460,8]
["648 - CCPL (Mont-Laurier)",648,"154-1-006","CCPL (Mont-Laurier)",300,5]
["649 - CCPL (Mont-Laurier)",649,"154-1-006","CCPL (Mont-Laurier)",460,8]
["656 - CCPL (Mont-Laurier)",656,"154-1-006","CCPL (Mont-Laurier)",360,6]
["657 - CCPL (Mont-Laurier)",657,"154-1-006","CCPL (Mont-Laurier)",300,5]
["658 - CCPL (Mont-Laurier)",658,"154-1-006","CCPL (Mont-Laurier)",460,8]
["659 - CCPL (Mont-Laurier)",659,"154-1-006","CCPL (Mont-Laurier)",460,8]
["660 - CCPL (Mont-Laurier)",660,"154-1-006","CCPL (Mont-Laurier)",240,4]
["661 - CCPL (Mont-Laurier)",661,"154-1-006","CCPL (Mont-Laurier)",60,1]
["662 - CCPL (Mont-Laurier)",662,"154-1-006","CCPL (Mont-Laurier)",60,1]
["750 - CCPL (Mont-Laurier)",750,"154-1-006","CCPL (Mont-Laurier)",420,7]
["751 - CCPL (Mont-Laurier)",751,"154-1-006","CCPL (Mont-Laurier)",460,8]
["752 - CCPL (Mont-Laurier)",752,"154-1-006","CCPL (Mont-Laurier)",460,8]
["753 - CCPL (Mont-Laurier)",753,"154-1-006","CCPL (Mont-Laurier)",460,8]
[{"$f":"CONCATENATE(B519,\" - \",D519)","v":"754 - CCPL (Mont-Laurier)"},754,"154-1-006","CCPL (Mont-Laurier)",420,7]
["755 - CCPL (Mont-Laurier)",755,"154-1-006","CCPL (Mont-Laurier)",240,4]
["756 - CCPL (Mont-Laurier)",756,"154-1-006","CCPL (Mont-Laurier)",460,8]
["757 - CCPL (Mont-Laurier)",757,"154-1-006","CCPL (Mont-Laurier)",460,8]
["758 - CCPL (Mont-Laurier)",758,"154-1-006","CCPL (Mont-Laurier)",460,8]
["648 - Forex inc.",648,"154-1-007","Forex inc.",300,5]
["649 - Forex inc.",649,"154-1-007","Forex inc.",460,8]
["656 - Forex inc.",656,"154-1-007","Forex inc.",360,6]
["657 - Forex inc.",657,"154-1-007","Forex inc.",300,5]
["658 - Forex inc.",658,"154-1-007","Forex inc.",460,8]
["659 - Forex inc.",659,"154-1-007","Forex inc.",460,8]
["660 - Forex inc.",660,"154-1-007","Forex inc.",240,4]
["661 - Forex inc.",661,"154-1-007","Forex inc.",60,1]
["662 - Forex inc.",662,"154-1-007","Forex inc.",60,1]
["750 - Forex inc.",750,"154-1-007","Forex inc.",420,7]
["751 - Forex inc.",751,"154-1-007","Forex inc.",460,8]
["752 - Forex inc.",752,"154-1-007","Forex inc.",460,8]
["753 - Forex inc.",753,"154-1-007","Forex inc.",460,8]
["754 - Forex inc.",754,"154-1-007","Forex inc.",420,7]
["755 - Forex inc.",755,"154-1-007","Forex inc.",240,4]
["756 - Forex inc.",756,"154-1-007","Forex inc.",460,8]
["757 - Forex inc.",757,"154-1-007","Forex inc.",460,8]
["758 - Forex inc.",758,"154-1-007","Forex inc.",460,8]
[]
["Provenance et destination (RechercheV) - A Usine","Municipalité","Destination","Aide"]
[{"$f":"CONCATENATE(B544,\" - \",C544)","v":"Ferme-Neuve - Domtar (Windsor)"},"Ferme-Neuve","Domtar (Windsor)",51]
["St-Faustin - Domtar (Windsor)","St-Faustin","Domtar (Windsor)",31]
["St-Faustin - Biomasse du lac Taureau (Saint-Michel-des-Saints)","St-Faustin","Biomasse du lac Taureau (Saint-Michel-des-Saints)",20]
["St-Faustin - Rayonier (Témiscaming)","St-Faustin","Rayonier (Témiscaming)",55]
["St-Faustin - Silicium Québec (Bécancour)","St-Faustin","Silicium Québec (Bécancour)",25]
["St-Faustin - WestRock (La Tuque)","St-Faustin","WestRock (La Tuque)",49]
["St-Faustin - Tafisa Canada (Lac-Mégantic)","St-Faustin","Tafisa Canada (Lac-Mégantic)",46]
["St-Faustin - Kruger (Trois-Rivières)","St-Faustin","Kruger (Trois-Rivières)",23]
[{"$f":"CONCATENATE(B552,\" - \",C552)","v":"Lachute - Domtar (Windsor)"},"Lachute","Domtar (Windsor)",28]
["Lachute - Biomasse du lac Taureau (Saint-Michel-des-Saints)","Lachute","Biomasse du lac Taureau (Saint-Michel-des-Saints)",29]
["Lachute - Rayonier (Témiscaming)","Lachute","Rayonier (Témiscaming)",55]
["Lachute - Silicium Québec (Bécancour)","Lachute","Silicium Québec (Bécancour)",24]
["Lachute - WestRock (La Tuque)","Lachute","WestRock (La Tuque)",47]
["Lachute - Tafisa Canada (Lac-Mégantic)","Lachute","Tafisa Canada (Lac-Mégantic)",44]
["Lachute - Kruger (Trois-Rivières)","Lachute","Kruger (Trois-Rivières)",22]
[{"$f":"CONCATENATE(B559,\" - \",C559)","v":"Mont-Laurier - Domtar (Windsor)"},"Mont-Laurier","Domtar (Windsor)",48]
["Mont-Laurier - Biomasse du lac Taureau (Saint-Michel-des-Saints)","Mont-Laurier","Biomasse du lac Taureau (Saint-Michel-des-Saints)",38]
["Mont-Laurier - Rayonier (Témiscaming)","Mont-Laurier","Rayonier (Témiscaming)",55]
["Mont-Laurier - Silicium Québec (Bécancour)","Mont-Laurier","Silicium Québec (Bécancour)",43]
["Mont-Laurier - WestRock (La Tuque)","Mont-Laurier","WestRock (La Tuque)",55]
["Mont-Laurier - Tafisa Canada (Lac-Mégantic)","Mont-Laurier","Tafisa Canada (Lac-Mégantic)",55]
["Mont-Laurier - Kruger (Trois-Rivières)","Mont-Laurier","Kruger (Trois-Rivières)",40]
["Namur - Domtar (Windsor)","Namur","Domtar (Windsor)",36]
["Namur - Biomasse du lac Taureau (Saint-Michel-des-Saints)","Namur","Biomasse du lac Taureau (Saint-Michel-des-Saints)",26]
["Namur - Rayonier (Témiscaming)","Namur","Rayonier (Témiscaming)",55]
["Namur - Silicium Québec (Bécancour)","Namur","Silicium Québec (Bécancour)",31]
["Namur - WestRock (La Tuque)","Namur","WestRock (La Tuque)",49]
["Namur - Tafisa Canada (Lac-Mégantic)","Namur","Tafisa Canada (Lac-Mégantic)",53]
["Namur - Kruger (Trois-Rivières)","Namur","Kruger (Trois-Rivières)",30]
["Thurso - Domtar (Windsor)","Thurso","Domtar (Windsor)",37]
["Thurso - Biomasse du lac Taureau (Saint-Michel-des-Saints)","Thurso","Biomasse du lac Taureau (Saint-Michel-des-Saints)",33]
["Thurso - Rayonier (Témiscaming)","Thurso","Rayonier (Témiscaming)",51]
["Thurso - Silicium Québec (Bécancour)","Thurso","Silicium Québec (Bécancour)",31]
["Thurso - WestRock (La Tuque)","Thurso","WestRock (La Tuque)",49]
["Thurso - Tafisa Canada (Lac-Mégantic)","Thurso","Tafisa Canada (Lac-Mégantic)",53]
["Thurso - Kruger (Trois-Rivières)","Thurso","Kruger (Trois-Rivières)",30]
["Low - Domtar (Windsor)","Low","Domtar (Windsor)",44]
["Low - Biomasse du lac Taureau (Saint-Michel-des-Saints)","Low","Biomasse du lac Taureau (Saint-Michel-des-Saints)",48]
["Low - Rayonier (Témiscaming)","Low","Rayonier (Témiscaming)",51]
["Low - Silicium Québec (Bécancour)","Low","Silicium Québec (Bécancour)",46]
[{"$f":"CONCATENATE(B584,\" - \",C584)","v":"Low - WestRock (La Tuque)"},"Low","WestRock (La Tuque)",55]
["Low - Tafisa Canada (Lac-Mégantic)","Low","Tafisa Canada (Lac-Mégantic)",55]
["Low - Kruger (Trois-Rivières)","Low","Kruger (Trois-Rivières)",46]
["Rapides-Des-Joachims - Domtar (Windsor)","Rapides-Des-Joachims","Domtar (Windsor)",55]
["Rapides-Des-Joachims - Biomasse du lac Taureau (Saint-Michel-des-Saints)","Rapides-Des-Joachims","Biomasse du lac Taureau (Saint-Michel-des-Saints)",55]
["Rapides-Des-Joachims - Rayonier (Témiscaming)","Rapides-Des-Joachims","Rayonier (Témiscaming)",23]
["Rapides-Des-Joachims - Silicium Québec (Bécancour)","Rapides-Des-Joachims","Silicium Québec (Bécancour)",55]
["Rapides-Des-Joachims - WestRock (La Tuque)","Rapides-Des-Joachims","WestRock (La Tuque)",55]
["Rapides-Des-Joachims - Tafisa Canada (Lac-Mégantic)","Rapides-Des-Joachims","Tafisa Canada (Lac-Mégantic)",55]
["Rapides-Des-Joachims - Kruger (Trois-Rivières)","Rapides-Des-Joachims","Kruger (Trois-Rivières)",55]
["Bois-Franc - Domtar (Windsor)","Bois-Franc","Domtar (Windsor)",50]
["Bois-Franc - Biomasse du lac Taureau (Saint-Michel-des-Saints)","Bois-Franc","Biomasse du lac Taureau (Saint-Michel-des-Saints)",44]
["Bois-Franc - Rayonier (Témiscaming)","Bois-Franc","Rayonier (Témiscaming)",52]
["Bois-Franc - Silicium Québec (Bécancour)","Bois-Franc","Silicium Québec (Bécancour)",46]
["Bois-Franc - WestRock (La Tuque)","Bois-Franc","WestRock (La Tuque)",55]
["Bois-Franc - Tafisa Canada (Lac-Mégantic)","Bois-Franc","Tafisa Canada (Lac-Mégantic)",55]
["Bois-Franc - Kruger (Trois-Rivières)","Bois-Franc","Kruger (Trois-Rivières)",45]
["Maniwaki - Domtar (Windsor)","Maniwaki","Domtar (Windsor)",52]
["Maniwaki - Biomasse du lac Taureau (Saint-Michel-des-Saints)","Maniwaki","Biomasse du lac Taureau (Saint-Michel-des-Saints)",45]
["Maniwaki - Rayonier (Témiscaming)","Maniwaki","Rayonier (Témiscaming)",49]
["Maniwaki - Silicium Québec (Bécancour)","Maniwaki","Silicium Québec (Bécancour)",46]
["Maniwaki - WestRock (La Tuque)","Maniwaki","WestRock (La Tuque)",55]
["Maniwaki - Tafisa Canada (Lac-Mégantic)","Maniwaki","Tafisa Canada (Lac-Mégantic)",55]
["Maniwaki - Kruger (Trois-Rivières)","Maniwaki","Kruger (Trois-Rivières)",45]
["Notre-Dame-de-Pontmain - Domtar (Windsor)","Notre-Dame-de-Pontmain","Domtar (Windsor)",46]
["Notre-Dame-de-Pontmain - Biomasse du lac Taureau (Saint-Michel-des-Saints)","Notre-Dame-de-Pontmain","Biomasse du lac Taureau (Saint-Michel-des-Saints)",41]
["Notre-Dame-de-Pontmain - Rayonier (Témiscaming)","Notre-Dame-de-Pontmain","Rayonier (Témiscaming)",55]
["Notre-Dame-de-Pontmain - Silicium Québec (Bécancour)","Notre-Dame-de-Pontmain","Silicium Québec (Bécancour)",49]
["Notre-Dame-de-Pontmain - WestRock (La Tuque)","Notre-Dame-de-Pontmain","WestRock (La Tuque)",55]
["Notre-Dame-de-Pontmain - Tafisa Canada (Lac-Mégantic)","Notre-Dame-de-Pontmain","Tafisa Canada (Lac-Mégantic)",55]
["Notre-Dame-de-Pontmain - Kruger (Trois-Rivières)","Notre-Dame-de-Pontmain","Kruger (Trois-Rivières)",48]
["Mansfield-et-Pontefract (Cour DJB Transport) - Domtar (Windsor)","Mansfield-et-Pontefract (Cour DJB Transport)","Domtar (Windsor)",55]
[{"$f":"CONCATENATE(B616,\" - \",C616)","v":"Mansfield-et-Pontefract (Cour DJB Transport) - Biomasse du lac Taureau (Saint-Michel-des-Saints)"},"Mansfield-et-Pontefract (Cour DJB Transport)","Biomasse du lac Taureau (Saint-Michel-des-Saints)",53]
["Mansfield-et-Pontefract (Cour DJB Transport) - Rayonier (Témiscaming)","Mansfield-et-Pontefract (Cour DJB Transport)","Rayonier (Témiscaming)",33]
["Mansfield-et-Pontefract (Cour DJB Transport) - Silicium Québec (Bécancour)","Mansfield-et-Pontefract (Cour DJB Transport)","Silicium Québec (Bécancour)",51]
["Mansfield-et-Pontefract (Cour DJB Transport) - WestRock (La Tuque)","Mansfield-et-Pontefract (Cour DJB Transport)","WestRock (La Tuque)",55]
["Mansfield-et-Pontefract (Cour DJB Transport) - Tafisa Canada (Lac-Mégantic)","Mansfield-et-Pontefract (Cour DJB Transport)","Tafisa Canada (Lac-Mégantic)",55]
["Mansfield-et-Pontefract (Cour DJB Transport) - Kruger (Trois-Rivières)","Mansfield-et-Pontefract (Cour DJB Transport)","Kruger (Trois-Rivières)",50]
[]
["Zone de tarification et destination (RechercheV) - B Usine","Zone de tarification","Numéro usine","Destination","Aide finale ($/m3)"]
[{"$f":"CONCATENATE(B624,\" - \",D624)","v":"648 - Domtar (Windsor)"},648,"051-0-003","Domtar (Windsor)",37]
["649 - Domtar (Windsor)",649,"051-0-003","Domtar (Windsor)",27]
["656 - Domtar (Windsor)",656,"051-0-003","Domtar (Windsor)",44]
["657 - Domtar (Windsor)",657,"051-0-003","Domtar (Windsor)",38]
["658 - Domtar (Windsor)",658,"051-0-003","Domtar (Windsor)",45]
["659 - Domtar (Windsor)",659,"051-0-003","Domtar (Windsor)",51]
["660 - Domtar (Windsor)",660,"051-0-003","Domtar (Windsor)",50]
["661 - Domtar (Windsor)",661,"051-0-003","Domtar (Windsor)",39]
["662 - Domtar (Windsor)",662,"051-0-003","Domtar (Windsor)",42]
["750 - Domtar (Windsor)",750,"051-0-003","Domtar (Windsor)",33]
["751 - Domtar (Windsor)",751,"051-0-003","Domtar (Windsor)",49]
["752 - Domtar (Windsor)",752,"051-0-003","Domtar (Windsor)",55]
["753 - Domtar (Windsor)",753,"051-0-003","Domtar (Windsor)",55]
["754 - Domtar (Windsor)",754,"051-0-003","Domtar (Windsor)",55]
["755 - Domtar (Windsor)",755,"051-0-003","Domtar (Windsor)",48]
["756 - Domtar (Windsor)",756,"051-0-003","Domtar (Windsor)",55]
["757 - Domtar (Windsor)",757,"051-0-003","Domtar (Windsor)",55]
["758 - Domtar (Windsor)",758,"051-0-003","Domtar (Windsor)",55]
["648 - WestRock (La Tuque)",648,"042-0-001","WestRock (La Tuque)",36]
["649 - WestRock (La Tuque)",649,"042-0-001","WestRock (La Tuque)",37]
["656 - WestRock (La Tuque)",656,"042-0-001","WestRock (La Tuque)",18]
["657 - WestRock (La Tuque)",657,"042-0-001","WestRock (La Tuque)",21]
["658 - WestRock (La Tuque)",658,"042-0-001","WestRock (La Tuque)",24]
["659 - WestRock (La Tuque)",659,"042-0-001","WestRock (La Tuque)",28]
["660 - WestRock (La Tuque)",660,"042-0-001","WestRock (La Tuque)",45]
["661 - WestRock (La Tuque)",661,"042-0-001","WestRock (La Tuque)",42]
["662 - WestRock (La Tuque)",662,"042-0-001","WestRock (La Tuque)",47]
["750 - WestRock (La Tuque)",750,"042-0-001","WestRock (La Tuque)",42]
["751 - WestRock (La Tuque)",751,"042-0-001","WestRock (La Tuque)",55]
["752 - WestRock (La Tuque)",752,"042-0-001","WestRock (La Tuque)",55]
["753 - WestRock (La Tuque)",753,"042-0-001","WestRock (La Tuque)",55]
["754 - WestRock (La Tuque)",754,"042-0-001","WestRock (La Tuque)",55]
[{"$f":"CONCATENATE(B656,\" - \",D656)","v":"755 - WestRock (La Tuque)"},755,"042-0-001","WestRock (La Tuque)",55]
["756 - WestRock (La Tuque)",756,"042-0-001","WestRock (La Tuque)",55]
["757 - WestRock (La Tuque)",757,"042-0-001","WestRock (La Tuque)",52]
["758 - WestRock (La Tuque)",758,"042-0-001","WestRock (La Tuque)",45]
["648 - Silicium Québec (Bécancour)",648,"171-4-003","Silicium Québec (Bécancour)",22]
["649 - Silicium Québec (Bécancour)",649,"171-4-003","Silicium Québec (Bécancour)",19]
["656 - Silicium Québec (Bécancour)",656,"171-4-003","Silicium Québec (Bécancour)",26]
["657 - Silicium Québec (Bécancour)",657,"171-4-003","Silicium Québec (Bécancour)",29]
["658 - Silicium Québec (Bécancour)",658,"171-4-003","Silicium Québec (Bécancour)",36]
["659 - Silicium Québec (Bécancour)",659,"171-4-003","Silicium Québec (Bécancour)",43]
["660 - Silicium Québec (Bécancour)",660,"171-4-003","Silicium Québec (Bécancour)",41]
["661 - Silicium Québec (Bécancour)",661,"171-4-003","Silicium Québec (Bécancour)",37]
["662 - Silicium Québec (Bécancour)",662,"171-4-003","Silicium Québec (Bécancour)",37]
["750 - Silicium Québec (Bécancour)",750,"171-4-003","Silicium Québec (Bécancour)",31]
["751 - Silicium Québec (Bécancour)",751,"171-4-003","Silicium Québec (Bécancour)",47]
["752 - Silicium Québec (Bécancour)",752,"171-4-003","Silicium Québec (Bécancour)",55]
["753 - Silicium Québec (Bécancour)",753,"171-4-003","Silicium Québec (Bécancour)",55]
["754 - Silicium Québec (Bécancour)",754,"171-4-003","Silicium Québec (Bécancour)",50]
["755 - Silicium Québec (Bécancour)",755,"171-4-003","Silicium Québec (Bécancour)",41]
["756 - Silicium Québec (Bécancour)",756,"171-4-003","Silicium Québec (Bécancour)",55]
["757 - Silicium Québec (Bécancour)",757,"171-4-003","Silicium Québec (Bécancour)",52]
["758 - Silicium Québec (Bécancour)",758,"171-4-003","Silicium Québec (Bécancour)",55]
["648 - Biomasse du lac Taureau (Saint-Michel-des-Saints)",648,"142-4-004","Biomasse du lac Taureau (Saint-Michel-des-Saints)",0]
["649 - Biomasse du lac Taureau (Saint-Michel-des-Saints)",649,"142-4-004","Biomasse du lac Taureau (Saint-Michel-des-Saints)",15]
["656 - Biomasse du lac Taureau (Saint-Michel-des-Saints)",656,"142-4-004","Biomasse du lac Taureau (Saint-Michel-des-Saints)",0]
["657 - Biomasse du lac Taureau (Saint-Michel-des-Saints)",657,"142-4-004","Biomasse du lac Taureau (Saint-Michel-des-Saints)",3]
["658 - Biomasse du lac Taureau (Saint-Michel-des-Saints)",658,"142-4-004","Biomasse du lac Taureau (Saint-Michel-des-Saints)",9]
["659 - Biomasse du lac Taureau (Saint-Michel-des-Saints)",659,"142-4-004","Biomasse du lac Taureau (Saint-Michel-des-Saints)",17]
["660 - Biomasse du lac Taureau (Saint-Michel-des-Saints)",660,"142-4-004","Biomasse du lac Taureau (Saint-Michel-des-Saints)",19]
["661 - Biomasse du lac Taureau (Saint-Michel-des-Saints)",661,"142-4-004","Biomasse du lac Taureau (Saint-Michel-des-Saints)",15]
["662 - Biomasse du lac Taureau (Saint-Michel-des-Saints)",662,"142-4-004","Biomasse du lac Taureau (Saint-Michel-des-Saints)",26]
["750 - Biomasse du lac Taureau (Saint-Michel-des-Saints)",750,"142-4-004","Biomasse du lac Taureau (Saint-Michel-des-Saints)",22]
[{"$f":"CONCATENATE(B688,\" - \",D688)","v":"751 - Biomasse du lac Taureau (Saint-Michel-des-Saints)"},751,"142-4-004","Biomasse du lac Taureau (Saint-Michel-des-Saints)",43]
["752 - Biomasse du lac Taureau (Saint-Michel-des-Saints)",752,"142-4-004","Biomasse du lac Taureau (Saint-Michel-des-Saints)",55]
["753 - Biomasse du lac Taureau (Saint-Michel-des-Saints)",753,"142-4-004","Biomasse du lac Taureau (Saint-Michel-des-Saints)",51]
["754 - Biomasse du lac Taureau (Saint-Michel-des-Saints)",754,"142-4-004","Biomasse du lac Taureau (Saint-Michel-des-Saints)",41]
["755 - Biomasse du lac Taureau (Saint-Michel-des-Saints)",755,"142-4-004","Biomasse du lac Taureau (Saint-Michel-des-Saints)",39]
["756 - Biomasse du lac Taureau (Saint-Michel-des-Saints)",756,"142-4-004","Biomasse du lac Taureau (Saint-Michel-des-Saints)",45]
["757 - Biomasse du lac Taureau (Saint-Michel-des-Saints)",757,"142-4-004","Biomasse du lac Taureau (Saint-Michel-des-Saints)",42]
["758 - Biomasse du lac Taureau (Saint-Michel-des-Saints)",758,"142-4-004","Biomasse du lac Taureau (Saint-Michel-des-Saints)",43]
["648 - Rayonier (Témiscaming)",648,"081-0-001","Rayonier (Témiscaming)",55]
["649 - Rayonier (Témiscaming)",649,"081-0-001","Rayonier (Témiscaming)",55]
["656 - Rayonier (Témiscaming)",656,"081-0-001","Rayonier (Témiscaming)",55]
["657 - Rayonier (Témiscaming)",657,"081-0-001","Rayonier (Témiscaming)",55]
["658 - Rayonier (Témiscaming)",658,"081-0-001","Rayonier (Témiscaming)",55]
["659 - Rayonier (Témiscaming)",659,"081-0-001","Rayonier (Témiscaming)",55]
[{"$f":"CONCATENATE(B702,\" - \",D702)","v":"660 - Rayonier (Témiscaming)"},660,"081-0-001","Rayonier (Témiscaming)",55]
["661 - Rayonier (Témiscaming)",661,"081-0-001","Rayonier (Témiscaming)",55]
["662 - Rayonier (Témiscaming)",662,"081-0-001","Rayonier (Témiscaming)",50]
["750 - Rayonier (Témiscaming)",750,"081-0-001","Rayonier (Témiscaming)",46]
["751 - Rayonier (Témiscaming)",751,"081-0-001","Rayonier (Témiscaming)",30]
["752 - Rayonier (Témiscaming)",752,"081-0-001","Rayonier (Témiscaming)",16]
["753 - Rayonier (Témiscaming)",753,"081-0-001","Rayonier (Témiscaming)",22]
["754 - Rayonier (Témiscaming)",754,"081-0-001","Rayonier (Témiscaming)",34]
["755 - Rayonier (Témiscaming)",755,"081-0-001","Rayonier (Témiscaming)",43]
["756 - Rayonier (Témiscaming)",756,"081-0-001","Rayonier (Témiscaming)",24]
["757 - Rayonier (Témiscaming)",757,"081-0-001","Rayonier (Témiscaming)",55]
["758 - Rayonier (Témiscaming)",758,"081-0-001","Rayonier (Témiscaming)",55]
["648 - Tafisa Canada (Lac-Mégantic)",648,"073-0-001","Tafisa Canada (Lac-Mégantic)",45]
["649 - Tafisa Canada (Lac-Mégantic)",649,"073-0-001","Tafisa Canada (Lac-Mégantic)",34]
["656 - Tafisa Canada (Lac-Mégantic)",656,"073-0-001","Tafisa Canada (Lac-Mégantic)",51]
["657 - Tafisa Canada (Lac-Mégantic)",657,"073-0-001","Tafisa Canada (Lac-Mégantic)",54]
["658 - Tafisa Canada (Lac-Mégantic)",658,"073-0-001","Tafisa Canada (Lac-Mégantic)",55]
["659 - Tafisa Canada (Lac-Mégantic)",659,"073-0-001","Tafisa Canada (Lac-Mégantic)",55]
["660 - Tafisa Canada (Lac-Mégantic)",660,"073-0-001","Tafisa Canada (Lac-Mégantic)",55]
["661 - Tafisa Canada (Lac-Mégantic)",661,"073-0-001","Tafisa Canada (Lac-Mégantic)",50]
["662 - Tafisa Canada (Lac-Mégantic)",662,"073-0-001","Tafisa Canada (Lac-Mégantic)",53]
["750 - Tafisa Canada (Lac-Mégantic)",750,"073-0-001","Tafisa Canada (Lac-Mégantic)",46]
["751 - Tafisa Canada (Lac-Mégantic)",751,"073-0-001","Tafisa Canada (Lac-Mégantic)",55]
["752 - Tafisa Canada (Lac-Mégantic)",752,"073-0-001","Tafisa Canada (Lac-Mégantic)",55]
["753 - Tafisa Canada (Lac-Mégantic)",753,"073-0-001","Tafisa Canada (Lac-Mégantic)",55]
["754 - Tafisa Canada (Lac-Mégantic)",754,"073-0-001","Tafisa Canada (Lac-Mégantic)",55]
["755 - Tafisa Canada (Lac-Mégantic)",755,"073-0-001","Tafisa Canada (Lac-Mégantic)",55]
["756 - Tafisa Canada (Lac-Mégantic)",756,"073-0-001","Tafisa Canada (Lac-Mégantic)",55]
["757 - Tafisa Canada (Lac-Mégantic)",757,"073-0-001","Tafisa Canada (Lac-Mégantic)",55]
["758 - Tafisa Canada (Lac-Mégantic)",758,"073-0-001","Tafisa Canada (Lac-Mégantic)",55]
[]
["Villes"]
["Bois-Franc"]
["Ferme-Neuve"]
["St-Faustin"]
["Lachute"]
["Low"]
["Maniwaki"]
["Mansfield-et-Pontefract (Cour DJB Transport)"]
["Mont-Laurier"]
["Namur"]
["Notre-Dame-de-Pontmain"]
["Rapides-des-Joachims"]
["Thurso"]
[]
["Usine de destination - Fpu_A  : Section 4 BGAD et Section 1 Usine"]
["Biomasse du lac Taureau (Saint-Michel-des-Saints)"]
["Domtar (Windsor)"]
["Kruger (Trois-Rivières)"]
["Rayonier (Témiscaming)"]
["Silicium Québec (Bécancour)"]
["Tafisa Canada (Lac-Mégantic)"]
["WestRock (La Tuque)"]
[]
["Usine de destination - Fpu_B : Section 5 BGAD et Section 2 Usine"]
["Biomasse du lac Taureau (Saint-Michel-des-Saints)"]
["Domtar (Windsor)"]
["Rayonier (Témiscaming)"]
["Silicium Québec (Bécancour)"]
["Tafisa Canada (Lac-Mégantic)"]
["WestRock (La Tuque)"]
[]
["Usine de destination - FPr"]
["Biomasse du lac Taureau (Saint-Michel-des-Saints)"]
["Domtar (Windsor)"]
["Kruger Wayagamack S.E.C."]
["Louisiana-Pacific (Bois­Franc)"]
["Rayonier (Témiscaming)"]
["Silicium Québec (Bécancour)"]
["Société en commandite Papier Masson WB"]
["Tafisa Canada (Lac-Mégantic)"]
["WestRock (La Tuque)"]
["PFR Maniwaki vers Domtar inc. (Windsor - Pâtes et papiers)"]
["Scierie Carrière vers Domtar (Windsor)"]
["Lauzon Thurso vers Uniboard Mont-Laurier (RTE 105)"]
["Lauzon vers Domtar (Windsor)"]
["Lauzon vers Rayonier (Témiscaming)"]
["Crête Ferme-Neuve vers Domtar (Windsor)"]
["Crête St-Faustin vers Domtar (Windsor)"]
["Crête Chertsey vers Domtar (Windsor)"]
["Forespect vers Domtar (Windsor)"]
["CCPL Mont-Laurier vers Domtar (Windsor)"]
["Cours de Shawville (Pontiac) vers Biomasse du lac Taureau (Saint-Michel-des-Saints)"]
["Cours de Shawville (Pontiac) vers Domtar (Windsor)"]
["Cours de Shawville (Pontiac) vers Rayonier (Témiscaming)"]
[]
["Territoire du plan conjoint des producteurs de bois"]
["Alliance des propriétaires forestiers Laurentides-Outaouais"]
["Office des producteurs de bois du Pontiac"]
["Office des producteurs de bois de la Gatineau"]
["Inscrire une valeur"]
[]
["Plan conjoint, destination et essence FPr (RechercheV)","Territoire du syndicat - origine","Destination","Type de bois transporté","Aide 2024-2025 ($/m3)"]
[{"$f":"CONCATENATE(B795,\" - \",C795,\" - \",D795)","v":"Office des producteurs de bois du Pontiac - Louisiana-Pacific (Bois­Franc) - Peupliers"},"Office des producteurs de bois du Pontiac","Louisiana-Pacific (Bois­Franc)","Peupliers",7]
["Alliance des propriétaires forestiers Laurentides-Outaouais - Louisiana-Pacific (Bois­Franc) - Peupliers","Alliance des propriétaires forestiers Laurentides-Outaouais","Louisiana-Pacific (Bois­Franc)","Peupliers",17]
["Office des producteurs de bois du Pontiac - Silicium Québec (Bécancour) - Peupliers","Office des producteurs de bois du Pontiac","Silicium Québec (Bécancour)","Peupliers",34]
["Office des producteurs de bois du Pontiac - Biomasse du lac Taureau (Saint-Michel-des-Saints) - Peupliers","Office des producteurs de bois du Pontiac","Biomasse du lac Taureau (Saint-Michel-des-Saints)","Peupliers",37]
["Office des producteurs de bois du Pontiac - WestRock (La Tuque) - Peupliers","Office des producteurs de bois du Pontiac","WestRock (La Tuque)","Peupliers",48]
["Office des producteurs de bois du Pontiac - Tafisa Canada (Lac-Mégantic) - Peupliers","Office des producteurs de bois du Pontiac","Tafisa Canada (Lac-Mégantic)","Peupliers",46]
["Office des producteurs de bois du Pontiac - Domtar (Windsor) - Peupliers","Office des producteurs de bois du Pontiac","Domtar (Windsor)","Peupliers",39]
["Office des producteurs de bois du Pontiac - Rayonier (Témiscaming) - Peupliers","Office des producteurs de bois du Pontiac","Rayonier (Témiscaming)","Peupliers",38]
["Office des producteurs de bois du Pontiac - Société en commandite Papier Masson WB - Peupliers","Office des producteurs de bois du Pontiac","Société en commandite Papier Masson WB","Peupliers",0]
["Alliance des propriétaires forestiers Laurentides-Outaouais - Société en commandite Papier Masson WB - Peupliers","Alliance des propriétaires forestiers Laurentides-Outaouais","Société en commandite Papier Masson WB","Peupliers",1]
["Office des producteurs de bois de la Gatineau - Société en commandite Papier Masson WB - Peupliers","Office des producteurs de bois de la Gatineau","Société en commandite Papier Masson WB","Peupliers",10]
["Office des producteurs de bois du Pontiac - Cours de Shawville (Pontiac) vers Louisiana-Pacific (Bois­Franc) - Peupliers","Office des producteurs de bois du Pontiac","Cours de Shawville (Pontiac) vers Louisiana-Pacific (Bois­Franc)","Peupliers",18]
["Office des producteurs de bois du Pontiac - Cours de Shawville (Pontiac) vers Biomasse du lac Taureau (Saint-Michel-des-Saints) - Peupliers","Office des producteurs de bois du Pontiac","Cours de Shawville (Pontiac) vers Biomasse du lac Taureau (Saint-Michel-des-Saints)","Peupliers",45]
["Office des producteurs de bois du Pontiac - Cours de Shawville (Pontiac) vers Domtar (Windsor) - Peupliers","Office des producteurs de bois du Pontiac","Cours de Shawville (Pontiac) vers Domtar (Windsor)","Peupliers",46]
["Office des producteurs de bois du Pontiac - Cours de Shawville (Pontiac) vers Rayonier (Témiscaming) - Peupliers","Office des producteurs de bois du Pontiac","Cours de Shawville (Pontiac) vers Rayonier (Témiscaming)","Peupliers",41]
["Office des producteurs de bois du Pontiac - Cours de Shawville (Pontiac) vers Biomasse du lac Taureau (Saint-Michel-des-Saints) - Feuillus durs","Office des producteurs de bois du Pontiac","Cours de Shawville (Pontiac) vers Biomasse du lac Taureau (Saint-Michel-des-Saints)","Feuillus durs",49]
["Office des producteurs de bois du Pontiac - Cours de Shawville (Pontiac) vers Domtar (Windsor) - Feuillus durs","Office des producteurs de bois du Pontiac","Cours de Shawville (Pontiac) vers Domtar (Windsor)","Feuillus durs",49]
["Office des producteurs de bois du Pontiac - Cours de Shawville (Pontiac) vers Rayonier (Témiscaming) - Feuillus durs","Office des producteurs de bois du Pontiac","Cours de Shawville (Pontiac) vers Rayonier (Témiscaming)","Feuillus durs",38]
["Alliance des propriétaires forestiers Laurentides-Outaouais - Domtar (Windsor) - Feuillus durs","Alliance des propriétaires forestiers Laurentides-Outaouais","Domtar (Windsor)","Feuillus durs",33]
["Office des producteurs de bois de la Gatineau - Domtar (Windsor) - Feuillus durs","Office des producteurs de bois de la Gatineau","Domtar (Windsor)","Feuillus durs",42]
["Office des producteurs de bois du Pontiac - Domtar (Windsor) - Feuillus durs","Office des producteurs de bois du Pontiac","Domtar (Windsor)","Feuillus durs",46]
["Alliance des propriétaires forestiers Laurentides-Outaouais - Rayonier (Témiscaming) - Feuillus durs","Alliance des propriétaires forestiers Laurentides-Outaouais","Rayonier (Témiscaming)","Feuillus durs",53]
["Office des producteurs de bois de la Gatineau - Rayonier (Témiscaming) - Feuillus durs","Office des producteurs de bois de la Gatineau","Rayonier (Témiscaming)","Feuillus durs",40]
["Office des producteurs de bois du Pontiac - Rayonier (Témiscaming) - Feuillus durs","Office des producteurs de bois du Pontiac","Rayonier (Témiscaming)","Feuillus durs",25]
["Office des producteurs de bois du Pontiac - Silicium Québec (Bécancour) - Feuillus durs","Office des producteurs de bois du Pontiac","Silicium Québec (Bécancour)","Feuillus durs",42]
["Alliance des propriétaires forestiers Laurentides-Outaouais - Silicium Québec (Bécancour) - Feuillus durs","Alliance des propriétaires forestiers Laurentides-Outaouais","Silicium Québec (Bécancour)","Feuillus durs",28]
["Office des producteurs de bois du Pontiac - Biomasse du lac Taureau (Saint-Michel-des-Saints) - Feuillus durs","Office des producteurs de bois du Pontiac","Biomasse du lac Taureau (Saint-Michel-des-Saints)","Feuillus durs",43]
["Alliance des propriétaires forestiers Laurentides-Outaouais - Biomasse du lac Taureau (Saint-Michel-des-Saints) - Feuillus durs","Alliance des propriétaires forestiers Laurentides-Outaouais","Biomasse du lac Taureau (Saint-Michel-des-Saints)","Feuillus durs",20]
["Alliance des propriétaires forestiers Laurentides-Outaouais - Kruger Wayagamack S.E.C. - Feuillus durs","Alliance des propriétaires forestiers Laurentides-Outaouais","Kruger Wayagamack S.E.C.","Feuillus durs",28]
["Office des producteurs de bois du Pontiac - WestRock (La Tuque) - Feuillus durs","Office des producteurs de bois du Pontiac","WestRock (La Tuque)","Feuillus durs",55]
["Office des producteurs de bois du Pontiac - Tafisa Canada (Lac-Mégantic) - Feuillus durs","Office des producteurs de bois du Pontiac","Tafisa Canada (Lac-Mégantic)","Feuillus durs",55]
["Alliance des propriétaires forestiers Laurentides-Outaouais - Scierie Carrière vers Domtar (Windsor) - Feuillus durs","Alliance des propriétaires forestiers Laurentides-Outaouais","Scierie Carrière vers Domtar (Windsor)","Feuillus durs",36]
["Alliance des propriétaires forestiers Laurentides-Outaouais - Lauzon vers Domtar (Windsor) - Feuillus durs","Alliance des propriétaires forestiers Laurentides-Outaouais","Lauzon vers Domtar (Windsor)","Feuillus durs",44]
["Alliance des propriétaires forestiers Laurentides-Outaouais - Lauzon vers Rayonier (Témiscaming) - Feuillus durs","Alliance des propriétaires forestiers Laurentides-Outaouais","Lauzon vers Rayonier (Témiscaming)","Feuillus durs",55]
["Alliance des propriétaires forestiers Laurentides-Outaouais - Crête Ferme-Neuve vers Domtar (Windsor) - Feuillus durs","Alliance des propriétaires forestiers Laurentides-Outaouais","Crête Ferme-Neuve vers Domtar (Windsor)","Feuillus durs",45]
["Alliance des propriétaires forestiers Laurentides-Outaouais - Crête St-Faustin vers Domtar (Windsor) - Feuillus durs","Alliance des propriétaires forestiers Laurentides-Outaouais","Crête St-Faustin vers Domtar (Windsor)","Feuillus durs",35]
["Alliance des propriétaires forestiers Laurentides-Outaouais - Crête Chertsey vers Domtar (Windsor) - Feuillus durs","Alliance des propriétaires forestiers Laurentides-Outaouais","Crête Chertsey vers Domtar (Windsor)","Feuillus durs",39]
["Office des producteurs de bois de la Gatineau - Lauzon vers Domtar (Windsor) - Feuillus durs","Office des producteurs de bois de la Gatineau","Lauzon vers Domtar (Windsor)","Feuillus durs",49]
["Office des producteurs de bois de la Gatineau - Lauzon vers Rayonier (Témiscaming) - Feuillus durs","Office des producteurs de bois de la Gatineau","Lauzon vers Rayonier (Témiscaming)","Feuillus durs",55]
["Office des producteurs de bois de la Gatineau - PFR Maniwaki vers Domtar inc. (Windsor - Pâtes et papiers) - Feuillus durs","Office des producteurs de bois de la Gatineau","PFR Maniwaki vers Domtar inc. (Windsor - Pâtes et papiers)","Feuillus durs",46]
["Office des producteurs de bois du Pontiac - Lauzon vers Domtar (Windsor) - Feuillus durs","Office des producteurs de bois du Pontiac","Lauzon vers Domtar (Windsor)","Feuillus durs",48]
["Office des producteurs de bois du Pontiac - Lauzon vers Rayonier (Témiscaming) - Feuillus durs","Office des producteurs de bois du Pontiac","Lauzon vers Rayonier (Témiscaming)","Feuillus durs",55]
["Alliance des propriétaires forestiers Laurentides-Outaouais - Louisiana-Pacific (Bois­Franc) - Feuillus durs","Alliance des propriétaires forestiers Laurentides-Outaouais","Louisiana-Pacific (Bois­Franc)","Feuillus durs",16]
["Alliance des propriétaires forestiers Laurentides-Outaouais - Forespect vers Domtar (Windsor) - Feuillus durs","Alliance des propriétaires forestiers Laurentides-Outaouais","Forespect vers Domtar (Windsor)","Feuillus durs",36]
["Alliance des propriétaires forestiers Laurentides-Outaouais - CCPL Mont-Laurier vers Domtar (Windsor) - Feuillus durs","Alliance des propriétaires forestiers Laurentides-Outaouais","CCPL Mont-Laurier vers Domtar (Windsor)","Feuillus durs",37]
[{"$f":"CONCATENATE(B840,\" - \",C840,\" - \",D840)","v":"Office des producteurs de bois de la Gatineau - Lauzon Thurso vers Uniboard Mont-Laurier (RTE 105) - Feuillus durs"},"Office des producteurs de bois de la Gatineau","Lauzon Thurso vers Uniboard Mont-Laurier (RTE 105)","Feuillus durs",42]
[{"$f":"CONCATENATE(B841,\" - \",C841,\" - \",D841)","v":"Alliance des propriétaires forestiers Laurentides-Outaouais - Lauzon Thurso vers Uniboard Mont-Laurier (RTE 105) - Feuillus durs"},"Alliance des propriétaires forestiers Laurentides-Outaouais","Lauzon Thurso vers Uniboard Mont-Laurier (RTE 105)","Feuillus durs",32]
[{"$f":"CONCATENATE(B842,\" - \",C842,\" - \",D842)","v":"Office des producteurs de bois du Pontiac - Lauzon Thurso vers Uniboard Mont-Laurier (RTE 105) - Feuillus durs"},"Office des producteurs de bois du Pontiac","Lauzon Thurso vers Uniboard Mont-Laurier (RTE 105)","Feuillus durs",41]
[]
["Type de bois de faible qualité"]
["Peupliers"]
["Feuillus durs"]
[]
["Volet II (Transport en longueur et mesurage optimisé)"]
["Bois transporté en longueur",66]
["Mesurage  optimisé",95]
[]
["Seuils Transport"]
["Minimum FD trituration",30]
[]
["Menu Retour en charge"]
["CONCANTER","Ville de destination","Usine d'origine","Taux final 2024-2025 pour retour en charge"]
[{"$f":"_xlfn.CONCAT($B857,\" - \",$C857)","v":"St-Faustin - Rayonier (Témiscaming)"},"St-Faustin","Rayonier (Témiscaming)",12]
["Namur - Rayonier (Témiscaming)","Namur","Rayonier (Témiscaming)",11]
["Mont-Laurier - Rayonier (Témiscaming)","Mont-Laurier","Rayonier (Témiscaming)",11]
["Thurso - Rayonier (Témiscaming)","Thurso","Rayonier (Témiscaming)",10]
["Bois-Franc - Rayonier (Témiscaming)","Bois-Franc","Rayonier (Témiscaming)",10]
["Lachute - Rayonier (Témiscaming)","Lachute","Rayonier (Témiscaming)",11]
["Sainte-Thérèse - Rayonier (Témiscaming)","Sainte-Thérèse","Rayonier (Témiscaming)",12]
["Low - Rayonier (Témiscaming)","Low","Rayonier (Témiscaming)",10]
["Rapides-Des-Joachims - Rayonier (Témiscaming)","Rapides-Des-Joachims","Rayonier (Témiscaming)",7]
["Maniwaki - Rayonier (Témiscaming)","Maniwaki","Rayonier (Témiscaming)",10]
["Notre-Dame-de-Pontmain - Rayonier (Témiscaming)","Notre-Dame-de-Pontmain","Rayonier (Témiscaming)",11]
["Mansfield-et-Pontefract - Rayonier (Témiscaming)","Mansfield-et-Pontefract","Rayonier (Témiscaming)",8]
["Sainte-Émile-de-l'Énergie - Rayonier (Témiscaming)","Sainte-Émile-de-l'Énergie","Rayonier (Témiscaming)",14]

{"sheet":"Log","index":10,"n_rows":23,"n_cols":4,"rows_kept":23,"cut":false,"hidden":true,"merged":[]}
["Utilisateur","Date","OS","Excel"]
["Pouliot, Simon (BMMB)","2022-04-27T12:18:14","Windows (64-bit) NT 10.00","16.0"]
["St-Pierre, Stéphane (BMMB)","2022-07-06T13:24:06","Windows (64-bit) NT 10.00","16.0"]
["St-Pierre, Stéphane (BMMB)","2022-07-06T14:32:07","Windows (64-bit) NT 10.00","16.0"]
["St-Pierre, Stéphane (BMMB)","2022-07-06T15:01:53","Windows (64-bit) NT 10.00","16.0"]
["St-Pierre, Stéphane (BMMB)","2022-10-04T14:11:42","Windows (64-bit) NT 10.00","16.0"]
["St-Pierre, Stéphane (BMMB)","2023-05-17T13:42:24","Windows (64-bit) NT 10.00","16.0"]
["Gagné, Jean-Benoit (BMMB)","2023-05-24T13:47:48","Windows (64-bit) NT 10.00","16.0"]
["Gagné, Jean-Benoit (BMMB)","2023-05-31T09:24:50","Windows (64-bit) NT 10.00","16.0"]
["Gagné, Jean-Benoit (BMMB)","2023-06-09T10:23:44","Windows (64-bit) NT 10.00","16.0"]
["Gagné, Jean-Benoit (BMMB)","2023-06-13T14:43:27","Windows (64-bit) NT 10.00","16.0"]
["Gagné, Jean-Benoit (BMMB)","2023-06-29T13:13:10","Windows (64-bit) NT 10.00","16.0"]
["Gagné, Jean-Benoit (BMMB)","2023-06-29T14:02:06","Windows (64-bit) NT 10.00","16.0"]
["Gagné, Jean-Benoit (BMMB)","2023-06-29T16:34:48","Windows (64-bit) NT 10.00","16.0"]
["Gagné, Jean-Benoit (BMMB)","2023-07-25T13:33:07","Windows (64-bit) NT 10.00","16.0"]
["Gagné, Jean-Benoit (BMMB)","2023-09-13T08:46:03","Windows (64-bit) NT 10.00","16.0"]
["Gagné, Jean-Benoit (BMMB)","2023-11-22T08:46:01","Windows (64-bit) NT 10.00","16.0"]
["Gagné, Jean-Benoit (BMMB)","2024-01-19T14:58:25","Windows (64-bit) NT 10.00","16.0"]
["Gagné, Jean-Benoit (BMMB)","2024-03-27T08:57:00","Windows (64-bit) NT 10.00","16.0"]
["Gagné, Jean-Benoit (BMMB)","2024-04-18T14:47:40","Windows (64-bit) NT 10.00","16.0"]
["Gagné, Jean-Benoit (BMMB)","2024-05-06T14:33:08","Windows (64-bit) NT 10.00","16.0"]
["Gagné, Jean-Benoit (BMMB)","2024-07-09T08:57:33","Windows (64-bit) NT 10.00","16.0"]
["Gagné, Jean-Benoit (BMMB)","2024-12-10T10:48:58","Windows (64-bit) NT 10.00","16.0"]